Workbook

Sheet Cover
A1: =RIGHT(CELL("filename", $A$1), LEN(CELL("filename", $A$1)) - SEARCH("]", CELL("filename", $A$1))) -> Cover
C3: Model name: | D3: PR19 Revenue adjustments feeder model
C4: Version number: | D4: 01j - June 2018 update
C5: Filename: | D5: ="PR19 Revenue adjustments feeder model " & D4 & ".xlsm" -> PR19 Revenue adjustments feeder model 01j - June 2018 update.xlsm
C6: Date: | D6: 2018-06-20
C7: Author: | D7: Ofwat and F1F9 UK Ltd
C8: Author contact information: | D8: PR19@ofwat.gsi.gov.uk
C11: Summary of model: | D11: The model is designed to take the revenue adjustment outputs from the PR09 and PR14 reconciliations and convert them for use in the PR19 financial model in line
D12: with Delivering Water 2020: PR19 methodology, chapter 12 (accounting for past delivery).
C14: Known limitations: | D14: The model has been subject to internal Ofwat quality assurance.
C16: Feedback: | D16: We would welcome feedback on the PR19 revenue adjustments feeder model. Please send any feedback to the following email address
D17: PR19@ofwat.gsi.gov.uk
A20: End of sheet

Sheet Change Log
A1: Change log
B3: # | C3: Issue | D3: Change | E3: Sheet | F3: Row
A5: 2017-12-01 | B5: 1 | C5: Company noted that the Ofwat feeder model incorrectly deflates prices from 2020 year end prices to 2017-18 financial year average prices by referencing the RPI March index value in the numerator. | D5: Corrected calculation of the deflation factor to reference CPIH March 2020 index value. | E5: Indexation | F5: 109
A6: 2017-12-01 | B6: 2 | C6: Companies noted differences in item labels between the Ofwat feeder model and the business plan tables | D6: Item labels have been aligned with the business plan tables | E6: Calc Profiling Summary_Output
A7: 2018-06-01 | B7: 3 | C7: In response to a query a new business plan table has been created. The Ofwat feeder model has been updated to reflect the additional table Dmmy10. | D7: Include the Dummy10 revenue adjustment. | E7: Inputs Calc Summary_Output
A8: 2018-06-01 | B8: 4 | C8: Change email address | D8: Changed from water2020 mailbox to PR19 mailbox | E8: Cover

Sheet Map & Key
A1: =RIGHT(CELL("filename", $A$1), LEN(CELL("filename", $A$1)) - SEARCH("]", CELL("filename", $A$1))) -> Map & Key
A3: GENERIC MODEL DESIGN
F5: ABOVE BONNET - USER INTERFACE
H8: Inputs | P8: Output Summary
F13: BELOW BONNET - CALCULATION ENGINE
H19: Input Transition | L19: Calculations | P19: Detailed Outputs
F25: Note: FAST strictly applicable below the bonnet
A28: MODEL MAP
F30: MODEL MAP
H32: INPUTS | L32: CALCULATIONS | V32: DOCUMENTATION
H36: =Inputs!$A$1 -> Inputs | L36: =Time!$A$1 -> Time | P36: =Summary_Output!$A$1 -> Summary_Output | V36: =$A$1 -> Map & Key
H37: All the hardcoded inputs used in the model for calculation. | L37: The model timeline and flag calculations are done in this sheet. | P37: A summary of links of major output of this model. | V37: Sheet references and model flow; Sheet tabs colours, colour coding, abbreviations, range names are mentioned in this sheet.
L39: =Indexation!$A$1 -> Indexation
L40: All the indexation related calculations are done in this sheet.
L42: =Calc!$A$1 -> Calc
L43: All the price regulations related calculations are done in this sheet.
L45: =Profiling!$A$1 -> Profiling
L46: All the profiling of revenue inputs related calculations are done in this sheet.
A51: SHEET TABS
H53: Light Yellow | J53: Input sheets
H55: No colour (default Excel tab colour) | J55: Calculation and documentation sheets
H57: Pale Blue | J57: Key output sheets
H59: Turquoise | J59: Quality control sheets
H61: Yellow | J61: To be completed, temporary, restructured, or deleted
A64: COLOUR
B66: Font colour only
H67: Blue font | J67: Imported from another sheet
H69: Red font | J69: Exported to another sheet (except from Input sheets)
H71: Black font | J71: Within sheet link or calculation
B73: Font + shade combinations
H74: Black font + Light Yellow shade | J74: Inputs
H76: Black font + Light Grey shade on entire row | J76: Within-worksheet counter-flow
H78: Blue font + Light Grey shade on entire row | J78: Between-worksheet counter-flow
H80: Empty Cell with Light Grey shade | J80: Empty cells being deliberately referenced
B82: Other
H83: Black font + Pale Blue shade on entire row | J83: Section separator
H85: Light Turquoise shade | J85: Stored/dead/hard coded outputs
H87: Tan shade | J87: Pre-model time line actuals
H89: Yellow shade | J89: Work in progress / temporary
H91: Lime shade | J91: Values or logic to be reviewed
B93: Error checks & alerts
H94: Green shade | J94: OK
H96: Red shade | J96: Error
H98: Gold shade | J98: Alert
A101: ABBREVIATIONS
H103: BR | I103: Bio resources
H104: CPIH | I104: Consumer price index housing
H105: RCV | I105: Regulatory capital value
H106: RPI | I106: Retail price index
H107: WR | I107: Water resources
H108: WN | I108: Water network
H109: WWN | I109: Wastewater network
A112: NAMES
H114: NO NAME RANGES PRESENT IN THE MODEL
A117: LIST OF FUNCTIONS USED
H119: SUMPRODUCT | J119: Multiplies corresponding components in the given arrays, and returns the sum of those products.
H120: MATCH | J120: The MATCH function searches for a specified item in a range of cells, and then returns the relative position of that item in the range.
H121: INDEX | J121: Returns a value or the reference to a value from within a table or range, selected by the row and column number indexes
A124: End of sheet

Sheet Inputs
A1: =RIGHT(CELL("FILENAME", $A$1), LEN(CELL("FILENAME", $A$1)) - SEARCH("]", CELL("FILENAME", $A$1))) -> Inputs
E2: =Time!E$25 -> Model period ending | J2: =Time!J$25 -> 2013-03-31 | K2: =Time!K$25 -> 2014-03-31 | L2: =Time!L$25 -> 2015-03-31 | M2: =Time!M$25 -> 2016-03-31 | N2: =Time!N$25 -> 2017-03-31 | O2: =Time!O$25 -> 2018-03-31 | P2: =Time!P$25 -> 2019-03-31 | Q2: =Time!Q$25 -> 2020-03-31 | R2: =Time!R$25 -> 2021-03-31 | S2: =Time!S$25 -> 2022-03-31 | T2: =Time!T$25 -> 2023-03-31 | U2: =Time!U$25 -> 2024-03-31 | V2: =Time!V$25 -> 2025-03-31
E3: =Time!E$80 -> Timeline label | J3: =Time!J$80 -> Pre-Fcst | K3: =Time!K$80 -> Pre-Fcst | L3: =Time!L$80 -> Pre-Fcst | M3: =Time!M$80 -> Pre-Fcst | N3: =Time!N$80 -> Pre-Fcst | O3: =Time!O$80 -> Pre-Fcst | P3: =Time!P$80 -> Pre-Fcst | Q3: =Time!Q$80 -> Pre-Fcst | R3: =Time!R$80 -> Forecast | S3: =Time!S$80 -> Forecast | T3: =Time!T$80 -> Forecast | U3: =Time!U$80 -> Forecast | V3: =Time!V$80 -> Forecast
E4: =Time!E$103 -> Financial year ending | J4: =Time!J$103 -> 2013 | K4: =Time!K$103 -> 2014 | L4: =Time!L$103 -> 2015 | M4: =Time!M$103 -> 2016 | N4: =Time!N$103 -> 2017 | O4: =Time!O$103 -> 2018 | P4: =Time!P$103 -> 2019 | Q4: =Time!Q$103 -> 2020 | R4: =Time!R$103 -> 2021 | S4: =Time!S$103 -> 2022 | T4: =Time!T$103 -> 2023 | U4: =Time!U$103 -> 2024 | V4: =Time!V$103 -> 2025
A5: =IF(COUNTIF(A6:A165,"< 0") + COUNTIF(A6:A165,">0") <> 0, 1, 0) -> 0 | D5: Input references | E5: =Time!E$10 -> Model column counter | F5: Constant | G5: Unit | H5: Total | J5: =Time!J$10 -> 1 | K5: =Time!K$10 -> 2 | L5: =Time!L$10 -> 3 | M5: =Time!M$10 -> 4 | N5: =Time!N$10 -> 5 | O5: =Time!O$10 -> 6 | P5: =Time!P$10 -> 7 | Q5: =Time!Q$10 -> 8 | R5: =Time!R$10 -> 9 | S5: =Time!S$10 -> 10 | T5: =Time!T$10 -> 11 | U5: =Time!U$10 -> 12 | V5: =Time!V$10 -> 13
E6: [Used in formula range - Do not delete]
A8: A: TIME
B10: Timeline setup
C12: Timeline start dates
E13: 1st model column start date | F13: 2012-04-01 | G13: date | H13: Date should be the first date of the financial year
C15: Financial year inputs
E16: First modelling column financial year# | F16: 2013 | G16: year # | H16: Financial model start year
E17: Financial year end month number | F17: 3 | G17: month # | H17: Month of financial year end for financial model
C19: Timeline labels
E20: Pre - forecast period | F20: Pre-Fcst | G20: label
E21: Forecast period | F21: Forecast | G21: label
E22: Post - forecast period | F22: Post-Fcst | G22: label
B24: Project dates
E26: Forecast start date | F26: 2020-04-01 | G26: date
E27: Forecast duration | F27: 5 | G27: years
E28: Forecast duration (text) | F28: =YEAR(F26) & "-" & TEXT(DATE(YEAR(F26) + F27, 1, 1), "yy") -> 2020-25 | G28: years # | H28: For info. only
A31: B: INDEXATION
B33: CPIH INDEXATION
E35: Consumer Price Index for April | G35: index | J35: 95.9 | K35: 98 | L35: 99.6 | M35: 99.9 | N35: 100.6 | O35: 103.2 | P35: =[1]Inputs!P35 -> 105.7542 | Q35: =[1]Inputs!Q35 -> 107.9750382 | R35: =[1]Inputs!R35 -> 110.2155202 | S35: =[1]Inputs!S35 -> 112.4473845 | T35: =[1]Inputs!T35 -> 114.6963322 | U35: =[1]Inputs!U35 -> 116.9902589 | V35: =[1]Inputs!V35 -> 119.330064
E36: Consumer Price Index for May | G36: index | J36: 95.9 | K36: 98.2 | L36: 99.6 | M36: 100.1 | N36: 100.8 | O36: 103.5 | P36: =[1]Inputs!P36 -> 106.061625 | Q36: =[1]Inputs!Q36 -> 108.2889191 | R36: =[1]Inputs!R36 -> 110.5359142 | S36: =[1]Inputs!S36 -> 112.7742665 | T36: =[1]Inputs!T36 -> 115.0297518 | U36: =[1]Inputs!U36 -> 117.3303468 | V36: =[1]Inputs!V36 -> 119.6769538
E37: Consumer Price Index for June | G37: index | J37: 95.6 | K37: 98 | L37: 99.8 | M37: 100.1 | N37: 101 | O37: 103.5 | P37: =[1]Inputs!P37 -> 106.061625 | Q37: =[1]Inputs!Q37 -> 108.2889191 | R37: =[1]Inputs!R37 -> 110.5359142 | S37: =[1]Inputs!S37 -> 112.7742665 | T37: =[1]Inputs!T37 -> 115.0297518 | U37: =[1]Inputs!U37 -> 117.3303468 | V37: =[1]Inputs!V37 -> 119.6769538
E38: Consumer Price Index for July | G38: index | J38: 95.7 | K38: 98 | L38: 99.6 | M38: 100 | N38: 100.9 | O38: 103.5 | P38: =[1]Inputs!P38 -> 106.061625 | Q38: =[1]Inputs!Q38 -> 108.2889191 | R38: =[1]Inputs!R38 -> 110.5359142 | S38: =[1]Inputs!S38 -> 112.7742665 | T38: =[1]Inputs!T38 -> 115.0297518 | U38: =[1]Inputs!U38 -> 117.3303468 | V38: =[1]Inputs!V38 -> 119.6769538
E39: Consumer Price Index for August | G39: index | J39: 96.1 | K39: 98.4 | L39: 99.9 | M39: 100.3 | N39: 101.2 | O39: 104 | P39: =[1]Inputs!P39 -> 106.574 | Q39: =[1]Inputs!Q39 -> 108.812054 | R39: =[1]Inputs!R39 -> 111.0699041 | S39: =[1]Inputs!S39 -> 113.3190697 | T39: =[1]Inputs!T39 -> 115.5854511 | U39: =[1]Inputs!U39 -> 117.8971601 | V39: =[1]Inputs!V39 -> 120.2551033
E40: Consumer Price Index for September | G40: index | J40: 96.4 | K40: 98.7 | L40: 100 | M40: 100.2 | N40: 101.5 | O40: 104.3 | P40: =[1]Inputs!P40 -> 106.881425 | Q40: =[1]Inputs!Q40 -> 109.1259349 | R40: =[1]Inputs!R40 -> 111.3902981 | S40: =[1]Inputs!S40 -> 113.6459516 | T40: =[1]Inputs!T40 -> 115.9188706 | U40: =[1]Inputs!U40 -> 118.2372481 | V40: =[1]Inputs!V40 -> 120.601993
E41: Consumer Price Index for October | G41: index | J41: 96.8 | K41: 98.8 | L41: 100.1 | M41: 100.3 | N41: 101.6 | O41: 104.4 | P41: =[1]Inputs!P41 -> 106.9839 | Q41: =[1]Inputs!Q41 -> 109.2305619 | R41: =[1]Inputs!R41 -> 111.4970961 | S41: =[1]Inputs!S41 -> 113.7549123 | T41: =[1]Inputs!T41 -> 116.0300105 | U41: =[1]Inputs!U41 -> 118.3506107 | V41: =[1]Inputs!V41 -> 120.7176229
E42: Consumer Price Index for November | G42: index | J42: 97 | K42: 98.8 | L42: 99.9 | M42: 100.3 | N42: 101.8 | O42: 104.7 | P42: =[1]Inputs!P42 -> 107.291325 | Q42: =[1]Inputs!Q42 -> 109.5444428 | R42: =[1]Inputs!R42 -> 111.81749 | S42: =[1]Inputs!S42 -> 114.0817942 | T42: =[1]Inputs!T42 -> 116.3634301 | U42: =[1]Inputs!U42 -> 118.6906987 | V42: =[1]Inputs!V42 -> 121.0645126
E43: Consumer Price Index for December | G43: index | J43: 97.3 | K43: 99.2 | L43: 99.9 | M43: 100.4 | N43: 102.2 | O43: 105 | P43: =[1]Inputs!P43 -> 107.59875 | Q43: =[1]Inputs!Q43 -> 109.8583237 | R43: =[1]Inputs!R43 -> 112.137884 | S43: =[1]Inputs!S43 -> 114.4086761 | T43: =[1]Inputs!T43 -> 116.6968496 | U43: =[1]Inputs!U43 -> 119.0307866 | V43: =[1]Inputs!V43 -> 121.4114024
E44: Consumer Price Index for January | G44: index | J44: 97 | K44: 98.7 | L44: 99.2 | M44: 99.9 | N44: 101.8 | O44: 104.5 | P44: =[1]Inputs!P44 -> 107.086375 | Q44: =[1]Inputs!Q44 -> 109.3351889 | R44: =[1]Inputs!R44 -> 111.603894 | S44: =[1]Inputs!S44 -> 113.8638729 | T44: =[1]Inputs!T44 -> 116.1411504 | U44: =[1]Inputs!U44 -> 118.4639734 | V44: =[1]Inputs!V44 -> 120.8332528
E45: Consumer Price Index for February | G45: index | J45: 97.5 | K45: 99.1 | L45: 99.5 | M45: 100.1 | N45: 102.4 | O45: 104.9 | P45: =[1]Inputs!P45 -> 107.496275 | Q45: =[1]Inputs!Q45 -> 109.7536968 | R45: =[1]Inputs!R45 -> 112.031086 | S45: =[1]Inputs!S45 -> 114.2997155 | T45: =[1]Inputs!T45 -> 116.5857098 | U45: =[1]Inputs!U45 -> 118.917424 | V45: =[1]Inputs!V45 -> 121.2957725
E46: Consumer Price Index for March | G46: index | J46: 97.8 | K46: 99.3 | L46: 99.6 | M46: 100.4 | N46: 102.7 | O46: 105.1 | P46: =[1]Inputs!P46 -> 107.701225 | Q46: =[1]Inputs!Q46 -> 109.9629507 | R46: =[1]Inputs!R46 -> 112.244682 | S46: =[1]Inputs!S46 -> 114.5176368 | T46: =[1]Inputs!T46 -> 116.8079895 | U46: =[1]Inputs!U46 -> 119.1441493 | V46: =[1]Inputs!V46 -> 121.5270323
E48: CPIH: Assumed percentage increase for unpopulated monthly values | G48: %
B50: RPI INDEXATION
E52: Retail Price Index for April | G52: index | J52: 242.5 | K52: 249.5 | L52: 255.7 | M52: 258 | N52: 261.4 | O52: 270.6 | P52: =[1]Inputs!P52 -> 279.73275 | Q52: =[1]Inputs!Q52 -> 288.1247325 | R52: =[1]Inputs!R52 -> 296.8405057 | S52: =[1]Inputs!S52 -> 306.0425613 | T52: =[1]Inputs!T52 -> 315.2238382 | U52: =[1]Inputs!U52 -> 324.6805533 | V52: =[1]Inputs!V52 -> 334.4209699
E53: Retail Price Index for May | G53: index | J53: 242.4 | K53: 250 | L53: 255.9 | M53: 258.5 | N53: 262.1 | O53: 271.7 | P53: =[1]Inputs!P53 -> 280.869875 | Q53: =[1]Inputs!Q53 -> 289.2959712 | R53: =[1]Inputs!R53 -> 298.0471744 | S53: =[1]Inputs!S53 -> 307.2866368 | T53: =[1]Inputs!T53 -> 316.5052359 | U53: =[1]Inputs!U53 -> 326.000393 | V53: =[1]Inputs!V53 -> 335.7804048
E54: Retail Price Index for June | G54: index | J54: 241.8 | K54: 249.7 | L54: 256.3 | M54: 258.9 | N54: 263.1 | O54: 272.3 | P54: =[1]Inputs!P54 -> 281.490125 | Q54: =[1]Inputs!Q54 -> 289.9348288 | R54: =[1]Inputs!R54 -> 298.7053573 | S54: =[1]Inputs!S54 -> 307.9652234 | T54: =[1]Inputs!T54 -> 317.2041801 | U54: =[1]Inputs!U54 -> 326.7203055 | V54: =[1]Inputs!V54 -> 336.5219147
E55: Retail Price Index for July | G55: index | J55: 242.1 | K55: 249.7 | L55: 256 | M55: 258.6 | N55: 263.4 | O55: 272.9 | P55: =[1]Inputs!P55 -> 282.110375 | Q55: =[1]Inputs!Q55 -> 290.5736862 | R55: =[1]Inputs!R55 -> 299.3635403 | S55: =[1]Inputs!S55 -> 308.64381 | T55: =[1]Inputs!T55 -> 317.9031243 | U55: =[1]Inputs!U55 -> 327.440218 | V55: =[1]Inputs!V55 -> 337.2634246
E56: Retail Price Index for August | G56: index | J56: 243 | K56: 251 | L56: 257 | M56: 259.8 | N56: 264.4 | O56: 274.7 | P56: =[1]Inputs!P56 -> 283.971125 | Q56: =[1]Inputs!Q56 -> 292.4902587 | R56: =[1]Inputs!R56 -> 301.3380891 | S56: =[1]Inputs!S56 -> 310.6795698 | T56: =[1]Inputs!T56 -> 319.9999569 | U56: =[1]Inputs!U56 -> 329.5999556 | V56: =[1]Inputs!V56 -> 339.4879543
E57: Retail Price Index for September | G57: index | J57: 244.2 | K57: 251.9 | L57: 257.6 | M57: 259.6 | N57: 264.9 | O57: 275.1 | P57: =[1]Inputs!P57 -> 284.384625 | Q57: =[1]Inputs!Q57 -> 292.9161638 | R57: =[1]Inputs!R57 -> 301.7768777 | S57: =[1]Inputs!S57 -> 311.1319609 | T57: =[1]Inputs!T57 -> 320.4659197 | U57: =[1]Inputs!U57 -> 330.0798973 | V57: =[1]Inputs!V57 -> 339.9822943
E58: Retail Price Index for October | G58: index | J58: 245.6 | K58: 251.9 | L58: 257.7 | M58: 259.5 | N58: 264.8 | O58: 275.3 | P58: =[1]Inputs!P58 -> 284.591375 | Q58: =[1]Inputs!Q58 -> 293.1291162 | R58: =[1]Inputs!R58 -> 301.996272 | S58: =[1]Inputs!S58 -> 311.3581564 | T58: =[1]Inputs!T58 -> 320.6989011 | U58: =[1]Inputs!U58 -> 330.3198682 | V58: =[1]Inputs!V58 -> 340.2294642
E59: Retail Price Index for November | G59: index | J59: 245.6 | K59: 252.1 | L59: 257.1 | M59: 259.8 | N59: 265.5 | O59: 275.8 | P59: =[1]Inputs!P59 -> 285.10825 | Q59: =[1]Inputs!Q59 -> 293.6614975 | R59: =[1]Inputs!R59 -> 302.5447578 | S59: =[1]Inputs!S59 -> 311.9236453 | T59: =[1]Inputs!T59 -> 321.2813546 | U59: =[1]Inputs!U59 -> 330.9197953 | V59: =[1]Inputs!V59 -> 340.8473891
E60: Retail Price Index for December | G60: index | J60: 246.8 | K60: 253.4 | L60: 257.5 | M60: 260.6 | N60: 267.1 | O60: 278.1 | P60: =[1]Inputs!P60 -> 287.485875 | Q60: =[1]Inputs!Q60 -> 296.1104513 | R60: =[1]Inputs!R60 -> 305.0677924 | S60: =[1]Inputs!S60 -> 314.524894 | T60: =[1]Inputs!T60 -> 323.9606408 | U60: =[1]Inputs!U60 -> 333.67946 | V60: =[1]Inputs!V60 -> 343.6898438
E61: Retail Price Index for January | G61: index | J61: 245.8 | K61: 252.6 | L61: 255.4 | M61: 258.8 | N61: 265.5 | O61: 276 | P61: =[1]Inputs!P61 -> 285.315 | Q61: =[1]Inputs!Q61 -> 293.87445 | R61: =[1]Inputs!R61 -> 302.7641521 | S61: =[1]Inputs!S61 -> 312.1498408 | T61: =[1]Inputs!T61 -> 321.5143361 | U61: =[1]Inputs!U61 -> 331.1597661 | V61: =[1]Inputs!V61 -> 341.0945591
E62: Retail Price Index for February | G62: index | J62: 247.6 | K62: 254.2 | L62: 256.7 | M62: 260 | N62: 268.4 | O62: 278.1 | P62: =[1]Inputs!P62 -> 287.485875 | Q62: =[1]Inputs!Q62 -> 296.1104513 | R62: =[1]Inputs!R62 -> 305.0677924 | S62: =[1]Inputs!S62 -> 314.524894 | T62: =[1]Inputs!T62 -> 323.9606408 | U62: =[1]Inputs!U62 -> 333.67946 | V62: =[1]Inputs!V62 -> 343.6898438
E63: Retail Price Index for March | G63: index | J63: 248.7 | K63: 254.8 | L63: 257.1 | M63: 261.1 | N63: 269.3 | O63: 278.3 | P63: =[1]Inputs!P63 -> 287.692625 | Q63: =[1]Inputs!Q63 -> 296.3234038 | R63: =[1]Inputs!R63 -> 305.2871867 | S63: =[1]Inputs!S63 -> 314.7510895 | T63: =[1]Inputs!T63 -> 324.1936222 | U63: =[1]Inputs!U63 -> 333.9194309 | V63: =[1]Inputs!V63 -> 343.9370138
E65: RPI: Assumed percentage increase for unpopulated monthly values | G65: %
B67: Inflation
E69: Year reference for FYA base price 1 | F69: 2013 | G69: year #
E70: Year reference for FYA base price 2 | F70: 2018 | G70: year #
E71: Year reference for FYE base price 1 | F71: 2020 | G71: year #
E72: Year reference for FYE base price 2 | F72: 2019 | G72: year #
E73: Year reference for FYE end price | F73: 2020 | G73: year #
B75: Deflation
E77: Year reference for FYE base price | F77: 2020 | G77: year #
E78: Year reference for FYA end price | F78: 2018 | G78: year #
A81: C: REVENUE INPUTS
B83: Water services
D85: Water resources
E86: Net performance payment / (penalty) applied to revenue for in-period ODI adjustments ~ Water resources | F86: 0 | G86: £m | H86: 2012/13 FYA
E87: Net performance payment / (penalty) applied to revenue for end of period ODI adjustments ~ Water resources | F87: 0 | G87: £m | H87: 2012/13 FYA
E88: Total value of export incentive to be paid to water resources at PR19 | F88: 0 | G88: £m | H88: 2017/18 FYA
E89: Total value of import incentive - water resources | F89: 0 | G89: £m | H89: 2017/18 FYA
D91: Water network plus
E92: Further 2010-15 reconciliation total adjustment carry forward to PR19 ~ Water network plus | F92: =[2]App25!$M$7 -> -0.05457111223 | G92: £m | H92: 2012/13 FYA
E93: Net performance payment / (penalty) applied to revenue for in-period ODI adjustments ~ Water network plus | F93: 0 | G93: £m | H93: 2012/13 FYA
E94: Net performance payment / (penalty) applied to revenue for end of period ODI adjustments ~ Water network plus | F94: =[2]App27!$M$36 -> 2.9205353 | G94: £m | H94: 2012/13 FYA
E95: Water: revenue adjustment from totex menu model | F95: ='[3]Totex menu adjustments'!$P$11 -> -0.3151302696 | G95: £m | H95: 2012/13 FYA
E96: Total value of export incentive to be paid to water network plus at PR19 | F96: 0 | G96: £m | H96: 2017/18 FYA
E97: Total value of import incentive - water network plus | F97: 0 | G97: £m | H97: 2017/18 FYA
E98: WRFIM total reward / (penalty) at end of AMP6 ~ Water | F98: ='[4]WFRIM adjustments'!$P$10 -> -1.912046686 | G98: £m | H98: November 2018/2019
B100: Wastewater services
D102: Bioresources
E103: Net performance payment / (penalty) applied to revenue for in-period ODI adjustments ~ Bioresources | F103: 0 | G103: £m | H103: 2012/13 FYA
E104: Net performance payment / (penalty) applied to revenue for end of period ODI adjustments ~ Bioresources | F104: 0 | G104: £m | H104: 2012/13 FYA
D106: Wastewater network plus
E107: Further 2010-15 reconciliation total adjustment carry forward to PR19 ~ Wastewater network plus | F107: 0 | G107: £m | H107: 2012/13 FYA
E108: Net performance payment / (penalty) applied to revenue for in-period ODI adjustments ~ Wastewater network plus | F108: 0 | G108: £m | H108: 2012/13 FYA
E109: Net performance payment / (penalty) applied to revenue for end of period ODI adjustments ~ Wastewater network plus | F109: 0 | G109: £m | H109: 2012/13 FYA
E110: Wastewater: revenue adjustment from totex menu model | F110: 0 | G110: £m | H110: 2012/13 FYA
E111: WRFIM total reward / (penalty) at the end of AMP6 ~ Wastewater | F111: 0 | G111: £m | H111: November 2018/2019
D113: Dummy control
E114: Dummy: revenue adjustment from totex menu model | F114: 0 | G114: £m | H114: 2012/13 FYA
B116: Residential retail
E118: Net performance payment / (penalty) applied to revenue for in-period ODI adjustments ~ Residential retail | F118: 0 | G118: £m | H118: 2012/13 FYA
E119: Net performance payment / (penalty) applied to revenue for end of period ODI adjustments ~ Residential retail | F119: 0 | G119: £m | H119: 2012/13 FYA
E120: Residential retail revenue adjustment at end of AMP6 | F120: =[5]Calcs!$P$94 -> 1.057202673 | G120: £m | H120: 2019/20 FYE
E121: SIM forecast revenue adjustment | F121: ='[6]SSW PR 19 assumptions'!$L$49 -> 2.387585772 | G121: £m | H121: 2017/18 FYA
B123: Business retail | F123: =[5]Calcs!$P$94 -> 1.057202673
E125: Net performance payment / (penalty) applied to revenue for in-period ODI adjustments ~ Business retail | F125: 0 | G125: £m | H125: 2012/13 FYA
E126: Net performance payment / (penalty) applied to revenue for end of period ODI adjustments ~ Business retail | F126: 0 | G126: £m | H126: 2012/13 FYA
A129: D: PROFILING INPUTS
B131: Discounting
E133: PV base date | F133: 2021-03-31 | G133: date
E135: Discount rate - Water resources | F135: 0.033 | G135: %
E136: Discount rate - Water network plus | F136: 0.033 | G136: %
E137: Discount rate - Bioresources | F137: 0 | G137: %
E138: Discount rate - Wastewater network plus | F138: 0 | G138: %
E139: Discount rate - Dummy control | F139: 0 | G139: %
E140: Discount rate - Residential retail | F140: 0.033 | G140: %
E141: Discount rate - Business retail | F141: 0 | G141: %
E143: Number of years to profile over | F143: 5 | G143: #
B145: Profile selector
E147: Water resources revenue adjustment selector | F147: 0 | G147: 0 = Apply in first year, 1 = Constant annuity 2020-25, 2 = Even allocation - NPV neutral
E148: Water network plus revenue adjustment selector | F148: 2 | G148: 0 = Apply in first year, 1 = Constant annuity 2020-25, 2 = Even allocation - NPV neutral
E149: Bioesources revenue adjustment selector | F149: 0 | G149: 0 = Apply in first year, 1 = Constant annuity 2020-25, 2 = Even allocation - NPV neutral
E150: Wastewater network plus revenue adjustment selector | F150: 0 | G150: 0 = Apply in first year, 1 = Constant annuity 2020-25, 2 = Even allocation - NPV neutral
E151: Dummy control revenue adjustment selector | F151: 0 | G151: 0 = Apply in first year, 1 = Constant annuity 2020-25, 2 = Even allocation - NPV neutral
E152: Residential retail revenue adjustment selector | F152: 2 | G152: 0 = Apply in first year, 1 = Constant annuity 2020-25, 2 = Even allocation - NPV neutral
E153: Business retail revenue adjustment selector | F153: 0 | G153: 0 = Apply in first year, 1 = Constant annuity 2020-25, 2 = Even allocation - NPV neutral
A156: E: NON CHANGEABLE MODEL TECHNICAL INPUTS
E158: Months per model period | F158: 12 | G158: months
E160: Months in a year | F160: 12 | G160: months
E162: Days in a year | F162: 365 | G162: days
E165: [Used in formula range - Do not delete]

Sheet Time
A1: =RIGHT(CELL("FILENAME", $A$1), LEN(CELL("FILENAME", $A$1)) - SEARCH("]", CELL("FILENAME", $A$1))) -> Time
E2: =Time!E$25 -> Model period ending | J2: =Time!J$25 -> 2013-03-31 | K2: =Time!K$25 -> 2014-03-31 | L2: =Time!L$25 -> 2015-03-31 | M2: =Time!M$25 -> 2016-03-31 | N2: =Time!N$25 -> 2017-03-31 | O2: =Time!O$25 -> 2018-03-31 | P2: =Time!P$25 -> 2019-03-31 | Q2: =Time!Q$25 -> 2020-03-31 | R2: =Time!R$25 -> 2021-03-31 | S2: =Time!S$25 -> 2022-03-31 | T2: =Time!T$25 -> 2023-03-31 | U2: =Time!U$25 -> 2024-03-31 | V2: =Time!V$25 -> 2025-03-31
E3: =Time!E$80 -> Timeline label | J3: =Time!J$80 -> Pre-Fcst | K3: =Time!K$80 -> Pre-Fcst | L3: =Time!L$80 -> Pre-Fcst | M3: =Time!M$80 -> Pre-Fcst | N3: =Time!N$80 -> Pre-Fcst | O3: =Time!O$80 -> Pre-Fcst | P3: =Time!P$80 -> Pre-Fcst | Q3: =Time!Q$80 -> Pre-Fcst | R3: =Time!R$80 -> Forecast | S3: =Time!S$80 -> Forecast | T3: =Time!T$80 -> Forecast | U3: =Time!U$80 -> Forecast | V3: =Time!V$80 -> Forecast
E4: =Time!E$103 -> Financial year ending | J4: =Time!J$103 -> 2013 | K4: =Time!K$103 -> 2014 | L4: =Time!L$103 -> 2015 | M4: =Time!M$103 -> 2016 | N4: =Time!N$103 -> 2017 | O4: =Time!O$103 -> 2018 | P4: =Time!P$103 -> 2019 | Q4: =Time!Q$103 -> 2020 | R4: =Time!R$103 -> 2021 | S4: =Time!S$103 -> 2022 | T4: =Time!T$103 -> 2023 | U4: =Time!U$103 -> 2024 | V4: =Time!V$103 -> 2025
E5: =Time!E$10 -> Model column counter | F5: Constant | G5: Unit | H5: Total | J5: =Time!J$10 -> 1 | K5: =Time!K$10 -> 2 | L5: =Time!L$10 -> 3 | M5: =Time!M$10 -> 4 | N5: =Time!N$10 -> 5 | O5: =Time!O$10 -> 6 | P5: =Time!P$10 -> 7 | Q5: =Time!Q$10 -> 8 | R5: =Time!R$10 -> 9 | S5: =Time!S$10 -> 10 | T5: =Time!T$10 -> 11 | U5: =Time!U$10 -> 12 | V5: =Time!V$10 -> 13
A7: MODEL PERIOD
B9: Model column counter
E10: Model column counter | G10: counter | J10: =I10 + 1 -> 1 | K10: 2 | L10: 3 | M10: 4 | N10: 5 | O10: 6 | P10: 7 | Q10: =P10 + 1 -> 8 | R10: =Q10 + 1 -> 9 | S10: =R10 + 1 -> 10 | T10: =S10 + 1 -> 11 | U10: =T10 + 1 -> 12 | V10: =U10 + 1 -> 13
E11: Model column total | F11: =MAX(J10:V10) -> 13 | G11: columns
E13: =E$10 -> Model column counter | F13: 0 | G13: counter | H13: 0 | I13: 0 | J13: 1 | K13: 2 | L13: 3 | M13: 4 | N13: 5 | O13: 6 | P13: 7 | Q13: 8 | R13: 9 | S13: 10 | T13: 11 | U13: 12 | V13: 13
E14: 1st model column flag | G14: flag | H14: =SUM(J14:V14) -> 1 | J14: =IF(J13 = 1, 1, 0) -> 1 | K14: 0 | L14: 0 | M14: 0 | N14: 0 | O14: 0 | P14: 0 | Q14: =IF(Q13 = 1, 1, 0) -> 0 | R14: 0 | S14: 0 | T14: 0 | U14: 0 | V14: 0
B16: Model period beginning
E17: =Inputs!E$13 -> 1st model column start date | F17: =Inputs!F$13 -> 2012-04-01 | G17: =Inputs!G$13 -> date
E18: =Inputs!E$158 -> Months per model period | F18: =Inputs!F$158 -> 12 | G18: =Inputs!G$158 -> months
E19: =E$14 -> 1st model column flag | F19: 0 | G19: flag | H19: 1 | I19: 0 | J19: 1 | K19: 0 | L19: 0 | M19: 0 | N19: 0 | O19: 0 | P19: 0 | Q19: 0 | R19: 0 | S19: 0 | T19: 0 | U19: 0 | V19: 0
E20: Model period beginning | G20: date | J20: =IF(J19 = 1, $F17, DATE(YEAR(I20), MONTH(I20) + $F18, DAY(1))) -> 2012-04-01 | K20: 2013-04-01 | L20: 2014-04-01 | M20: 2015-04-01 | N20: 2016-04-01 | O20: 2017-04-01 | P20: 2018-04-01 | Q20: =IF(Q19 = 1, $F17, DATE(YEAR(P20), MONTH(P20) + $F18, DAY(1))) -> 2019-04-01 | R20: =IF(R19 = 1, $F17, DATE(YEAR(Q20), MONTH(Q20) + $F18, DAY(1))) -> 2020-04-01 | S20: =IF(S19 = 1, $F17, DATE(YEAR(R20), MONTH(R20) + $F18, DAY(1))) -> 2021-04-01 | T20: =IF(T19 = 1, $F17, DATE(YEAR(S20), MONTH(S20) + $F18, DAY(1))) -> 2022-04-01 | U20: =IF(U19 = 1, $F17, DATE(YEAR(T20), MONTH(T20) + $F18, DAY(1))) -> 2023-04-01 | V20: =IF(V19 = 1, $F17, DATE(YEAR(U20), MONTH(U20) + $F18, DAY(1))) -> 2024-04-01
B22: Model period ending
E23: =Inputs!E$158 -> Months per model period | F23: =Inputs!F$158 -> 12 | G23: =Inputs!G$158 -> months
E24: =E$20 -> Model period beginning | F24: 00:00:00 | G24: date | H24: 00:00:00 | I24: 00:00:00 | J24: 2012-04-01 | K24: 2013-04-01 | L24: 2014-04-01 | M24: 2015-04-01 | N24: 2016-04-01 | O24: 2017-04-01 | P24: 2018-04-01 | Q24: 2019-04-01 | R24: 2020-04-01 | S24: 2021-04-01 | T24: 2022-04-01 | U24: 2023-04-01 | V24: 2024-04-01
E25: Model period ending | G25: date | J25: =DATE(YEAR(J24), MONTH(J24) + $F23, DAY(J24) - 1) -> 2013-03-31 | K25: 2014-03-31 | L25: 2015-03-31 | M25: 2016-03-31 | N25: 2017-03-31 | O25: 2018-03-31 | P25: 2019-03-31 | Q25: =DATE(YEAR(Q24), MONTH(Q24) + $F23, DAY(Q24) - 1) -> 2020-03-31 | R25: 2021-03-31 | S25: 2022-03-31 | T25: 2023-03-31 | U25: 2024-03-31 | V25: 2025-03-31
A28: FORECAST PERIOD
B30: Forecast start period flag
E31: =Inputs!E$26 -> Forecast start date | F31: =Inputs!F$26 -> 2020-04-01 | G31: =Inputs!G$26 -> date
E32: =E$20 -> Model period beginning | F32: 00:00:00 | G32: date | H32: 00:00:00 | I32: 00:00:00 | J32: 2012-04-01 | K32: 2013-04-01 | L32: 2014-04-01 | M32: 2015-04-01 | N32: 2016-04-01 | O32: 2017-04-01 | P32: 2018-04-01 | Q32: 2019-04-01 | R32: 2020-04-01 | S32: 2021-04-01 | T32: 2022-04-01 | U32: 2023-04-01 | V32: 2024-04-01
E33: =E$25 -> Model period ending | F33: 00:00:00 | G33: date | H33: 00:00:00 | I33: 00:00:00 | J33: 2013-03-31 | K33: 2014-03-31 | L33: 2015-03-31 | M33: 2016-03-31 | N33: 2017-03-31 | O33: 2018-03-31 | P33: 2019-03-31 | Q33: 2020-03-31 | R33: 2021-03-31 | S33: 2022-03-31 | T33: 2023-03-31 | U33: 2024-03-31 | V33: 2025-03-31
E34: Forecast start period flag | G34: flag | H34: =SUM(J34:V34) -> 1 | J34: =IF(AND($F31 >= J32, $F31 <= J33), 1, 0) -> 0 | K34: =IF(AND($F31 >= K32, $F31 <= K33), 1, 0) -> 0 | L34: 0 | M34: 0 | N34: 0 | O34: 0 | P34: 0 | Q34: =IF(AND($F31 >= Q32, $F31 <= Q33), 1, 0) -> 0 | R34: 1 | S34: 0 | T34: 0 | U34: 0 | V34: 0
B36: Forecast end period flag
E37: =Inputs!E$26 -> Forecast start date | F37: =Inputs!F$26 -> 2020-04-01 | G37: =Inputs!G$26 -> date
E38: =Inputs!E$27 -> Forecast duration | F38: =Inputs!F$27 -> 5 | G38: =Inputs!G$27 -> years
E39: Forecast end date | F39: =DATE(YEAR(F37) + F38, MONTH(F37), DAY(F37) - 1) -> 2025-03-31 | G39: date
E41: =E$39 -> Forecast end date | F41: =F$39 -> 2025-03-31 | G41: =G$39 -> date
E42: =E$20 -> Model period beginning | F42: 00:00:00 | G42: date | H42: 00:00:00 | I42: 00:00:00 | J42: 2012-04-01 | K42: 2013-04-01 | L42: 2014-04-01 | M42: 2015-04-01 | N42: 2016-04-01 | O42: 2017-04-01 | P42: 2018-04-01 | Q42: 2019-04-01 | R42: 2020-04-01 | S42: 2021-04-01 | T42: 2022-04-01 | U42: 2023-04-01 | V42: 2024-04-01
E43: =E$25 -> Model period ending | F43: 00:00:00 | G43: date | H43: 00:00:00 | I43: 00:00:00 | J43: 2013-03-31 | K43: 2014-03-31 | L43: 2015-03-31 | M43: 2016-03-31 | N43: 2017-03-31 | O43: 2018-03-31 | P43: 2019-03-31 | Q43: 2020-03-31 | R43: 2021-03-31 | S43: 2022-03-31 | T43: 2023-03-31 | U43: 2024-03-31 | V43: 2025-03-31
E44: Forecast end period flag | G44: flag | H44: =SUM(J44:V44) -> 1 | J44: =IF(AND($F41 >= J42, $F41 <= J43), 1, 0) -> 0 | K44: 0 | L44: 0 | M44: 0 | N44: 0 | O44: 0 | P44: 0 | Q44: =IF(AND($F41 >= Q42, $F41 <= Q43), 1, 0) -> 0 | R44: 0 | S44: 0 | T44: 0 | U44: 0 | V44: 1
B46: Forecast period flag
E47: =E$34 -> Forecast start period flag | F47: =F$34 -> 0 | G47: flag | H47: 1 | I47: 0 | J47: 0 | K47: 0 | L47: 0 | M47: 0 | N47: 0 | O47: 0 | P47: 0 | Q47: 0 | R47: 1 | S47: 0 | T47: 0 | U47: 0 | V47: 0
E48: =E$44 -> Forecast end period flag | F48: =F$44 -> 0 | G48: flag | H48: 1 | I48: 0 | J48: 0 | K48: 0 | L48: 0 | M48: 0 | N48: 0 | O48: 0 | P48: 0 | Q48: 0 | R48: 0 | S48: 0 | T48: 0 | U48: 0 | V48: 1
E49: Forecast period flag | G49: flag | H49: =SUM(J49:V49) -> 5 | J49: =J47 + I49 - I48 -> 0 | K49: =K47 + J49 - J48 -> 0 | L49: 0 | M49: 0 | N49: 0 | O49: 0 | P49: 0 | Q49: =Q47 + P49 - P48 -> 0 | R49: =R47 + Q49 - Q48 -> 1 | S49: =S47 + R49 - R48 -> 1 | T49: =T47 + S49 - S48 -> 1 | U49: =U47 + T49 - T48 -> 1 | V49: =V47 + U49 - U48 -> 1
E50: Total number of forecast periods | F50: =SUM(J49:V49) -> 5 | G50: periods
B52: Pre-forecast period flag
E53: =E$14 -> 1st model column flag | F53: =F$14 -> 0 | G53: flag | H53: 1 | I53: 0 | J53: 1 | K53: 0 | L53: 0 | M53: 0 | N53: 0 | O53: 0 | P53: 0 | Q53: 0 | R53: 0 | S53: 0 | T53: 0 | U53: 0 | V53: 0
E54: =E$34 -> Forecast start period flag | F54: =F$34 -> 0 | G54: flag | H54: 1 | I54: 0 | J54: 0 | K54: 0 | L54: 0 | M54: 0 | N54: 0 | O54: 0 | P54: 0 | Q54: 0 | R54: 1 | S54: 0 | T54: 0 | U54: 0 | V54: 0
E55: Pre-forecast period flag | G55: flag | H55: =SUM(J55:V55) -> 8 | J55: =J53 + I55 - J54 -> 1 | K55: =K53 + J55 - K54 -> 1 | L55: 1 | M55: 1 | N55: 1 | O55: 1 | P55: 1 | Q55: =Q53 + P55 - Q54 -> 1 | R55: =R53 + Q55 - R54 -> 0 | S55: =S53 + R55 - S54 -> 0 | T55: =T53 + S55 - T54 -> 0 | U55: =U53 + T55 - U54 -> 0 | V55: =V53 + U55 - V54 -> 0
E56: Pre-forecast period flag - total | F56: =SUM(J55:V55) -> 8 | G56: periods
B58: First post-forecast period flag
E59: =E$44 -> Forecast end period flag | F59: =F$44 -> 0 | G59: flag | H59: 1 | I59: 0 | J59: 0 | K59: 0 | L59: 0 | M59: 0 | N59: 0 | O59: 0 | P59: 0 | Q59: 0 | R59: 0 | S59: 0 | T59: 0 | U59: 0 | V59: 1
E60: First post-forecast period flag | G60: flag | H60: =SUM(J60:V60) -> 0 | J60: =I59 -> 0 | K60: =J59 -> 0 | L60: 0 | M60: 0 | N60: 0 | O60: 0 | P60: 0 | Q60: =P59 -> 0 | R60: =Q59 -> 0 | S60: =R59 -> 0 | T60: =S59 -> 0 | U60: =T59 -> 0 | V60: =U59 -> 0
B62: Post-forecast period flag
E63: =E$60 -> First post-forecast period flag | F63: 0 | G63: flag | H63: 0 | I63: 0 | J63: 0 | K63: 0 | L63: 0 | M63: 0 | N63: 0 | O63: 0 | P63: 0 | Q63: 0 | R63: 0 | S63: 0 | T63: 0 | U63: 0 | V63: 0
E64: Post-forecast period flag | G64: flag | H64: =SUM(J64:V64) -> 0 | J64: =J63 + I64 -> 0 | K64: =K63 + J64 -> 0 | L64: 0 | M64: 0 | N64: 0 | O64: 0 | P64: 0 | Q64: =Q63 + P64 -> 0 | R64: =R63 + Q64 -> 0 | S64: =S63 + R64 -> 0 | T64: =T63 + S64 -> 0 | U64: =U63 + T64 -> 0 | V64: =V63 + U64 -> 0
E65: Post-forecast period - total | F65: =SUM(J64:V64) -> 0 | G65: periods
A68: MODEL TIMELINE
B70: Timeline label
E71: =E$14 -> 1st model column flag | F71: 0 | G71: flag | H71: 1 | I71: 0 | J71: 1 | K71: 0 | L71: 0 | M71: 0 | N71: 0 | O71: 0 | P71: 0 | Q71: 0 | R71: 0 | S71: 0 | T71: 0 | U71: 0 | V71: 0
E72: =E$34 -> Forecast start period flag | F72: =F$34 -> 0 | G72: flag | H72: 1 | I72: 0 | J72: 0 | K72: 0 | L72: 0 | M72: 0 | N72: 0 | O72: 0 | P72: 0 | Q72: 0 | R72: 1 | S72: 0 | T72: 0 | U72: 0 | V72: 0
E73: =E$60 -> First post-forecast period flag | F73: 0 | G73: flag | H73: 0 | I73: 0 | J73: 0 | K73: 0 | L73: 0 | M73: 0 | N73: 0 | O73: 0 | P73: 0 | Q73: 0 | R73: 0 | S73: 0 | T73: 0 | U73: 0 | V73: 0
E74: Timeline label counter | G74: counter | J74: =I74 + SUM(J71:J73) -> 1 | K74: 1 | L74: 1 | M74: 1 | N74: 1 | O74: 1 | P74: 1 | Q74: =P74 + SUM(Q71:Q73) -> 1 | R74: =Q74 + SUM(R71:R73) -> 2 | S74: =R74 + SUM(S71:S73) -> 2 | T74: =S74 + SUM(T71:T73) -> 2 | U74: =T74 + SUM(U71:U73) -> 2 | V74: =U74 + SUM(V71:V73) -> 2
E76: =Inputs!E$20 -> Pre - forecast period | F76: =Inputs!F$20 -> Pre-Fcst | G76: =Inputs!G$20 -> label
E77: =Inputs!E$21 -> Forecast period | F77: =Inputs!F$21 -> Forecast | G77: =Inputs!G$21 -> label
E78: =Inputs!E$22 -> Post - forecast period | F78: =Inputs!F$22 -> Post-Fcst | G78: =Inputs!G$22 -> label
E79: =E$74 -> Timeline label counter | F79: 0 | G79: counter | H79: 0 | I79: 0 | J79: 1 | K79: 1 | L79: 1 | M79: 1 | N79: 1 | O79: 1 | P79: 1 | Q79: 1 | R79: 2 | S79: 2 | T79: 2 | U79: 2 | V79: 2
E80: Timeline label | G80: label | J80: =INDEX($F76:$F78, J79) -> Pre-Fcst | K80: Pre-Fcst | L80: Pre-Fcst | M80: Pre-Fcst | N80: Pre-Fcst | O80: Pre-Fcst | P80: Pre-Fcst | Q80: =INDEX($F76:$F78, Q79) -> Pre-Fcst | R80: Forecast | S80: Forecast | T80: Forecast | U80: Forecast | V80: Forecast
B82: Modelling period check
E83: =E$55 -> Pre-forecast period flag | F83: =F$55 -> 0 | G83: flag | H83: 8 | I83: 0 | J83: 1 | K83: 1 | L83: 1 | M83: 1 | N83: 1 | O83: 1 | P83: 1 | Q83: 1 | R83: 0 | S83: 0 | T83: 0 | U83: 0 | V83: 0
E84: =E$49 -> Forecast period flag | F84: =F$49 -> 0 | G84: flag | H84: 5 | I84: 0 | J84: 0 | K84: 0 | L84: 0 | M84: 0 | N84: 0 | O84: 0 | P84: 0 | Q84: 0 | R84: 1 | S84: 1 | T84: 1 | U84: 1 | V84: 1
E85: =E$64 -> Post-forecast period flag | F85: 0 | G85: flag | H85: 0 | I85: 0 | J85: 0 | K85: 0 | L85: 0 | M85: 0 | N85: 0 | O85: 0 | P85: 0 | Q85: 0 | R85: 0 | S85: 0 | T85: 0 | U85: 0 | V85: 0
E86: No. of overlapping in flags | G86: # | H86: =SUM(J86:V86) -> 0 | J86: =MAX(0, SUM(J83:J85) - 1) -> 0 | K86: 0 | L86: 0 | M86: 0 | N86: 0 | O86: 0 | P86: 0 | Q86: =MAX(0, SUM(Q83:Q85) - 1) -> 0 | R86: 0 | S86: 0 | T86: 0 | U86: 0 | V86: 0
E87: Overlapping in periods - total | F87: =SUM(J86:V86) -> 0 | G87: periods
E89: =E$11 -> Model column total | F89: =F$11 -> 13 | G89: =G$11 -> columns
E90: =E$87 -> Overlapping in periods - total | F90: =F$87 -> 0 | G90: =G$87 -> periods
E91: =E$56 -> Pre-forecast period flag - total | F91: =F$56 -> 8 | G91: =G$56 -> periods
E92: =E$50 -> Total number of forecast periods | F92: =F$50 -> 5 | G92: =G$50 -> periods
E93: =E$65 -> Post-forecast period - total | F93: =F$65 -> 0 | G93: =G$65 -> periods
E94: Modelling period check | F94: =IF(SUM(F89:F90) - SUM(F91:F93) <> 0, 1, 0) -> 0 | G94: check
A97: FINANCIAL YEAR
E99: =Inputs!E$16 -> First modelling column financial year# | F99: =Inputs!F$16 -> 2013 | G99: =Inputs!G$16 -> year #
E100: =Inputs!E$17 -> Financial year end month number | F100: =Inputs!F$17 -> 3 | G100: =Inputs!G$17 -> month #
E101: =E$25 -> Model period ending | F101: 00:00:00 | G101: date | H101: 00:00:00 | I101: 00:00:00 | J101: 2013-03-31 | K101: 2014-03-31 | L101: 2015-03-31 | M101: 2016-03-31 | N101: 2017-03-31 | O101: 2018-03-31 | P101: 2019-03-31 | Q101: 2020-03-31 | R101: 2021-03-31 | S101: 2022-03-31 | T101: 2023-03-31 | U101: 2024-03-31 | V101: 2025-03-31
E102: =E$14 -> 1st model column flag | F102: 0 | G102: flag | H102: 1 | I102: 0 | J102: 1 | K102: 0 | L102: 0 | M102: 0 | N102: 0 | O102: 0 | P102: 0 | Q102: 0 | R102: 0 | S102: 0 | T102: 0 | U102: 0 | V102: 0
E103: Financial year ending | G103: year # | J103: =IF(J102 = 1, $F99, IF(J101 > (DATE(I103, $F100 + 1, 1) - 1), I103 + 1, I103)) -> 2013 | K103: 2014 | L103: 2015 | M103: 2016 | N103: 2017 | O103: 2018 | P103: 2019 | Q103: =IF(Q102 = 1, $F99, IF(Q101 > (DATE(P103, $F100 + 1, 1) - 1), P103 + 1, P103)) -> 2020 | R103: =IF(R102 = 1, $F99, IF(R101 > (DATE(Q103, $F100 + 1, 1) - 1), Q103 + 1, Q103)) -> 2021 | S103: =IF(S102 = 1, $F99, IF(S101 > (DATE(R103, $F100 + 1, 1) - 1), R103 + 1, R103)) -> 2022 | T103: =IF(T102 = 1, $F99, IF(T101 > (DATE(S103, $F100 + 1, 1) - 1), S103 + 1, S103)) -> 2023 | U103: =IF(U102 = 1, $F99, IF(U101 > (DATE(T103, $F100 + 1, 1) - 1), T103 + 1, T103)) -> 2024 | V103: =IF(V102 = 1, $F99, IF(V101 > (DATE(U103, $F100 + 1, 1) - 1), U103 + 1, U103)) -> 2025

Sheet Indexation
A1: =RIGHT(CELL("filename", $A$1), LEN(CELL("filename", $A$1)) - SEARCH("]", CELL("filename", $A$1))) -> Indexation
E2: =Time!E$25 -> Model period ending | J2: =Time!J$25 -> 2013-03-31 | K2: =Time!K$25 -> 2014-03-31 | L2: =Time!L$25 -> 2015-03-31 | M2: =Time!M$25 -> 2016-03-31 | N2: =Time!N$25 -> 2017-03-31 | O2: =Time!O$25 -> 2018-03-31 | P2: =Time!P$25 -> 2019-03-31 | Q2: =Time!Q$25 -> 2020-03-31 | R2: =Time!R$25 -> 2021-03-31 | S2: =Time!S$25 -> 2022-03-31 | T2: =Time!T$25 -> 2023-03-31 | U2: =Time!U$25 -> 2024-03-31 | V2: =Time!V$25 -> 2025-03-31
E3: =Time!E$80 -> Timeline label | J3: =Time!J$80 -> Pre-Fcst | K3: =Time!K$80 -> Pre-Fcst | L3: =Time!L$80 -> Pre-Fcst | M3: =Time!M$80 -> Pre-Fcst | N3: =Time!N$80 -> Pre-Fcst | O3: =Time!O$80 -> Pre-Fcst | P3: =Time!P$80 -> Pre-Fcst | Q3: =Time!Q$80 -> Pre-Fcst | R3: =Time!R$80 -> Forecast | S3: =Time!S$80 -> Forecast | T3: =Time!T$80 -> Forecast | U3: =Time!U$80 -> Forecast | V3: =Time!V$80 -> Forecast
E4: =Time!E$103 -> Financial year ending | J4: =Time!J$103 -> 2013 | K4: =Time!K$103 -> 2014 | L4: =Time!L$103 -> 2015 | M4: =Time!M$103 -> 2016 | N4: =Time!N$103 -> 2017 | O4: =Time!O$103 -> 2018 | P4: =Time!P$103 -> 2019 | Q4: =Time!Q$103 -> 2020 | R4: =Time!R$103 -> 2021 | S4: =Time!S$103 -> 2022 | T4: =Time!T$103 -> 2023 | U4: =Time!U$103 -> 2024 | V4: =Time!V$103 -> 2025
E5: =Time!E$10 -> Model column counter | F5: Constant | G5: Unit | H5: Total | J5: =Time!J$10 -> 1 | K5: =Time!K$10 -> 2 | L5: =Time!L$10 -> 3 | M5: =Time!M$10 -> 4 | N5: =Time!N$10 -> 5 | O5: =Time!O$10 -> 6 | P5: =Time!P$10 -> 7 | Q5: =Time!Q$10 -> 8 | R5: =Time!R$10 -> 9 | S5: =Time!S$10 -> 10 | T5: =Time!T$10 -> 11 | U5: =Time!U$10 -> 12 | V5: =Time!V$10 -> 13
A7: CPIH INDEXATION
B9: CPIH: Index value series
E10: =Inputs!E$35 -> Consumer Price Index for April | F10: =Inputs!F$35 -> 0 | G10: =Inputs!G$35 -> index | H10: =Inputs!H$35 -> 0 | I10: =Inputs!I$35 -> 0 | J10: =Inputs!J$35 -> 95.9 | K10: =Inputs!K$35 -> 98 | L10: =Inputs!L$35 -> 99.6 | M10: =Inputs!M$35 -> 99.9 | N10: =Inputs!N$35 -> 100.6 | O10: =Inputs!O$35 -> 103.2 | P10: =Inputs!P$35 -> 105.7542 | Q10: =Inputs!Q$35 -> 107.9750382 | R10: =Inputs!R$35 -> 110.2155202 | S10: =Inputs!S$35 -> 112.4473845 | T10: =Inputs!T$35 -> 114.6963322 | U10: =Inputs!U$35 -> 116.9902589 | V10: =Inputs!V$35 -> 119.330064
E11: =Inputs!E$36 -> Consumer Price Index for May | F11: =Inputs!F$36 -> 0 | G11: =Inputs!G$36 -> index | H11: =Inputs!H$36 -> 0 | I11: =Inputs!I$36 -> 0 | J11: =Inputs!J$36 -> 95.9 | K11: =Inputs!K$36 -> 98.2 | L11: =Inputs!L$36 -> 99.6 | M11: =Inputs!M$36 -> 100.1 | N11: =Inputs!N$36 -> 100.8 | O11: =Inputs!O$36 -> 103.5 | P11: =Inputs!P$36 -> 106.061625 | Q11: =Inputs!Q$36 -> 108.2889191 | R11: =Inputs!R$36 -> 110.5359142 | S11: =Inputs!S$36 -> 112.7742665 | T11: =Inputs!T$36 -> 115.0297518 | U11: =Inputs!U$36 -> 117.3303468 | V11: =Inputs!V$36 -> 119.6769538
E12: =Inputs!E$37 -> Consumer Price Index for June | F12: =Inputs!F$37 -> 0 | G12: =Inputs!G$37 -> index | H12: =Inputs!H$37 -> 0 | I12: =Inputs!I$37 -> 0 | J12: =Inputs!J$37 -> 95.6 | K12: =Inputs!K$37 -> 98 | L12: =Inputs!L$37 -> 99.8 | M12: =Inputs!M$37 -> 100.1 | N12: =Inputs!N$37 -> 101 | O12: =Inputs!O$37 -> 103.5 | P12: =Inputs!P$37 -> 106.061625 | Q12: =Inputs!Q$37 -> 108.2889191 | R12: =Inputs!R$37 -> 110.5359142 | S12: =Inputs!S$37 -> 112.7742665 | T12: =Inputs!T$37 -> 115.0297518 | U12: =Inputs!U$37 -> 117.3303468 | V12: =Inputs!V$37 -> 119.6769538
E13: =Inputs!E$38 -> Consumer Price Index for July | F13: =Inputs!F$38 -> 0 | G13: =Inputs!G$38 -> index | H13: =Inputs!H$38 -> 0 | I13: =Inputs!I$38 -> 0 | J13: =Inputs!J$38 -> 95.7 | K13: =Inputs!K$38 -> 98 | L13: =Inputs!L$38 -> 99.6 | M13: =Inputs!M$38 -> 100 | N13: =Inputs!N$38 -> 100.9 | O13: =Inputs!O$38 -> 103.5 | P13: =Inputs!P$38 -> 106.061625 | Q13: =Inputs!Q$38 -> 108.2889191 | R13: =Inputs!R$38 -> 110.5359142 | S13: =Inputs!S$38 -> 112.7742665 | T13: =Inputs!T$38 -> 115.0297518 | U13: =Inputs!U$38 -> 117.3303468 | V13: =Inputs!V$38 -> 119.6769538
E14: =Inputs!E$39 -> Consumer Price Index for August | F14: =Inputs!F$39 -> 0 | G14: =Inputs!G$39 -> index | H14: =Inputs!H$39 -> 0 | I14: =Inputs!I$39 -> 0 | J14: =Inputs!J$39 -> 96.1 | K14: =Inputs!K$39 -> 98.4 | L14: =Inputs!L$39 -> 99.9 | M14: =Inputs!M$39 -> 100.3 | N14: =Inputs!N$39 -> 101.2 | O14: =Inputs!O$39 -> 104 | P14: =Inputs!P$39 -> 106.574 | Q14: =Inputs!Q$39 -> 108.812054 | R14: =Inputs!R$39 -> 111.0699041 | S14: =Inputs!S$39 -> 113.3190697 | T14: =Inputs!T$39 -> 115.5854511 | U14: =Inputs!U$39 -> 117.8971601 | V14: =Inputs!V$39 -> 120.2551033
E15: =Inputs!E$40 -> Consumer Price Index for September | F15: =Inputs!F$40 -> 0 | G15: =Inputs!G$40 -> index | H15: =Inputs!H$40 -> 0 | I15: =Inputs!I$40 -> 0 | J15: =Inputs!J$40 -> 96.4 | K15: =Inputs!K$40 -> 98.7 | L15: =Inputs!L$40 -> 100 | M15: =Inputs!M$40 -> 100.2 | N15: =Inputs!N$40 -> 101.5 | O15: =Inputs!O$40 -> 104.3 | P15: =Inputs!P$40 -> 106.881425 | Q15: =Inputs!Q$40 -> 109.1259349 | R15: =Inputs!R$40 -> 111.3902981 | S15: =Inputs!S$40 -> 113.6459516 | T15: =Inputs!T$40 -> 115.9188706 | U15: =Inputs!U$40 -> 118.2372481 | V15: =Inputs!V$40 -> 120.601993
E16: =Inputs!E$41 -> Consumer Price Index for October | F16: =Inputs!F$41 -> 0 | G16: =Inputs!G$41 -> index | H16: =Inputs!H$41 -> 0 | I16: =Inputs!I$41 -> 0 | J16: =Inputs!J$41 -> 96.8 | K16: =Inputs!K$41 -> 98.8 | L16: =Inputs!L$41 -> 100.1 | M16: =Inputs!M$41 -> 100.3 | N16: =Inputs!N$41 -> 101.6 | O16: =Inputs!O$41 -> 104.4 | P16: =Inputs!P$41 -> 106.9839 | Q16: =Inputs!Q$41 -> 109.2305619 | R16: =Inputs!R$41 -> 111.4970961 | S16: =Inputs!S$41 -> 113.7549123 | T16: =Inputs!T$41 -> 116.0300105 | U16: =Inputs!U$41 -> 118.3506107 | V16: =Inputs!V$41 -> 120.7176229
E17: =Inputs!E$42 -> Consumer Price Index for November | F17: =Inputs!F$42 -> 0 | G17: =Inputs!G$42 -> index | H17: =Inputs!H$42 -> 0 | I17: =Inputs!I$42 -> 0 | J17: =Inputs!J$42 -> 97 | K17: =Inputs!K$42 -> 98.8 | L17: =Inputs!L$42 -> 99.9 | M17: =Inputs!M$42 -> 100.3 | N17: =Inputs!N$42 -> 101.8 | O17: =Inputs!O$42 -> 104.7 | P17: =Inputs!P$42 -> 107.291325 | Q17: =Inputs!Q$42 -> 109.5444428 | R17: =Inputs!R$42 -> 111.81749 | S17: =Inputs!S$42 -> 114.0817942 | T17: =Inputs!T$42 -> 116.3634301 | U17: =Inputs!U$42 -> 118.6906987 | V17: =Inputs!V$42 -> 121.0645126
E18: =Inputs!E$43 -> Consumer Price Index for December | F18: =Inputs!F$43 -> 0 | G18: =Inputs!G$43 -> index | H18: =Inputs!H$43 -> 0 | I18: =Inputs!I$43 -> 0 | J18: =Inputs!J$43 -> 97.3 | K18: =Inputs!K$43 -> 99.2 | L18: =Inputs!L$43 -> 99.9 | M18: =Inputs!M$43 -> 100.4 | N18: =Inputs!N$43 -> 102.2 | O18: =Inputs!O$43 -> 105 | P18: =Inputs!P$43 -> 107.59875 | Q18: =Inputs!Q$43 -> 109.8583237 | R18: =Inputs!R$43 -> 112.137884 | S18: =Inputs!S$43 -> 114.4086761 | T18: =Inputs!T$43 -> 116.6968496 | U18: =Inputs!U$43 -> 119.0307866 | V18: =Inputs!V$43 -> 121.4114024
E19: =Inputs!E$44 -> Consumer Price Index for January | F19: =Inputs!F$44 -> 0 | G19: =Inputs!G$44 -> index | H19: =Inputs!H$44 -> 0 | I19: =Inputs!I$44 -> 0 | J19: =Inputs!J$44 -> 97 | K19: =Inputs!K$44 -> 98.7 | L19: =Inputs!L$44 -> 99.2 | M19: =Inputs!M$44 -> 99.9 | N19: =Inputs!N$44 -> 101.8 | O19: =Inputs!O$44 -> 104.5 | P19: =Inputs!P$44 -> 107.086375 | Q19: =Inputs!Q$44 -> 109.3351889 | R19: =Inputs!R$44 -> 111.603894 | S19: =Inputs!S$44 -> 113.8638729 | T19: =Inputs!T$44 -> 116.1411504 | U19: =Inputs!U$44 -> 118.4639734 | V19: =Inputs!V$44 -> 120.8332528
E20: =Inputs!E$45 -> Consumer Price Index for February | F20: =Inputs!F$45 -> 0 | G20: =Inputs!G$45 -> index | H20: =Inputs!H$45 -> 0 | I20: =Inputs!I$45 -> 0 | J20: =Inputs!J$45 -> 97.5 | K20: =Inputs!K$45 -> 99.1 | L20: =Inputs!L$45 -> 99.5 | M20: =Inputs!M$45 -> 100.1 | N20: =Inputs!N$45 -> 102.4 | O20: =Inputs!O$45 -> 104.9 | P20: =Inputs!P$45 -> 107.496275 | Q20: =Inputs!Q$45 -> 109.7536968 | R20: =Inputs!R$45 -> 112.031086 | S20: =Inputs!S$45 -> 114.2997155 | T20: =Inputs!T$45 -> 116.5857098 | U20: =Inputs!U$45 -> 118.917424 | V20: =Inputs!V$45 -> 121.2957725
E21: =Inputs!E$46 -> Consumer Price Index for March | F21: =Inputs!F$46 -> 0 | G21: =Inputs!G$46 -> index | H21: =Inputs!H$46 -> 0 | I21: =Inputs!I$46 -> 0 | J21: =Inputs!J$46 -> 97.8 | K21: =Inputs!K$46 -> 99.3 | L21: =Inputs!L$46 -> 99.6 | M21: =Inputs!M$46 -> 100.4 | N21: =Inputs!N$46 -> 102.7 | O21: =Inputs!O$46 -> 105.1 | P21: =Inputs!P$46 -> 107.701225 | Q21: =Inputs!Q$46 -> 109.9629507 | R21: =Inputs!R$46 -> 112.244682 | S21: =Inputs!S$46 -> 114.5176368 | T21: =Inputs!T$46 -> 116.8079895 | U21: =Inputs!U$46 -> 119.1441493 | V21: =Inputs!V$46 -> 121.5270323
E23: =Inputs!E$48 -> CPIH: Assumed percentage increase for unpopulated monthly values | F23: =Inputs!F$48 -> 0 | G23: =Inputs!G$48 -> % | H23: =Inputs!H$48 -> 0 | I23: =Inputs!I$48 -> 0 | J23: =Inputs!J$48 -> 0 | K23: =Inputs!K$48 -> 0 | L23: =Inputs!L$48 -> 0 | M23: =Inputs!M$48 -> 0 | N23: =Inputs!N$48 -> 0 | O23: =Inputs!O$48 -> 0 | P23: =Inputs!P$48 -> 0 | Q23: =Inputs!Q$48 -> 0 | R23: =Inputs!R$48 -> 0 | S23: =Inputs!S$48 -> 0 | T23: =Inputs!T$48 -> 0 | U23: =Inputs!U$48 -> 0 | V23: =Inputs!V$48 -> 0
E25: CPIH: April - index | G25: index | J25: =IF(J10 > 0, J10, I25 * (1 + J$23)) -> 95.9 | K25: =IF(K10 > 0, K10, J25 * (1 + K$23)) -> 98 | L25: 99.6 | M25: 99.9 | N25: 100.6 | O25: 103.2 | P25: 105.7542 | Q25: =IF(Q10 > 0, Q10, P25 * (1 + Q$23)) -> 107.9750382 | R25: =IF(R10 > 0, R10, Q25 * (1 + R$23)) -> 110.2155202 | S25: =IF(S10 > 0, S10, R25 * (1 + S$23)) -> 112.4473845 | T25: =IF(T10 > 0, T10, S25 * (1 + T$23)) -> 114.6963322 | U25: =IF(U10 > 0, U10, T25 * (1 + U$23)) -> 116.9902589 | V25: =IF(V10 > 0, V10, U25 * (1 + V$23)) -> 119.330064
E26: CPIH: May - index | G26: index | J26: =IF(J11 > 0, J11, I26 * (1 + J$23)) -> 95.9 | K26: 98.2 | L26: 99.6 | M26: 100.1 | N26: 100.8 | O26: 103.5 | P26: 106.061625 | Q26: 108.2889191 | R26: 110.5359142 | S26: 112.7742665 | T26: 115.0297518 | U26: 117.3303468 | V26: 119.6769538
E27: CPIH: June - index | G27: index | J27: 95.6 | K27: 98 | L27: 99.8 | M27: 100.1 | N27: 101 | O27: 103.5 | P27: 106.061625 | Q27: 108.2889191 | R27: 110.5359142 | S27: 112.7742665 | T27: 115.0297518 | U27: 117.3303468 | V27: 119.6769538
E28: CPIH: July - index | G28: index | J28: 95.7 | K28: 98 | L28: 99.6 | M28: 100 | N28: 100.9 | O28: 103.5 | P28: 106.061625 | Q28: 108.2889191 | R28: 110.5359142 | S28: 112.7742665 | T28: 115.0297518 | U28: 117.3303468 | V28: 119.6769538
E29: CPIH: August - index | G29: index | J29: 96.1 | K29: 98.4 | L29: 99.9 | M29: 100.3 | N29: 101.2 | O29: 104 | P29: 106.574 | Q29: 108.812054 | R29: 111.0699041 | S29: 113.3190697 | T29: 115.5854511 | U29: 117.8971601 | V29: 120.2551033
E30: CPIH: September- index | G30: index | J30: 96.4 | K30: 98.7 | L30: 100 | M30: 100.2 | N30: 101.5 | O30: 104.3 | P30: 106.881425 | Q30: 109.1259349 | R30: 111.3902981 | S30: 113.6459516 | T30: 115.9188706 | U30: 118.2372481 | V30: 120.601993
E31: CPIH: October - index | G31: index | J31: 96.8 | K31: 98.8 | L31: 100.1 | M31: 100.3 | N31: 101.6 | O31: 104.4 | P31: 106.9839 | Q31: 109.2305619 | R31: 111.4970961 | S31: 113.7549123 | T31: 116.0300105 | U31: 118.3506107 | V31: 120.7176229
E32: CPIH: November - index | G32: index | J32: 97 | K32: 98.8 | L32: 99.9 | M32: 100.3 | N32: 101.8 | O32: 104.7 | P32: 107.291325 | Q32: 109.5444428 | R32: 111.81749 | S32: 114.0817942 | T32: 116.3634301 | U32: 118.6906987 | V32: 121.0645126
E33: CPIH: December - index | G33: index | J33: 97.3 | K33: 99.2 | L33: 99.9 | M33: 100.4 | N33: 102.2 | O33: 105 | P33: 107.59875 | Q33: 109.8583237 | R33: 112.137884 | S33: 114.4086761 | T33: 116.6968496 | U33: 119.0307866 | V33: 121.4114024
E34: CPIH: January - index | G34: index | J34: 97 | K34: 98.7 | L34: 99.2 | M34: 99.9 | N34: 101.8 | O34: 104.5 | P34: 107.086375 | Q34: 109.3351889 | R34: 111.603894 | S34: 113.8638729 | T34: 116.1411504 | U34: 118.4639734 | V34: 120.8332528
E35: CPIH: February - index | G35: index | J35: 97.5 | K35: 99.1 | L35: 99.5 | M35: 100.1 | N35: 102.4 | O35: 104.9 | P35: 107.496275 | Q35: 109.7536968 | R35: 112.031086 | S35: 114.2997155 | T35: 116.5857098 | U35: 118.917424 | V35: 121.2957725
E36: CPIH: March - index | G36: index | J36: 97.8 | K36: 99.3 | L36: 99.6 | M36: 100.4 | N36: 102.7 | O36: 105.1 | P36: 107.701225 | Q36: 109.9629507 | R36: 112.244682 | S36: 114.5176368 | T36: 116.8079895 | U36: 119.1441493 | V36: 121.5270323
E38: CPIH: Financial year average - index | G38: index | J38: =AVERAGE(J25:J36) -> 96.58333333 | K38: 98.6 | L38: 99.725 | M38: 100.1666667 | N38: 101.5416667 | O38: 104.2166667 | P38: 106.7960292 | Q38: =AVERAGE(Q25:Q36) -> 109.0387458 | R38: 111.3012998 | S38: 113.5551511 | T38: 115.8262541 | U38: 118.1427792 | V38: 120.5056348
A41: RPI INDEXATION
B43: RPI: Index value series
E44: =Inputs!E$52 -> Retail Price Index for April | F44: =Inputs!F$52 -> 0 | G44: =Inputs!G$52 -> index | H44: =Inputs!H$52 -> 0 | I44: =Inputs!I$52 -> 0 | J44: =Inputs!J$52 -> 242.5 | K44: =Inputs!K$52 -> 249.5 | L44: =Inputs!L$52 -> 255.7 | M44: =Inputs!M$52 -> 258 | N44: =Inputs!N$52 -> 261.4 | O44: =Inputs!O$52 -> 270.6 | P44: =Inputs!P$52 -> 279.73275 | Q44: =Inputs!Q$52 -> 288.1247325 | R44: =Inputs!R$52 -> 296.8405057 | S44: =Inputs!S$52 -> 306.0425613 | T44: =Inputs!T$52 -> 315.2238382 | U44: =Inputs!U$52 -> 324.6805533 | V44: =Inputs!V$52 -> 334.4209699
E45: =Inputs!E$53 -> Retail Price Index for May | F45: =Inputs!F$53 -> 0 | G45: =Inputs!G$53 -> index | H45: =Inputs!H$53 -> 0 | I45: =Inputs!I$53 -> 0 | J45: =Inputs!J$53 -> 242.4 | K45: =Inputs!K$53 -> 250 | L45: =Inputs!L$53 -> 255.9 | M45: =Inputs!M$53 -> 258.5 | N45: =Inputs!N$53 -> 262.1 | O45: =Inputs!O$53 -> 271.7 | P45: =Inputs!P$53 -> 280.869875 | Q45: =Inputs!Q$53 -> 289.2959712 | R45: =Inputs!R$53 -> 298.0471744 | S45: =Inputs!S$53 -> 307.2866368 | T45: =Inputs!T$53 -> 316.5052359 | U45: =Inputs!U$53 -> 326.000393 | V45: =Inputs!V$53 -> 335.7804048
E46: =Inputs!E$54 -> Retail Price Index for June | F46: =Inputs!F$54 -> 0 | G46: =Inputs!G$54 -> index | H46: =Inputs!H$54 -> 0 | I46: =Inputs!I$54 -> 0 | J46: =Inputs!J$54 -> 241.8 | K46: =Inputs!K$54 -> 249.7 | L46: =Inputs!L$54 -> 256.3 | M46: =Inputs!M$54 -> 258.9 | N46: =Inputs!N$54 -> 263.1 | O46: =Inputs!O$54 -> 272.3 | P46: =Inputs!P$54 -> 281.490125 | Q46: =Inputs!Q$54 -> 289.9348288 | R46: =Inputs!R$54 -> 298.7053573 | S46: =Inputs!S$54 -> 307.9652234 | T46: =Inputs!T$54 -> 317.2041801 | U46: =Inputs!U$54 -> 326.7203055 | V46: =Inputs!V$54 -> 336.5219147
E47: =Inputs!E$55 -> Retail Price Index for July | F47: =Inputs!F$55 -> 0 | G47: =Inputs!G$55 -> index | H47: =Inputs!H$55 -> 0 | I47: =Inputs!I$55 -> 0 | J47: =Inputs!J$55 -> 242.1 | K47: =Inputs!K$55 -> 249.7 | L47: =Inputs!L$55 -> 256 | M47: =Inputs!M$55 -> 258.6 | N47: =Inputs!N$55 -> 263.4 | O47: =Inputs!O$55 -> 272.9 | P47: =Inputs!P$55 -> 282.110375 | Q47: =Inputs!Q$55 -> 290.5736862 | R47: =Inputs!R$55 -> 299.3635403 | S47: =Inputs!S$55 -> 308.64381 | T47: =Inputs!T$55 -> 317.9031243 | U47: =Inputs!U$55 -> 327.440218 | V47: =Inputs!V$55 -> 337.2634246
E48: =Inputs!E$56 -> Retail Price Index for August | F48: =Inputs!F$56 -> 0 | G48: =Inputs!G$56 -> index | H48: =Inputs!H$56 -> 0 | I48: =Inputs!I$56 -> 0 | J48: =Inputs!J$56 -> 243 | K48: =Inputs!K$56 -> 251 | L48: =Inputs!L$56 -> 257 | M48: =Inputs!M$56 -> 259.8 | N48: =Inputs!N$56 -> 264.4 | O48: =Inputs!O$56 -> 274.7 | P48: =Inputs!P$56 -> 283.971125 | Q48: =Inputs!Q$56 -> 292.4902587 | R48: =Inputs!R$56 -> 301.3380891 | S48: =Inputs!S$56 -> 310.6795698 | T48: =Inputs!T$56 -> 319.9999569 | U48: =Inputs!U$56 -> 329.5999556 | V48: =Inputs!V$56 -> 339.4879543
E49: =Inputs!E$57 -> Retail Price Index for September | F49: =Inputs!F$57 -> 0 | G49: =Inputs!G$57 -> index | H49: =Inputs!H$57 -> 0 | I49: =Inputs!I$57 -> 0 | J49: =Inputs!J$57 -> 244.2 | K49: =Inputs!K$57 -> 251.9 | L49: =Inputs!L$57 -> 257.6 | M49: =Inputs!M$57 -> 259.6 | N49: =Inputs!N$57 -> 264.9 | O49: =Inputs!O$57 -> 275.1 | P49: =Inputs!P$57 -> 284.384625 | Q49: =Inputs!Q$57 -> 292.9161638 | R49: =Inputs!R$57 -> 301.7768777 | S49: =Inputs!S$57 -> 311.1319609 | T49: =Inputs!T$57 -> 320.4659197 | U49: =Inputs!U$57 -> 330.0798973 | V49: =Inputs!V$57 -> 339.9822943
E50: =Inputs!E$58 -> Retail Price Index for October | F50: =Inputs!F$58 -> 0 | G50: =Inputs!G$58 -> index | H50: =Inputs!H$58 -> 0 | I50: =Inputs!I$58 -> 0 | J50: =Inputs!J$58 -> 245.6 | K50: =Inputs!K$58 -> 251.9 | L50: =Inputs!L$58 -> 257.7 | M50: =Inputs!M$58 -> 259.5 | N50: =Inputs!N$58 -> 264.8 | O50: =Inputs!O$58 -> 275.3 | P50: =Inputs!P$58 -> 284.591375 | Q50: =Inputs!Q$58 -> 293.1291162 | R50: =Inputs!R$58 -> 301.996272 | S50: =Inputs!S$58 -> 311.3581564 | T50: =Inputs!T$58 -> 320.6989011 | U50: =Inputs!U$58 -> 330.3198682 | V50: =Inputs!V$58 -> 340.2294642
E51: =Inputs!E$59 -> Retail Price Index for November | F51: =Inputs!F$59 -> 0 | G51: =Inputs!G$59 -> index | H51: =Inputs!H$59 -> 0 | I51: =Inputs!I$59 -> 0 | J51: =Inputs!J$59 -> 245.6 | K51: =Inputs!K$59 -> 252.1 | L51: =Inputs!L$59 -> 257.1 | M51: =Inputs!M$59 -> 259.8 | N51: =Inputs!N$59 -> 265.5 | O51: =Inputs!O$59 -> 275.8 | P51: =Inputs!P$59 -> 285.10825 | Q51: =Inputs!Q$59 -> 293.6614975 | R51: =Inputs!R$59 -> 302.5447578 | S51: =Inputs!S$59 -> 311.9236453 | T51: =Inputs!T$59 -> 321.2813546 | U51: =Inputs!U$59 -> 330.9197953 | V51: =Inputs!V$59 -> 340.8473891
E52: =Inputs!E$60 -> Retail Price Index for December | F52: =Inputs!F$60 -> 0 | G52: =Inputs!G$60 -> index | H52: =Inputs!H$60 -> 0 | I52: =Inputs!I$60 -> 0 | J52: =Inputs!J$60 -> 246.8 | K52: =Inputs!K$60 -> 253.4 | L52: =Inputs!L$60 -> 257.5 | M52: =Inputs!M$60 -> 260.6 | N52: =Inputs!N$60 -> 267.1 | O52: =Inputs!O$60 -> 278.1 | P52: =Inputs!P$60 -> 287.485875 | Q52: =Inputs!Q$60 -> 296.1104513 | R52: =Inputs!R$60 -> 305.0677924 | S52: =Inputs!S$60 -> 314.524894 | T52: =Inputs!T$60 -> 323.9606408 | U52: =Inputs!U$60 -> 333.67946 | V52: =Inputs!V$60 -> 343.6898438
E53: =Inputs!E$61 -> Retail Price Index for January | F53: =Inputs!F$61 -> 0 | G53: =Inputs!G$61 -> index | H53: =Inputs!H$61 -> 0 | I53: =Inputs!I$61 -> 0 | J53: =Inputs!J$61 -> 245.8 | K53: =Inputs!K$61 -> 252.6 | L53: =Inputs!L$61 -> 255.4 | M53: =Inputs!M$61 -> 258.8 | N53: =Inputs!N$61 -> 265.5 | O53: =Inputs!O$61 -> 276 | P53: =Inputs!P$61 -> 285.315 | Q53: =Inputs!Q$61 -> 293.87445 | R53: =Inputs!R$61 -> 302.7641521 | S53: =Inputs!S$61 -> 312.1498408 | T53: =Inputs!T$61 -> 321.5143361 | U53: =Inputs!U$61 -> 331.1597661 | V53: =Inputs!V$61 -> 341.0945591
E54: =Inputs!E$62 -> Retail Price Index for February | F54: =Inputs!F$62 -> 0 | G54: =Inputs!G$62 -> index | H54: =Inputs!H$62 -> 0 | I54: =Inputs!I$62 -> 0 | J54: =Inputs!J$62 -> 247.6 | K54: =Inputs!K$62 -> 254.2 | L54: =Inputs!L$62 -> 256.7 | M54: =Inputs!M$62 -> 260 | N54: =Inputs!N$62 -> 268.4 | O54: =Inputs!O$62 -> 278.1 | P54: =Inputs!P$62 -> 287.485875 | Q54: =Inputs!Q$62 -> 296.1104513 | R54: =Inputs!R$62 -> 305.0677924 | S54: =Inputs!S$62 -> 314.524894 | T54: =Inputs!T$62 -> 323.9606408 | U54: =Inputs!U$62 -> 333.67946 | V54: =Inputs!V$62 -> 343.6898438
E55: =Inputs!E$63 -> Retail Price Index for March | F55: =Inputs!F$63 -> 0 | G55: =Inputs!G$63 -> index | H55: =Inputs!H$63 -> 0 | I55: =Inputs!I$63 -> 0 | J55: =Inputs!J$63 -> 248.7 | K55: =Inputs!K$63 -> 254.8 | L55: =Inputs!L$63 -> 257.1 | M55: =Inputs!M$63 -> 261.1 | N55: =Inputs!N$63 -> 269.3 | O55: =Inputs!O$63 -> 278.3 | P55: =Inputs!P$63 -> 287.692625 | Q55: =Inputs!Q$63 -> 296.3234038 | R55: =Inputs!R$63 -> 305.2871867 | S55: =Inputs!S$63 -> 314.7510895 | T55: =Inputs!T$63 -> 324.1936222 | U55: =Inputs!U$63 -> 333.9194309 | V55: =Inputs!V$63 -> 343.9370138
E57: =Inputs!E$65 -> RPI: Assumed percentage increase for unpopulated monthly values | F57: =Inputs!F$65 -> 0 | G57: =Inputs!G$65 -> % | H57: =Inputs!H$65 -> 0 | I57: =Inputs!I$65 -> 0 | J57: =Inputs!J$65 -> 0 | K57: =Inputs!K$65 -> 0 | L57: =Inputs!L$65 -> 0 | M57: =Inputs!M$65 -> 0 | N57: =Inputs!N$65 -> 0 | O57: =Inputs!O$65 -> 0 | P57: =Inputs!P$65 -> 0 | Q57: =Inputs!Q$65 -> 0 | R57: =Inputs!R$65 -> 0 | S57: =Inputs!S$65 -> 0 | T57: =Inputs!T$65 -> 0 | U57: =Inputs!U$65 -> 0 | V57: =Inputs!V$65 -> 0
E59: RPI: April - index | G59: index | J59: =IF(J44 > 0, J44, I59 * (1 + J$57)) -> 242.5 | K59: =IF(K44 > 0, K44, J59 * (1 + K$57)) -> 249.5 | L59: 255.7 | M59: 258 | N59: 261.4 | O59: 270.6 | P59: 279.73275 | Q59: =IF(Q44 > 0, Q44, P59 * (1 + Q$57)) -> 288.1247325 | R59: =IF(R44 > 0, R44, Q59 * (1 + R$57)) -> 296.8405057 | S59: =IF(S44 > 0, S44, R59 * (1 + S$57)) -> 306.0425613 | T59: =IF(T44 > 0, T44, S59 * (1 + T$57)) -> 315.2238382 | U59: =IF(U44 > 0, U44, T59 * (1 + U$57)) -> 324.6805533 | V59: =IF(V44 > 0, V44, U59 * (1 + V$57)) -> 334.4209699
E60: RPI: May - index | G60: index | J60: =IF(J45 > 0, J45, I60 * (1 + J$57)) -> 242.4 | K60: 250 | L60: 255.9 | M60: 258.5 | N60: 262.1 | O60: 271.7 | P60: 280.869875 | Q60: 289.2959712 | R60: 298.0471744 | S60: 307.2866368 | T60: 316.5052359 | U60: 326.000393 | V60: 335.7804048
E61: RPI: June - index | G61: index | J61: =IF(J46 > 0, J46, I61 * (1 + J$57)) -> 241.8 | K61: 249.7 | L61: 256.3 | M61: 258.9 | N61: 263.1 | O61: 272.3 | P61: 281.490125 | Q61: 289.9348288 | R61: 298.7053573 | S61: 307.9652234 | T61: 317.2041801 | U61: 326.7203055 | V61: 336.5219147
E62: RPI: July - index | G62: index | J62: =IF(J47 > 0, J47, I62 * (1 + J$57)) -> 242.1 | K62: 249.7 | L62: 256 | M62: 258.6 | N62: 263.4 | O62: 272.9 | P62: 282.110375 | Q62: 290.5736862 | R62: 299.3635403 | S62: 308.64381 | T62: 317.9031243 | U62: 327.440218 | V62: 337.2634246
E63: RPI: August - index | G63: index | J63: =IF(J48 > 0, J48, I63 * (1 + J$57)) -> 243 | K63: 251 | L63: 257 | M63: 259.8 | N63: 264.4 | O63: 274.7 | P63: 283.971125 | Q63: 292.4902587 | R63: 301.3380891 | S63: 310.6795698 | T63: 319.9999569 | U63: 329.5999556 | V63: 339.4879543
E64: RPI: September- index | G64: index | J64: =IF(J49 > 0, J49, I64 * (1 + J$57)) -> 244.2 | K64: 251.9 | L64: 257.6 | M64: 259.6 | N64: 264.9 | O64: 275.1 | P64: 284.384625 | Q64: 292.9161638 | R64: 301.7768777 | S64: 311.1319609 | T64: 320.4659197 | U64: 330.0798973 | V64: 339.9822943
E65: RPI: October - index | G65: index | J65: =IF(J50 > 0, J50, I65 * (1 + J$57)) -> 245.6 | K65: 251.9 | L65: 257.7 | M65: 259.5 | N65: 264.8 | O65: 275.3 | P65: 284.591375 | Q65: 293.1291162 | R65: 301.996272 | S65: 311.3581564 | T65: 320.6989011 | U65: 330.3198682 | V65: 340.2294642
E66: RPI: November - index | G66: index | J66: =IF(J51 > 0, J51, I66 * (1 + J$57)) -> 245.6 | K66: 252.1 | L66: 257.1 | M66: 259.8 | N66: 265.5 | O66: 275.8 | P66: 285.10825 | Q66: 293.6614975 | R66: 302.5447578 | S66: 311.9236453 | T66: 321.2813546 | U66: 330.9197953 | V66: 340.8473891
E67: RPI: December - index | G67: index | J67: =IF(J52 > 0, J52, I67 * (1 + J$57)) -> 246.8 | K67: 253.4 | L67: 257.5 | M67: 260.6 | N67: 267.1 | O67: 278.1 | P67: 287.485875 | Q67: 296.1104513 | R67: 305.0677924 | S67: 314.524894 | T67: 323.9606408 | U67: 333.67946 | V67: 343.6898438
E68: RPI: January - index | G68: index | J68: =IF(J53 > 0, J53, I68 * (1 + J$57)) -> 245.8 | K68: 252.6 | L68: 255.4 | M68: 258.8 | N68: 265.5 | O68: 276 | P68: 285.315 | Q68: 293.87445 | R68: 302.7641521 | S68: 312.1498408 | T68: 321.5143361 | U68: 331.1597661 | V68: 341.0945591
E69: RPI: February - index | G69: index | J69: =IF(J54 > 0, J54, I69 * (1 + J$57)) -> 247.6 | K69: 254.2 | L69: 256.7 | M69: 260 | N69: 268.4 | O69: 278.1 | P69: 287.485875 | Q69: 296.1104513 | R69: 305.0677924 | S69: 314.524894 | T69: 323.9606408 | U69: 333.67946 | V69: 343.6898438
E70: RPI: March - index | G70: index | J70: =IF(J55 > 0, J55, I70 * (1 + J$57)) -> 248.7 | K70: 254.8 | L70: 257.1 | M70: 261.1 | N70: 269.3 | O70: 278.3 | P70: 287.692625 | Q70: 296.3234038 | R70: 305.2871867 | S70: 314.7510895 | T70: 324.1936222 | U70: 333.9194309 | V70: 343.9370138
E72: RPI: Financial year average - index | G72: index | J72: =AVERAGE(J59:J70) -> 244.675 | K72: 251.7333333 | L72: 256.6666667 | M72: 259.4333333 | N72: 264.9916667 | O72: 274.9083333 | P72: 284.1864896 | Q72: =AVERAGE(Q59:Q70) -> 292.7120843 | R72: 301.5666248 | S72: 310.9151902 | T72: 320.2426459 | U72: 329.8499253 | V72: 339.745423
A75: INFLATION
B77: ="Inflation from " & F78 & " FYA to " & F79 & " FYE - RPI" -> Inflation from 2013 FYA to 2020 FYE - RPI
E78: =Inputs!E$69 -> Year reference for FYA base price 1 | F78: =Inputs!F$69 -> 2013 | G78: =Inputs!G$69 -> year #
E79: =Inputs!E$73 -> Year reference for FYE end price | F79: =Inputs!F$73 -> 2020 | G79: =Inputs!G$73 -> year #
E80: =E$72 -> RPI: Financial year average - index | F80: 0 | G80: index | H80: 0 | I80: 0 | J80: 244.675 | K80: 251.7333333 | L80: 256.6666667 | M80: 259.4333333 | N80: 264.9916667 | O80: 274.9083333 | P80: 284.1864896 | Q80: 292.7120843 | R80: 301.5666248 | S80: 310.9151902 | T80: 320.2426459 | U80: 329.8499253 | V80: 339.745423
E81: =E$70 -> RPI: March - index | F81: 0 | G81: index | H81: 0 | I81: 0 | J81: 248.7 | K81: 254.8 | L81: 257.1 | M81: 261.1 | N81: 269.3 | O81: 278.3 | P81: 287.692625 | Q81: 296.3234038 | R81: 305.2871867 | S81: 314.7510895 | T81: 324.1936222 | U81: 333.9194309 | V81: 343.9370138
E82: ="RPI inflate from " & F78 & " FYA to " & F79 & " FYE" -> RPI inflate from 2013 FYA to 2020 FYE | F82: =INDEX($J81:$V81, 1, MATCH($F79,$J$4:$V$4)) / INDEX($J80:$V80, 1, MATCH($F78,$J$4:$V$4)) -> 1.211089828 | G82: factor
B84: ="Inflation from " & F85 & " FYA to " & F86 & " FYE - RPI" -> Inflation from 2018 FYA to 2020 FYE - RPI
E85: =Inputs!E$70 -> Year reference for FYA base price 2 | F85: =Inputs!F$70 -> 2018 | G85: =Inputs!G$70 -> year #
E86: =Inputs!E$73 -> Year reference for FYE end price | F86: =Inputs!F$73 -> 2020 | G86: =Inputs!G$73 -> year #
E87: =E$72 -> RPI: Financial year average - index | F87: 0 | G87: index | H87: 0 | I87: 0 | J87: 244.675 | K87: 251.7333333 | L87: 256.6666667 | M87: 259.4333333 | N87: 264.9916667 | O87: 274.9083333 | P87: 284.1864896 | Q87: 292.7120843 | R87: 301.5666248 | S87: 310.9151902 | T87: 320.2426459 | U87: 329.8499253 | V87: 339.745423
E88: =E$70 -> RPI: March - index | F88: 0 | G88: index | H88: 0 | I88: 0 | J88: 248.7 | K88: 254.8 | L88: 257.1 | M88: 261.1 | N88: 269.3 | O88: 278.3 | P88: 287.692625 | Q88: 296.3234038 | R88: 305.2871867 | S88: 314.7510895 | T88: 324.1936222 | U88: 333.9194309 | V88: 343.9370138
E89: ="RPI inflate from " & F85 & " FYA to " & F86 & " FYE" -> RPI inflate from 2018 FYA to 2020 FYE | F89: =INDEX($J88:$V88, 1, MATCH($F86,$J$4:$V$4)) / INDEX($J87:$V87, 1, MATCH($F85,$J$4:$V$4)) -> 1.07789895 | G89: factor
B91: ="Inflation from " & F92 & " FYE to " & F93 & " FYE - RPI" -> Inflation from 2020 FYE to 2020 FYE - RPI
E92: =Inputs!E$71 -> Year reference for FYE base price 1 | F92: =Inputs!F$71 -> 2020 | G92: =Inputs!G$71 -> year #
E93: =Inputs!E$73 -> Year reference for FYE end price | F93: =Inputs!F$73 -> 2020 | G93: =Inputs!G$73 -> year #
E94: =E$70 -> RPI: March - index | F94: 0 | G94: index | H94: 0 | I94: 0 | J94: 248.7 | K94: 254.8 | L94: 257.1 | M94: 261.1 | N94: 269.3 | O94: 278.3 | P94: 287.692625 | Q94: 296.3234038 | R94: 305.2871867 | S94: 314.7510895 | T94: 324.1936222 | U94: 333.9194309 | V94: 343.9370138
E95: ="RPI inflate from " & F92 & " FYE to " & F93 & " FYE" -> RPI inflate from 2020 FYE to 2020 FYE | F95: =INDEX($J94:$V94, 1, MATCH($F93,$J$4:$V$4)) / INDEX($J94:$V94, 1, MATCH($F92,$J$4:$V$4)) -> 1 | G95: factor
B97: ="Inflation from November " & F98 & " FYE to " & F99 & " FYE - RPI" -> Inflation from November 2019 FYE to 2020 FYE - RPI
E98: =Inputs!E$72 -> Year reference for FYE base price 2 | F98: =Inputs!F$72 -> 2019 | G98: =Inputs!G$72 -> year #
E99: =Inputs!E$73 -> Year reference for FYE end price | F99: =Inputs!F$73 -> 2020 | G99: =Inputs!G$73 -> year #
E100: =E$66 -> RPI: November - index | F100: 0 | G100: index | H100: 0 | I100: 0 | J100: 245.6 | K100: 252.1 | L100: 257.1 | M100: 259.8 | N100: 265.5 | O100: 275.8 | P100: 285.10825 | Q100: 293.6614975 | R100: 302.5447578 | S100: 311.9236453 | T100: 321.2813546 | U100: 330.9197953 | V100: 340.8473891
E101: =E$70 -> RPI: March - index | F101: 0 | G101: index | H101: 0 | I101: 0 | J101: 248.7 | K101: 254.8 | L101: 257.1 | M101: 261.1 | N101: 269.3 | O101: 278.3 | P101: 287.692625 | Q101: 296.3234038 | R101: 305.2871867 | S101: 314.7510895 | T101: 324.1936222 | U101: 333.9194309 | V101: 343.9370138
E102: ="RPI inflate from November " & F98 & " FYE to " & F99 & " FYE" -> RPI inflate from November 2019 FYE to 2020 FYE | F102: =INDEX($J101:$V101, 1, MATCH($F99,$J$4:$V$4)) / INDEX($J100:$V100, 1, MATCH($F98,$J$4:$V$4)) -> 1.039336476 | G102: factor
A105: DEFLATION
E107: =Inputs!E$77 -> Year reference for FYE base price | F107: =Inputs!F$77 -> 2020 | G107: =Inputs!G$77 -> year #
E108: =Inputs!E$78 -> Year reference for FYA end price | F108: =Inputs!F$78 -> 2018 | G108: =Inputs!G$78 -> year #
E109: =E$36 -> CPIH: March - index | F109: =F$36 -> 0 | G109: index | H109: 0 | I109: 0 | J109: 97.8 | K109: 99.3 | L109: 99.6 | M109: 100.4 | N109: 102.7 | O109: 105.1 | P109: 107.701225 | Q109: 109.9629507 | R109: 112.244682 | S109: 114.5176368 | T109: 116.8079895 | U109: 119.1441493 | V109: 121.5270323
E110: =E$38 -> CPIH: Financial year average - index | F110: 0 | G110: index | H110: 0 | I110: 0 | J110: 96.58333333 | K110: 98.6 | L110: 99.725 | M110: 100.1666667 | N110: 101.5416667 | O110: 104.2166667 | P110: 106.7960292 | Q110: 109.0387458 | R110: 111.3012998 | S110: 113.5551511 | T110: 115.8262541 | U110: 118.1427792 | V110: 120.5056348
E111: ="CPIH deflate from " & F107 & " FYE to " & F108 & " FYA" -> CPIH deflate from 2020 FYE to 2018 FYA | F111: =INDEX($J110:$V110, 1, MATCH($F108,$J$4:$V$4)) / INDEX($J109:$V109, 1, MATCH($F107,$J$4:$V$4)) -> 0.9477434534 | G111: factor

Sheet Calc
A1: =RIGHT(CELL("filename", $A$1), LEN(CELL("filename", $A$1)) - SEARCH("]", CELL("filename", $A$1))) -> Calc
E2: =Time!E$25 -> Model period ending | J2: =Time!J$25 -> 2013-03-31 | K2: =Time!K$25 -> 2014-03-31 | L2: =Time!L$25 -> 2015-03-31 | M2: =Time!M$25 -> 2016-03-31 | N2: =Time!N$25 -> 2017-03-31 | O2: =Time!O$25 -> 2018-03-31 | P2: =Time!P$25 -> 2019-03-31 | Q2: =Time!Q$25 -> 2020-03-31 | R2: =Time!R$25 -> 2021-03-31 | S2: =Time!S$25 -> 2022-03-31 | T2: =Time!T$25 -> 2023-03-31 | U2: =Time!U$25 -> 2024-03-31 | V2: =Time!V$25 -> 2025-03-31
E3: =Time!E$80 -> Timeline label | J3: =Time!J$80 -> Pre-Fcst | K3: =Time!K$80 -> Pre-Fcst | L3: =Time!L$80 -> Pre-Fcst | M3: =Time!M$80 -> Pre-Fcst | N3: =Time!N$80 -> Pre-Fcst | O3: =Time!O$80 -> Pre-Fcst | P3: =Time!P$80 -> Pre-Fcst | Q3: =Time!Q$80 -> Pre-Fcst | R3: =Time!R$80 -> Forecast | S3: =Time!S$80 -> Forecast | T3: =Time!T$80 -> Forecast | U3: =Time!U$80 -> Forecast | V3: =Time!V$80 -> Forecast
E4: =Time!E$103 -> Financial year ending | J4: =Time!J$103 -> 2013 | K4: =Time!K$103 -> 2014 | L4: =Time!L$103 -> 2015 | M4: =Time!M$103 -> 2016 | N4: =Time!N$103 -> 2017 | O4: =Time!O$103 -> 2018 | P4: =Time!P$103 -> 2019 | Q4: =Time!Q$103 -> 2020 | R4: =Time!R$103 -> 2021 | S4: =Time!S$103 -> 2022 | T4: =Time!T$103 -> 2023 | U4: =Time!U$103 -> 2024 | V4: =Time!V$103 -> 2025
E5: =Time!E$10 -> Model column counter | F5: Constant | G5: Unit | H5: Total | J5: =Time!J$10 -> 1 | K5: =Time!K$10 -> 2 | L5: =Time!L$10 -> 3 | M5: =Time!M$10 -> 4 | N5: =Time!N$10 -> 5 | O5: =Time!O$10 -> 6 | P5: =Time!P$10 -> 7 | Q5: =Time!Q$10 -> 8 | R5: =Time!R$10 -> 9 | S5: =Time!S$10 -> 10 | T5: =Time!T$10 -> 11 | U5: =Time!U$10 -> 12 | V5: =Time!V$10 -> 13
A7: WATER SERVICES INPUTS INFLATION
D9: Water resources
E10: =Inputs!E$86 -> Net performance payment / (penalty) applied to revenue for in-period ODI adjustments ~ Water resources | F10: =Inputs!F$86 -> 0 | G10: =Inputs!G$86 -> £m
E11: =Inputs!E$87 -> Net performance payment / (penalty) applied to revenue for end of period ODI adjustments ~ Water resources | F11: =Inputs!F$87 -> 0 | G11: =Inputs!G$87 -> £m
E13: =Indexation!E$82 -> RPI inflate from 2013 FYA to 2020 FYE | F13: =Indexation!F$82 -> 1.211089828 | G13: =Indexation!G$82 -> factor
E15: =E10 & " at 2020 FYE price base" -> Net performance payment / (penalty) applied to revenue for in-period ODI adjustments ~ Water resources at 2020 FYE price base | F15: =F10 * F$13 -> 0 | G15: £m
E16: =E11 & " at 2020 FYE price base" -> Net performance payment / (penalty) applied to revenue for end of period ODI adjustments ~ Water resources at 2020 FYE price base | F16: =F11 * F$13 -> 0 | G16: £m
E18: =Inputs!E$88 -> Total value of export incentive to be paid to water resources at PR19 | F18: =Inputs!F$88 -> 0 | G18: =Inputs!G$88 -> £m
E19: =Inputs!E$89 -> Total value of import incentive - water resources | F19: =Inputs!F$89 -> 0 | G19: =Inputs!G$89 -> £m
E21: =Indexation!E$89 -> RPI inflate from 2018 FYA to 2020 FYE | F21: =Indexation!F$89 -> 1.07789895 | G21: =Indexation!G$89 -> factor
E23: Water trading total value of export incentive ~ Water resources at 2020 FYE price base | F23: =F18 * F$21 -> 0 | G23: £m
E24: Water trading total value of import incentive ~ Water resources at 2020 FYE price base | F24: =F19 * F$21 -> 0 | G24: £m
B26: Water network plus
E27: =Inputs!E$92 -> Further 2010-15 reconciliation total adjustment carry forward to PR19 ~ Water network plus | F27: =Inputs!F$92 -> -0.05457111223 | G27: =Inputs!G$92 -> £m
E28: =Inputs!E$93 -> Net performance payment / (penalty) applied to revenue for in-period ODI adjustments ~ Water network plus | F28: =Inputs!F$93 -> 0 | G28: =Inputs!G$93 -> £m
E29: =Inputs!E$94 -> Net performance payment / (penalty) applied to revenue for end of period ODI adjustments ~ Water network plus | F29: =Inputs!F$94 -> 2.9205353 | G29: =Inputs!G$94 -> £m
E30: =Inputs!E$95 -> Water: revenue adjustment from totex menu model | F30: =Inputs!F$95 -> -0.3151302696 | G30: =Inputs!G$95 -> £m
E32: =Indexation!E$82 -> RPI inflate from 2013 FYA to 2020 FYE | F32: =Indexation!F$82 -> 1.211089828 | G32: =Indexation!G$82 -> factor
E34: =E27 & " at 2020 FYE price base" -> Further 2010-15 reconciliation total adjustment carry forward to PR19 ~ Water network plus at 2020 FYE price base | F34: =F27 * F$32 -> -0.06609051895 | G34: £m
E35: =E28 & " at 2020 FYE price base" -> Net performance payment / (penalty) applied to revenue for in-period ODI adjustments ~ Water network plus at 2020 FYE price base | F35: =F28 * F$32 -> 0 | G35: £m
E36: =E29 & " at 2020 FYE price base" -> Net performance payment / (penalty) applied to revenue for end of period ODI adjustments ~ Water network plus at 2020 FYE price base | F36: =F29 * F$32 -> 3.537030595 | G36: £m
E37: ="Totex menu revenue adjustment ~ Water network plus " & " at 2020 FYE price base" -> Totex menu revenue adjustment ~ Water network plus at 2020 FYE price base | F37: =F30 * F$32 -> -0.3816510642 | G37: £m
E39: =Inputs!E$96 -> Total value of export incentive to be paid to water network plus at PR19 | F39: =Inputs!F$96 -> 0 | G39: =Inputs!G$96 -> £m
E40: =Inputs!E$97 -> Total value of import incentive - water network plus | F40: =Inputs!F$97 -> 0 | G40: =Inputs!G$97 -> £m
E41: =Inputs!E$98 -> WRFIM total reward / (penalty) at end of AMP6 ~ Water | F41: =Inputs!F$98 -> -1.912046686 | G41: =Inputs!G$98 -> £m
E43: =Indexation!E$89 -> RPI inflate from 2018 FYA to 2020 FYE | F43: =Indexation!F$89 -> 1.07789895 | G43: =Indexation!G$89 -> factor
E44: =Indexation!E$102 -> RPI inflate from November 2019 FYE to 2020 FYE | F44: =Indexation!F$102 -> 1.039336476 | G44: =Indexation!G$102 -> factor
E46: Water trading total value of export incentive - Water network plus at 2020 FYE price base | F46: =F39 * F$43 -> 0 | G46: £m
E47: Water trading total value of import incentive - Water network plus at 2020 FYE price base | F47: =F40 * F$43 -> 0 | G47: £m
E48: WRFIM total reward / (penalty) at the end of AMP6 ~ Water network plus at 2020 FYE price base | F48: =F41 * F$44 -> -1.987259864 | G48: £m
A51: WASTEWATER SERVICES INPUTS INFLATION
B53: Bioresources
E54: =Inputs!E$103 -> Net performance payment / (penalty) applied to revenue for in-period ODI adjustments ~ Bioresources | F54: =Inputs!F$103 -> 0 | G54: =Inputs!G$103 -> £m
E55: =Inputs!E$104 -> Net performance payment / (penalty) applied to revenue for end of period ODI adjustments ~ Bioresources | F55: =Inputs!F$104 -> 0 | G55: =Inputs!G$104 -> £m
E57: =Indexation!E$82 -> RPI inflate from 2013 FYA to 2020 FYE | F57: =Indexation!F$82 -> 1.211089828 | G57: =Indexation!G$82 -> factor
E59: =E54 & " at 2020 FYE price base" -> Net performance payment / (penalty) applied to revenue for in-period ODI adjustments ~ Bioresources at 2020 FYE price base | F59: =F54 * F$57 -> 0 | G59: £m
E60: =E55 & " at 2020 FYE price base" -> Net performance payment / (penalty) applied to revenue for end of period ODI adjustments ~ Bioresources at 2020 FYE price base | F60: =F55 * F$57 -> 0 | G60: £m
B62: Wastewater network plus
E63: =Inputs!E$107 -> Further 2010-15 reconciliation total adjustment carry forward to PR19 ~ Wastewater network plus | F63: =Inputs!F$107 -> 0 | G63: =Inputs!G$107 -> £m
E64: =Inputs!E$108 -> Net performance payment / (penalty) applied to revenue for in-period ODI adjustments ~ Wastewater network plus | F64: =Inputs!F$108 -> 0 | G64: =Inputs!G$108 -> £m
E65: =Inputs!E$109 -> Net performance payment / (penalty) applied to revenue for end of period ODI adjustments ~ Wastewater network plus | F65: =Inputs!F$109 -> 0 | G65: =Inputs!G$109 -> £m
E66: =Inputs!E$110 -> Wastewater: revenue adjustment from totex menu model | F66: =Inputs!F$110 -> 0 | G66: =Inputs!G$110 -> £m
E68: =Indexation!E$82 -> RPI inflate from 2013 FYA to 2020 FYE | F68: =Indexation!F$82 -> 1.211089828 | G68: =Indexation!G$82 -> factor
E70: =E63 & " at 2020 FYE price base" -> Further 2010-15 reconciliation total adjustment carry forward to PR19 ~ Wastewater network plus at 2020 FYE price base | F70: =F63 * F$68 -> 0 | G70: £m
E71: =E64 & " at 2020 FYE price base" -> Net performance payment / (penalty) applied to revenue for in-period ODI adjustments ~ Wastewater network plus at 2020 FYE price base | F71: =F64 * F$68 -> 0 | G71: £m
E72: =E65 & " at 2020 FYE price base" -> Net performance payment / (penalty) applied to revenue for end of period ODI adjustments ~ Wastewater network plus at 2020 FYE price base | F72: =F65 * F$68 -> 0 | G72: £m
E73: =E66 & " at 2020 FYE price base" -> Wastewater: revenue adjustment from totex menu model at 2020 FYE price base | F73: =F66 * F$68 -> 0 | G73: £m
E75: =Inputs!E$111 -> WRFIM total reward / (penalty) at the end of AMP6 ~ Wastewater | F75: =Inputs!F$111 -> 0 | G75: =Inputs!G$111 -> £m
E76: =Indexation!E$102 -> RPI inflate from November 2019 FYE to 2020 FYE | F76: =Indexation!F$102 -> 1.039336476 | G76: =Indexation!G$102 -> factor
E78: WRFIM total reward / (penalty) at the end of AMP6 ~ Wastewater network plus at 2020 FYE price base | F78: =F75 * F76 -> 0 | G78: £m
B80: Dummy control
E81: =Inputs!E$114 -> Dummy: revenue adjustment from totex menu model | F81: =Inputs!F$114 -> 0 | G81: =Inputs!G$114 -> £m
E83: =Indexation!E$82 -> RPI inflate from 2013 FYA to 2020 FYE | F83: =Indexation!F$82 -> 1.211089828 | G83: =Indexation!G$82 -> factor
E85: =E81 & " at 2020 FYE price base" -> Dummy: revenue adjustment from totex menu model at 2020 FYE price base | F85: =F81 * F$83 -> 0 | G85: £m
A89: RESIDENTIAL RETAIL INPUTS INFLATION
E91: =Inputs!E$118 -> Net performance payment / (penalty) applied to revenue for in-period ODI adjustments ~ Residential retail | F91: =Inputs!F$118 -> 0 | G91: =Inputs!G$118 -> £m
E92: =Inputs!E$119 -> Net performance payment / (penalty) applied to revenue for end of period ODI adjustments ~ Residential retail | F92: =Inputs!F$119 -> 0 | G92: =Inputs!G$119 -> £m
E93: =Inputs!E$120 -> Residential retail revenue adjustment at end of AMP6 | F93: =Inputs!F$120 -> 1.057202673 | G93: =Inputs!G$120 -> £m
E94: =Inputs!E$121 -> SIM forecast revenue adjustment | F94: =Inputs!F$121 -> 2.387585772 | G94: =Inputs!G$121 -> £m
E96: =Indexation!E$82 -> RPI inflate from 2013 FYA to 2020 FYE | F96: =Indexation!F$82 -> 1.211089828 | G96: =Indexation!G$82 -> factor
E97: =Indexation!E$95 -> RPI inflate from 2020 FYE to 2020 FYE | F97: =Indexation!F$95 -> 1 | G97: =Indexation!G$95 -> factor
E98: =Indexation!E$89 -> RPI inflate from 2018 FYA to 2020 FYE | F98: =Indexation!F$89 -> 1.07789895 | G98: =Indexation!G$89 -> factor
E100: =E91 & " at 2020 FYE price base" -> Net performance payment / (penalty) applied to revenue for in-period ODI adjustments ~ Residential retail at 2020 FYE price base | F100: =F91 * F$96 -> 0 | G100: £m
E101: Net performance payment / (penalty) applied to revenue for end of period ODI adjustments ~ Residential retail at 2020 FYE price base | F101: =F92 * F$96 -> 0 | G101: £m
E102: =E93 & " at 2020 FYE price base" -> Residential retail revenue adjustment at end of AMP6 at 2020 FYE price base | F102: =F93 * F97 -> 1.057202673 | G102: £m
E103: =E94 & " at 2020 FYE price base" -> SIM forecast revenue adjustment at 2020 FYE price base | F103: =F94 * F98 -> 2.573576196 | G103: £m
A106: BUSINESS RETAIL INPUTS INFLATION
E108: =Inputs!E$125 -> Net performance payment / (penalty) applied to revenue for in-period ODI adjustments ~ Business retail | F108: =Inputs!F$125 -> 0 | G108: =Inputs!G$125 -> £m
E109: =Inputs!E$126 -> Net performance payment / (penalty) applied to revenue for end of period ODI adjustments ~ Business retail | F109: =Inputs!F$126 -> 0 | G109: =Inputs!G$126 -> £m
E111: =Indexation!E$82 -> RPI inflate from 2013 FYA to 2020 FYE | F111: =Indexation!F$82 -> 1.211089828 | G111: =Indexation!G$82 -> factor
E113: =E108 & " at 2020 FYE price base" -> Net performance payment / (penalty) applied to revenue for in-period ODI adjustments ~ Business retail at 2020 FYE price base | F113: =F108 * F$111 -> 0 | G113: £m
E114: =E109 & " at 2020 FYE price base" -> Net performance payment / (penalty) applied to revenue for end of period ODI adjustments ~ Business retail at 2020 FYE price base | F114: =F109 * F$111 -> 0 | G114: £m
A117: PR14 REVENUE RECONCILIATION ADJUSTMENTS EXPRESSED IN 2017-18 FYA CPIH DEFLATED PRICE BASE
E119: =E$15 -> Net performance payment / (penalty) applied to revenue for in-period ODI adjustments ~ Water resources at 2020 FYE price base | F119: =F$15 -> 0 | G119: £m
E120: =E$16 -> Net performance payment / (penalty) applied to revenue for end of period ODI adjustments ~ Water resources at 2020 FYE price base | F120: =F$16 -> 0 | G120: £m
E121: =E$23 -> Water trading total value of export incentive ~ Water resources at 2020 FYE price base | F121: =F$23 -> 0 | G121: £m
E122: =E$24 -> Water trading total value of import incentive ~ Water resources at 2020 FYE price base | F122: =F$24 -> 0 | G122: £m
E123: =E$34 -> Further 2010-15 reconciliation total adjustment carry forward to PR19 ~ Water network plus at 2020 FYE price base | F123: =F$34 -> -0.06609051895 | G123: £m
E124: =E$35 -> Net performance payment / (penalty) applied to revenue for in-period ODI adjustments ~ Water network plus at 2020 FYE price base | F124: =F$35 -> 0 | G124: £m
E125: =E$36 -> Net performance payment / (penalty) applied to revenue for end of period ODI adjustments ~ Water network plus at 2020 FYE price base | F125: =F$36 -> 3.537030595 | G125: £m
E126: =E$37 -> Totex menu revenue adjustment ~ Water network plus at 2020 FYE price base | F126: =F$37 -> -0.3816510642 | G126: £m
E127: =E$46 -> Water trading total value of export incentive - Water network plus at 2020 FYE price base | F127: =F$46 -> 0 | G127: £m
E128: =E$47 -> Water trading total value of import incentive - Water network plus at 2020 FYE price base | F128: =F$47 -> 0 | G128: £m
E129: =E$48 -> WRFIM total reward / (penalty) at the end of AMP6 ~ Water network plus at 2020 FYE price base | F129: =F$48 -> -1.987259864 | G129: £m
E130: =E$59 -> Net performance payment / (penalty) applied to revenue for in-period ODI adjustments ~ Bioresources at 2020 FYE price base | F130: =F$59 -> 0 | G130: £m
E131: =E$60 -> Net performance payment / (penalty) applied to revenue for end of period ODI adjustments ~ Bioresources at 2020 FYE price base | F131: =F$60 -> 0 | G131: £m
E132: =E$70 -> Further 2010-15 reconciliation total adjustment carry forward to PR19 ~ Wastewater network plus at 2020 FYE price base | F132: =F$70 -> 0 | G132: £m
E133: =E$71 -> Net performance payment / (penalty) applied to revenue for in-period ODI adjustments ~ Wastewater network plus at 2020 FYE price base | F133: =F$71 -> 0 | G133: £m
E134: =E$72 -> Net performance payment / (penalty) applied to revenue for end of period ODI adjustments ~ Wastewater network plus at 2020 FYE price base | F134: =F$72 -> 0 | G134: £m
E135: =E$73 -> Wastewater: revenue adjustment from totex menu model at 2020 FYE price base | F135: =F$73 -> 0 | G135: £m
E136: =E$78 -> WRFIM total reward / (penalty) at the end of AMP6 ~ Wastewater network plus at 2020 FYE price base | F136: =F$78 -> 0 | G136: £m
E137: =E$85 -> Dummy: revenue adjustment from totex menu model at 2020 FYE price base | F137: =F$85 -> 0 | G137: £m
E138: =E$100 -> Net performance payment / (penalty) applied to revenue for in-period ODI adjustments ~ Residential retail at 2020 FYE price base | F138: =F$100 -> 0 | G138: £m
E139: =E$101 -> Net performance payment / (penalty) applied to revenue for end of period ODI adjustments ~ Residential retail at 2020 FYE price base | F139: =F$101 -> 0 | G139: £m
E140: =E$102 -> Residential retail revenue adjustment at end of AMP6 at 2020 FYE price base | F140: =F$102 -> 1.057202673 | G140: £m
E141: =E$103 -> SIM forecast revenue adjustment at 2020 FYE price base | F141: =F$103 -> 2.573576196 | G141: £m
E142: =E$113 -> Net performance payment / (penalty) applied to revenue for in-period ODI adjustments ~ Business retail at 2020 FYE price base | F142: =F$113 -> 0 | G142: £m
E143: =E$114 -> Net performance payment / (penalty) applied to revenue for end of period ODI adjustments ~ Business retail at 2020 FYE price base | F143: =F$114 -> 0 | G143: £m
E145: =Indexation!E$111 -> CPIH deflate from 2020 FYE to 2018 FYA | F145: =Indexation!F$111 -> 0.9477434534 | G145: =Indexation!G$111 -> factor
E147: ODI in-period revenue adjustment ~ Water resources at 2017-18 FYA CPIH deflated price base | F147: =F119 * F$145 -> 0 | G147: £m
E148: ODI end of period revenue adjustment ~ Water resources at 2017-18 FYA CPIH deflated price base | F148: 0 | G148: £m
E149: Water trading total value of export incentive ~ Water resources at 2017-18 FYA CPIH deflated price base | F149: 0 | G149: £m
E150: Water trading total value of import incentive ~ Water resources at 2017-18 FYA CPIH deflated price base | F150: 0 | G150: £m
E151: Further 2010-15 reconciliation total adjustment revenue carry forward to PR19 ~ Water network plus at 2017-18 FYA CPIH deflated price base | F151: -0.06263685667 | G151: £m
E152: ODI in-period revenue adjustment ~ Water network plus at 2017-18 FYA CPIH deflated price base | F152: 0 | G152: £m
E153: ODI end of period revenue adjustment ~ Water network plus at 2017-18 FYA CPIH deflated price base | F153: 3.352197591 | G153: £m
E154: Water: Totex menu revenue adjustment at 2017-18 FYA CPIH deflated price base | F154: -0.3617072976 | G154: £m
E155: Water trading total value of export incentive ~ Water network plus at 2017-18 FYA CPIH deflated price base | F155: 0 | G155: £m
E156: Water trading total value of import incentive ~ Water network plus at 2017-18 FYA CPIH deflated price base | F156: 0 | G156: £m
E157: WRFIM total reward / (penalty) at the end of AMP6 ~ Water network plus at 2017-18 FYA CPIH deflated price base | F157: -1.883412526 | G157: £m
E158: ODI in-period revenue adjustment ~ Bioresources at 2017-18 FYA CPIH deflated price base | F158: 0 | G158: £m
E159: ODI end of period revenue adjustment ~ Bioresources at 2017-18 FYA CPIH deflated price base | F159: 0 | G159: £m
E160: Further 2010-15 reconciliation total adjustment revenue carry forward to PR19 ~ Wastewater network plus at 2017-18 FYA CPIH deflated price base | F160: 0 | G160: £m
E161: ODI in-period revenue adjustment ~ Wastewater network plus at 2017-18 FYA CPIH deflated price base | F161: 0 | G161: £m
E162: ODI end of period revenue adjustment ~ Wastewater network plus at 2017-18 FYA CPIH deflated price base | F162: 0 | G162: £m
E163: Wastewater: Totex menu revenue adjustment at 2017-18 FYA CPIH deflated price base | F163: 0 | G163: £m
E164: WRFIM total reward / (penalty) at the end of AMP6 ~ Wastewater network plus at 2017-18 FYA CPIH deflated price base | F164: 0 | G164: £m
E165: Dummy: revenue adjustment from totex menu model at 2017-18 FYA CPIH deflated price base | F165: 0 | G165: £m
E166: ODI in-period revenue adjustment ~ Residential retail at 2017-18 FYA CPIH deflated price base | F166: 0 | G166: £m
E167: ODI end of period revenue adjustment ~ Residential retail at 2017-18 FYA CPIH deflated price base | F167: 0 | G167: £m
E168: Residential retail revenue adjustment at 2017-18 FYA CPIH deflated price base | F168: 1.001956912 | G168: £m
E169: SIM forecast revenue adjustment at 2017-18 FYA CPIH deflated price base | F169: 2.439089992 | G169: £m
E170: ODI in-period revenue adjustment ~ Business retail at 2017-18 FYA CPIH deflated price base | F170: 0 | G170: £m
E171: ODI end of period revenue adjustment ~ Business retail at 2017-18 FYA CPIH deflated price base | F171: 0 | G171: £m
A174: SUBTOTALS AS PER PRICE CONTROL FOR REVENUE ADJUSTMENTS 2017-18 FYA CPIH DEFLATED PRICE BASE
B176: Water resources revenue adjustment
E177: =E$147 -> ODI in-period revenue adjustment ~ Water resources at 2017-18 FYA CPIH deflated price base | F177: =F$147 -> 0 | G177: £m
E178: =E$148 -> ODI end of period revenue adjustment ~ Water resources at 2017-18 FYA CPIH deflated price base | F178: =F$148 -> 0 | G178: £m
E179: =E$149 -> Water trading total value of export incentive ~ Water resources at 2017-18 FYA CPIH deflated price base | F179: =F$149 -> 0 | G179: £m
E180: =E$150 -> Water trading total value of import incentive ~ Water resources at 2017-18 FYA CPIH deflated price base | F180: =F$150 -> 0 | G180: £m
E181: Water resources revenue adjustment | F181: =SUM(F177:F180) -> 0 | G181: £m
B183: Water network plus revenue adjustment
E184: =E$151 -> Further 2010-15 reconciliation total adjustment revenue carry forward to PR19 ~ Water network plus at 2017-18 FYA CPIH deflated price base | F184: =F$151 -> -0.06263685667 | G184: £m
E185: =E$152 -> ODI in-period revenue adjustment ~ Water network plus at 2017-18 FYA CPIH deflated price base | F185: =F$152 -> 0 | G185: £m
E186: =E$153 -> ODI end of period revenue adjustment ~ Water network plus at 2017-18 FYA CPIH deflated price base | F186: =F$153 -> 3.352197591 | G186: £m
E187: =E$154 -> Water: Totex menu revenue adjustment at 2017-18 FYA CPIH deflated price base | F187: =F$154 -> -0.3617072976 | G187: £m
E188: =E$155 -> Water trading total value of export incentive ~ Water network plus at 2017-18 FYA CPIH deflated price base | F188: =F$155 -> 0 | G188: £m
E189: =E$156 -> Water trading total value of import incentive ~ Water network plus at 2017-18 FYA CPIH deflated price base | F189: =F$156 -> 0 | G189: £m
E190: =E$157 -> WRFIM total reward / (penalty) at the end of AMP6 ~ Water network plus at 2017-18 FYA CPIH deflated price base | F190: =F$157 -> -1.883412526 | G190: £m
E191: Water network plus revenue adjustment | F191: =SUM(F184:F190) -> 1.044440911 | G191: £m
B193: Bioresources revenue adjustment
E194: =E$158 -> ODI in-period revenue adjustment ~ Bioresources at 2017-18 FYA CPIH deflated price base | F194: =F$158 -> 0 | G194: £m
E195: =E$159 -> ODI end of period revenue adjustment ~ Bioresources at 2017-18 FYA CPIH deflated price base | F195: =F$159 -> 0 | G195: £m
E196: Bioresources revenue adjustment | F196: =SUM(F194:F195) -> 0 | G196: £m
B198: Wastewater network plus revenue adjustment
E199: =E$160 -> Further 2010-15 reconciliation total adjustment revenue carry forward to PR19 ~ Wastewater network plus at 2017-18 FYA CPIH deflated price base | F199: =F$160 -> 0 | G199: £m
E200: =E$163 -> Wastewater: Totex menu revenue adjustment at 2017-18 FYA CPIH deflated price base | F200: =F$163 -> 0 | G200: £m
E201: =E$161 -> ODI in-period revenue adjustment ~ Wastewater network plus at 2017-18 FYA CPIH deflated price base | F201: =F$161 -> 0 | G201: £m
E202: =E$162 -> ODI end of period revenue adjustment ~ Wastewater network plus at 2017-18 FYA CPIH deflated price base | F202: =F$162 -> 0 | G202: £m
E203: =E$164 -> WRFIM total reward / (penalty) at the end of AMP6 ~ Wastewater network plus at 2017-18 FYA CPIH deflated price base | F203: =F$164 -> 0 | G203: £m
E204: Wastewater network plus revenue adjustment | F204: =SUM(F199:F203) -> 0 | G204: £m
B206: Dummy revenue adjustment
E207: =E$165 -> Dummy: revenue adjustment from totex menu model at 2017-18 FYA CPIH deflated price base | F207: =F$165 -> 0 | G207: £m
E208: Dummy control revenue adjustment | F208: =SUM(F207:F207) -> 0 | G208: £m
B210: Residential retail revenue adjustment
E211: =E$166 -> ODI in-period revenue adjustment ~ Residential retail at 2017-18 FYA CPIH deflated price base | F211: =F$166 -> 0 | G211: £m
E212: =E$167 -> ODI end of period revenue adjustment ~ Residential retail at 2017-18 FYA CPIH deflated price base | F212: =F$167 -> 0 | G212: £m
E213: =E$168 -> Residential retail revenue adjustment at 2017-18 FYA CPIH deflated price base | F213: =F$168 -> 1.001956912 | G213: £m
E214: =E$169 -> SIM forecast revenue adjustment at 2017-18 FYA CPIH deflated price base | F214: =F$169 -> 2.439089992 | G214: £m
E215: Residential retail revenue adjustment | F215: =SUM(F211:F214) -> 3.441046904 | G215: £m
B217: Business retail revenue adjustment
E218: =E$170 -> ODI in-period revenue adjustment ~ Business retail at 2017-18 FYA CPIH deflated price base | F218: =F$170 -> 0
E219: =E$171 -> ODI end of period revenue adjustment ~ Business retail at 2017-18 FYA CPIH deflated price base | F219: =F$171 -> 0
E220: Business retail revenue adjustment | F220: =SUM(F218:F219) -> 0 | G220: £m

Sheet Profiling
A1: =RIGHT(CELL("filename", $A$1), LEN(CELL("filename", $A$1)) - SEARCH("]", CELL("filename", $A$1))) -> Profiling
E2: =Time!E$25 -> Model period ending | J2: =Time!J$25 -> 2013-03-31 | K2: =Time!K$25 -> 2014-03-31 | L2: =Time!L$25 -> 2015-03-31 | M2: =Time!M$25 -> 2016-03-31 | N2: =Time!N$25 -> 2017-03-31 | O2: =Time!O$25 -> 2018-03-31 | P2: =Time!P$25 -> 2019-03-31 | Q2: =Time!Q$25 -> 2020-03-31 | R2: =Time!R$25 -> 2021-03-31 | S2: =Time!S$25 -> 2022-03-31 | T2: =Time!T$25 -> 2023-03-31 | U2: =Time!U$25 -> 2024-03-31 | V2: =Time!V$25 -> 2025-03-31
E3: =Time!E$80 -> Timeline label | J3: =Time!J$80 -> Pre-Fcst | K3: =Time!K$80 -> Pre-Fcst | L3: =Time!L$80 -> Pre-Fcst | M3: =Time!M$80 -> Pre-Fcst | N3: =Time!N$80 -> Pre-Fcst | O3: =Time!O$80 -> Pre-Fcst | P3: =Time!P$80 -> Pre-Fcst | Q3: =Time!Q$80 -> Pre-Fcst | R3: =Time!R$80 -> Forecast | S3: =Time!S$80 -> Forecast | T3: =Time!T$80 -> Forecast | U3: =Time!U$80 -> Forecast | V3: =Time!V$80 -> Forecast
E4: =Time!E$103 -> Financial year ending | J4: =Time!J$103 -> 2013 | K4: =Time!K$103 -> 2014 | L4: =Time!L$103 -> 2015 | M4: =Time!M$103 -> 2016 | N4: =Time!N$103 -> 2017 | O4: =Time!O$103 -> 2018 | P4: =Time!P$103 -> 2019 | Q4: =Time!Q$103 -> 2020 | R4: =Time!R$103 -> 2021 | S4: =Time!S$103 -> 2022 | T4: =Time!T$103 -> 2023 | U4: =Time!U$103 -> 2024 | V4: =Time!V$103 -> 2025
E5: =Time!E$10 -> Model column counter | F5: Constant | G5: Unit | H5: Total | J5: =Time!J$10 -> 1 | K5: =Time!K$10 -> 2 | L5: =Time!L$10 -> 3 | M5: =Time!M$10 -> 4 | N5: =Time!N$10 -> 5 | O5: =Time!O$10 -> 6 | P5: =Time!P$10 -> 7 | Q5: =Time!Q$10 -> 8 | R5: =Time!R$10 -> 9 | S5: =Time!S$10 -> 10 | T5: =Time!T$10 -> 11 | U5: =Time!U$10 -> 12 | V5: =Time!V$10 -> 13
A7: DISCOUNT RATE FOR 2021-25
E9: =Inputs!E$133 -> PV base date | F9: =Inputs!F$133 -> 2021-03-31 | G9: =Inputs!G$133 -> date
E10: =Inputs!E$162 -> Days in a year | F10: =Inputs!F$162 -> 365 | G10: =Inputs!G$162 -> days
E11: =Time!E$25 -> Model period ending | F11: =Time!F$25 -> 00:00:00 | G11: =Time!G$25 -> date | H11: =Time!H$25 -> 00:00:00 | I11: =Time!I$25 -> 00:00:00 | J11: =Time!J$25 -> 2013-03-31 | K11: =Time!K$25 -> 2014-03-31 | L11: =Time!L$25 -> 2015-03-31 | M11: =Time!M$25 -> 2016-03-31 | N11: =Time!N$25 -> 2017-03-31 | O11: =Time!O$25 -> 2018-03-31 | P11: =Time!P$25 -> 2019-03-31 | Q11: =Time!Q$25 -> 2020-03-31 | R11: =Time!R$25 -> 2021-03-31 | S11: =Time!S$25 -> 2022-03-31 | T11: =Time!T$25 -> 2023-03-31 | U11: =Time!U$25 -> 2024-03-31 | V11: =Time!V$25 -> 2025-03-31
E12: =Time!E$49 -> Forecast period flag | F12: =Time!F$49 -> 0 | G12: =Time!G$49 -> flag | H12: =Time!H$49 -> 5 | I12: =Time!I$49 -> 0 | J12: =Time!J$49 -> 0 | K12: =Time!K$49 -> 0 | L12: =Time!L$49 -> 0 | M12: =Time!M$49 -> 0 | N12: =Time!N$49 -> 0 | O12: =Time!O$49 -> 0 | P12: =Time!P$49 -> 0 | Q12: =Time!Q$49 -> 0 | R12: =Time!R$49 -> 1 | S12: =Time!S$49 -> 1 | T12: =Time!T$49 -> 1 | U12: =Time!U$49 -> 1 | V12: =Time!V$49 -> 1
E13: Years from valuation date | G13: years | J13: =IF(J11 < $F9, 0, (J11 - $F9) / $F10) * J12 -> 0 | K13: 0 | L13: 0 | M13: 0 | N13: 0 | O13: 0 | P13: 0 | Q13: =IF(Q11 < $F9, 0, (Q11 - $F9) / $F10) * Q12 -> 0 | R13: =IF(R11 < $F9, 0, (R11 - $F9) / $F10) * R12 -> 0 | S13: =IF(S11 < $F9, 0, (S11 - $F9) / $F10) * S12 -> 1 | T13: 2 | U13: 3.002739726 | V13: 4.002739726
E15: =Inputs!E$135 -> Discount rate - Water resources | F15: =Inputs!F$135 -> 0.033 | G15: =Inputs!G$135 -> %
E16: =Inputs!E$136 -> Discount rate - Water network plus | F16: =Inputs!F$136 -> 0.033 | G16: =Inputs!G$136 -> %
E17: =Inputs!E$137 -> Discount rate - Bioresources | F17: =Inputs!F$137 -> 0 | G17: =Inputs!G$137 -> %
E18: =Inputs!E$138 -> Discount rate - Wastewater network plus | F18: =Inputs!F$138 -> 0 | G18: =Inputs!G$138 -> %
E19: =Inputs!E$139 -> Discount rate - Dummy control | F19: =Inputs!F$139 -> 0 | G19: =Inputs!G$139 -> %
E20: =Inputs!E$140 -> Discount rate - Residential retail | F20: =Inputs!F$140 -> 0.033 | G20: =Inputs!G$140 -> %
E21: =Inputs!E$141 -> Discount rate - Business retail | F21: =Inputs!F$141 -> 0 | G21: =Inputs!G$141 -> %
E23: =Inputs!E$133 -> PV base date | F23: =Inputs!F$133 -> 2021-03-31 | G23: =Inputs!G$133 -> date
E25: =Time!E$25 -> Model period ending | F25: =Time!F$25 -> 00:00:00 | G25: =Time!G$25 -> date | H25: =Time!H$25 -> 00:00:00 | I25: =Time!I$25 -> 00:00:00 | J25: =Time!J$25 -> 2013-03-31 | K25: =Time!K$25 -> 2014-03-31 | L25: =Time!L$25 -> 2015-03-31 | M25: =Time!M$25 -> 2016-03-31 | N25: =Time!N$25 -> 2017-03-31 | O25: =Time!O$25 -> 2018-03-31 | P25: =Time!P$25 -> 2019-03-31 | Q25: =Time!Q$25 -> 2020-03-31 | R25: =Time!R$25 -> 2021-03-31 | S25: =Time!S$25 -> 2022-03-31 | T25: =Time!T$25 -> 2023-03-31 | U25: =Time!U$25 -> 2024-03-31 | V25: =Time!V$25 -> 2025-03-31
E26: =E$13 -> Years from valuation date | F26: 0 | G26: years | H26: 0 | I26: 0 | J26: 0 | K26: 0 | L26: 0 | M26: 0 | N26: 0 | O26: 0 | P26: 0 | Q26: 0 | R26: 0 | S26: 1 | T26: 2 | U26: 3.002739726 | V26: 4.002739726
E28: PV discount factor - Water resources | G28: factor | H28: =SUM(J28:V28) -> 4.690426671 | J28: =IF(J$25 < $F$23, 0, 1 / ( 1 + $F15) ^ J$26) -> 0 | K28: =IF(K$25 < $F$23, 0, 1 / ( 1 + $F15) ^ K$26) -> 0 | L28: 0 | M28: 0 | N28: 0 | O28: 0 | P28: 0 | Q28: 0 | R28: 1 | S28: 0.968054211 | T28: 0.9371289555 | U28: 0.9071109395 | V28: 0.8781325648
E29: PV discount factor - Water network | G29: factor | H29: =SUM(J29:V29) -> 4.690426671 | J29: =IF(J$25 < $F$23, 0, 1 / ( 1 + $F16) ^ J$26) -> 0 | K29: =IF(K$25 < $F$23, 0, 1 / ( 1 + $F16) ^ K$26) -> 0 | L29: 0 | M29: 0 | N29: 0 | O29: 0 | P29: 0 | Q29: 0 | R29: 1 | S29: 0.968054211 | T29: 0.9371289555 | U29: 0.9071109395 | V29: 0.8781325648
E30: PV discount factor - Bioresources | G30: factor | H30: 5 | J30: =IF(J$25 < $F$23, 0, 1 / ( 1 + $F17) ^ J$26) -> 0 | K30: =IF(K$25 < $F$23, 0, 1 / ( 1 + $F17) ^ K$26) -> 0 | L30: 0 | M30: 0 | N30: 0 | O30: 0 | P30: 0 | Q30: 0 | R30: 1 | S30: 1 | T30: 1 | U30: 1 | V30: 1
E31: PV discount factor - Wastewater network | G31: factor | H31: 5 | J31: =IF(J$25 < $F$23, 0, 1 / ( 1 + $F18) ^ J$26) -> 0 | K31: 0 | L31: 0 | M31: 0 | N31: 0 | O31: 0 | P31: 0 | Q31: 0 | R31: 1 | S31: 1 | T31: 1 | U31: 1 | V31: 1
E32: PV discount factor - Dummy control | G32: factor | H32: =SUM(J32:V32) -> 5 | J32: 0 | K32: 0 | L32: 0 | M32: 0 | N32: 0 | O32: 0 | P32: 0 | Q32: 0 | R32: 1 | S32: 1 | T32: 1 | U32: 1 | V32: 1
E33: PV discount factor - Residential retail | G33: factor | H33: 4.690426671 | J33: =IF(J$25 < $F$23, 0, 1 / ( 1 + $F20) ^ J$26) -> 0 | K33: 0 | L33: 0 | M33: 0 | N33: 0 | O33: 0 | P33: 0 | Q33: 0 | R33: 1 | S33: 0.968054211 | T33: 0.9371289555 | U33: 0.9071109395 | V33: 0.8781325648
E34: PV discount factor - Business retail | G34: factor | H34: 5 | J34: =IF(J$25 < $F$23, 0, 1 / ( 1 + $F21) ^ J$26) -> 0 | K34: 0 | L34: 0 | M34: 0 | N34: 0 | O34: 0 | P34: 0 | Q34: 0 | R34: 1 | S34: 1 | T34: 1 | U34: 1 | V34: 1
E36: =E$28 -> PV discount factor - Water resources | F36: 0 | G36: factor | H36: 4.690426671 | I36: 0 | J36: 0 | K36: 0 | L36: 0 | M36: 0 | N36: 0 | O36: 0 | P36: 0 | Q36: 0 | R36: 1 | S36: 0.968054211 | T36: 0.9371289555 | U36: 0.9071109395 | V36: 0.8781325648
E37: =E$29 -> PV discount factor - Water network | F37: 0 | G37: factor | H37: 4.690426671 | I37: 0 | J37: 0 | K37: 0 | L37: 0 | M37: 0 | N37: 0 | O37: 0 | P37: 0 | Q37: 0 | R37: 1 | S37: 0.968054211 | T37: 0.9371289555 | U37: 0.9071109395 | V37: 0.8781325648
E38: =E$30 -> PV discount factor - Bioresources | F38: =F$30 -> 0 | G38: factor | H38: 5 | I38: 0 | J38: 0 | K38: 0 | L38: 0 | M38: 0 | N38: 0 | O38: 0 | P38: 0 | Q38: 0 | R38: 1 | S38: 1 | T38: 1 | U38: 1 | V38: 1
E39: =E$31 -> PV discount factor - Wastewater network | F39: 0 | G39: factor | H39: 5 | I39: 0 | J39: 0 | K39: 0 | L39: 0 | M39: 0 | N39: 0 | O39: 0 | P39: 0 | Q39: 0 | R39: 1 | S39: 1 | T39: 1 | U39: 1 | V39: 1
E40: =E$32 -> PV discount factor - Dummy control | F40: 0 | G40: factor | H40: 5 | I40: 0 | J40: 0 | K40: 0 | L40: 0 | M40: 0 | N40: 0 | O40: 0 | P40: 0 | Q40: 0 | R40: 1 | S40: 1 | T40: 1 | U40: 1 | V40: 1
E41: =E$33 -> PV discount factor - Residential retail | F41: 0 | G41: factor | H41: 4.690426671 | I41: 0 | J41: 0 | K41: 0 | L41: 0 | M41: 0 | N41: 0 | O41: 0 | P41: 0 | Q41: 0 | R41: 1 | S41: 0.968054211 | T41: 0.9371289555 | U41: 0.9071109395 | V41: 0.8781325648
E42: =E$34 -> PV discount factor - Business retail | F42: =F$34 -> 0 | G42: factor | H42: 5 | I42: 0 | J42: 0 | K42: 0 | L42: 0 | M42: 0 | N42: 0 | O42: 0 | P42: 0 | Q42: 0 | R42: 1 | S42: 1 | T42: 1 | U42: 1 | V42: 1
E45: Equivalent Annual Cost (EAC) factor - Water resources | F45: =SUM(J36:V36) -> 4.690426671 | G45: factor
E46: Equivalent Annual Cost (EAC) factor - Water network | F46: 4.690426671 | G46: factor
E47: Equivalent Annual Cost (EAC) factor - Bioresources | F47: 5 | G47: factor
E48: Equivalent Annual Cost (EAC) factor - Wastewater network | F48: 5 | G48: factor
E49: Equivalent Annual Cost (EAC) factor - Dummy control | F49: 5 | G49: factor
E50: Equivalent Annual Cost (EAC) factor - Residential retail | F50: 4.690426671 | G50: factor
E51: Equivalent Annual Cost (EAC) factor - Business retail | F51: 5 | G51: factor
A54: PROFILES
B56: Profile 0 - Apply in first year
E57: =Inputs!E$133 -> PV base date | F57: =Inputs!F$133 -> 2021-03-31 | G57: =Inputs!G$133 -> date
E59: =Time!E$25 -> Model period ending | F59: =Time!F$25 -> 00:00:00 | G59: =Time!G$25 -> date | H59: =Time!H$25 -> 00:00:00 | I59: =Time!I$25 -> 00:00:00 | J59: =Time!J$25 -> 2013-03-31 | K59: =Time!K$25 -> 2014-03-31 | L59: =Time!L$25 -> 2015-03-31 | M59: =Time!M$25 -> 2016-03-31 | N59: =Time!N$25 -> 2017-03-31 | O59: =Time!O$25 -> 2018-03-31 | P59: =Time!P$25 -> 2019-03-31 | Q59: =Time!Q$25 -> 2020-03-31 | R59: =Time!R$25 -> 2021-03-31 | S59: =Time!S$25 -> 2022-03-31 | T59: =Time!T$25 -> 2023-03-31 | U59: =Time!U$25 -> 2024-03-31 | V59: =Time!V$25 -> 2025-03-31
E61: =E$28 -> PV discount factor - Water resources | F61: 0 | G61: factor | H61: 4.690426671 | I61: 0 | J61: 0 | K61: 0 | L61: 0 | M61: 0 | N61: 0 | O61: 0 | P61: 0 | Q61: 0 | R61: 1 | S61: 0.968054211 | T61: 0.9371289555 | U61: 0.9071109395 | V61: 0.8781325648
E62: =E$29 -> PV discount factor - Water network | F62: 0 | G62: factor | H62: 4.690426671 | I62: 0 | J62: 0 | K62: 0 | L62: 0 | M62: 0 | N62: 0 | O62: 0 | P62: 0 | Q62: 0 | R62: 1 | S62: 0.968054211 | T62: 0.9371289555 | U62: 0.9071109395 | V62: 0.8781325648
E63: =E$30 -> PV discount factor - Bioresources | F63: =F$30 -> 0 | G63: factor | H63: 5 | I63: 0 | J63: 0 | K63: 0 | L63: 0 | M63: 0 | N63: 0 | O63: 0 | P63: 0 | Q63: 0 | R63: 1 | S63: 1 | T63: 1 | U63: 1 | V63: 1
E64: =E$31 -> PV discount factor - Wastewater network | F64: 0 | G64: factor | H64: 5 | I64: 0 | J64: 0 | K64: 0 | L64: 0 | M64: 0 | N64: 0 | O64: 0 | P64: 0 | Q64: 0 | R64: 1 | S64: 1 | T64: 1 | U64: 1 | V64: 1
E65: =E$32 -> PV discount factor - Dummy control | F65: 0 | G65: factor | H65: 5 | I65: 0 | J65: 0 | K65: 0 | L65: 0 | M65: 0 | N65: 0 | O65: 0 | P65: 0 | Q65: 0 | R65: 1 | S65: 1 | T65: 1 | U65: 1 | V65: 1
E66: =E$33 -> PV discount factor - Residential retail | F66: 0 | G66: factor | H66: 4.690426671 | I66: 0 | J66: 0 | K66: 0 | L66: 0 | M66: 0 | N66: 0 | O66: 0 | P66: 0 | Q66: 0 | R66: 1 | S66: 0.968054211 | T66: 0.9371289555 | U66: 0.9071109395 | V66: 0.8781325648
E67: =E$34 -> PV discount factor - Business retail | F67: =F$34 -> 0 | G67: factor | H67: 5 | I67: 0 | J67: 0 | K67: 0 | L67: 0 | M67: 0 | N67: 0 | O67: 0 | P67: 0 | Q67: 0 | R67: 1 | S67: 1 | T67: 1 | U67: 1 | V67: 1
E69: PV discount factor at base date - Water resources | G69: factor | J69: =IF($F$57 = J$59, J61, 0) -> 0 | K69: 0 | L69: 0 | M69: 0 | N69: 0 | O69: 0 | P69: 0 | Q69: 0 | R69: 1 | S69: 0 | T69: 0 | U69: 0 | V69: 0
E70: PV discount factor at base date - Water network | G70: factor | J70: =IF($F$57 = J$59, J62, 0) -> 0 | K70: 0 | L70: 0 | M70: 0 | N70: 0 | O70: 0 | P70: 0 | Q70: 0 | R70: 1 | S70: 0 | T70: 0 | U70: 0 | V70: 0
E71: PV discount factor at base date - Bioresources | G71: factor | J71: =IF($F$57 = J$59, J63, 0) -> 0 | K71: 0 | L71: 0 | M71: 0 | N71: 0 | O71: 0 | P71: 0 | Q71: 0 | R71: 1 | S71: 0 | T71: 0 | U71: 0 | V71: 0
E72: PV discount factor at base date - Wastewater network | G72: factor | J72: =IF($F$57 = J$59, J64, 0) -> 0 | K72: 0 | L72: 0 | M72: 0 | N72: 0 | O72: 0 | P72: 0 | Q72: 0 | R72: 1 | S72: 0 | T72: 0 | U72: 0 | V72: 0
E73: PV discount factor at base date - Dummy control | G73: factor | J73: 0 | K73: 0 | L73: 0 | M73: 0 | N73: 0 | O73: 0 | P73: 0 | Q73: 0 | R73: 1 | S73: 0 | T73: 0 | U73: 0 | V73: 0
E74: PV discount factor at base date - Residential retail | G74: factor | J74: =IF($F$57 = J$59, J66, 0) -> 0 | K74: 0 | L74: 0 | M74: 0 | N74: 0 | O74: 0 | P74: 0 | Q74: 0 | R74: 1 | S74: 0 | T74: 0 | U74: 0 | V74: 0
E75: PV discount factor at base date - Business retail | G75: factor | J75: =IF($F$57 = J$59, J67, 0) -> 0 | K75: 0 | L75: 0 | M75: 0 | N75: 0 | O75: 0 | P75: 0 | Q75: 0 | R75: 1 | S75: 0 | T75: 0 | U75: 0 | V75: 0
E77: =Calc!E$181 -> Water resources revenue adjustment | F77: =Calc!F$181 -> 0 | G77: =Calc!G$181 -> £m
E78: =Calc!E$191 -> Water network plus revenue adjustment | F78: =Calc!F$191 -> 1.044440911 | G78: =Calc!G$191 -> £m
E79: =Calc!E$196 -> Bioresources revenue adjustment | F79: =Calc!F$196 -> 0 | G79: =Calc!G$196 -> £m
E80: =Calc!E$204 -> Wastewater network plus revenue adjustment | F80: =Calc!F$204 -> 0 | G80: =Calc!G$204 -> £m
E81: =Calc!E$208 -> Dummy control revenue adjustment | F81: =Calc!F$208 -> 0 | G81: =Calc!G$208 -> £m
E82: =Calc!E$215 -> Residential retail revenue adjustment | F82: =Calc!F$215 -> 3.441046904 | G82: =Calc!G$215 -> £m
E83: =Calc!E$220 -> Business retail revenue adjustment | F83: =Calc!F$220 -> 0 | G83: =Calc!G$220 -> £m
E85: =E$69 -> PV discount factor at base date - Water resources | F85: 0 | G85: =G$69 -> factor | H85: 0 | I85: 0 | J85: 0 | K85: 0 | L85: 0 | M85: 0 | N85: 0 | O85: 0 | P85: 0 | Q85: 0 | R85: 1 | S85: 0 | T85: 0 | U85: 0 | V85: 0
E86: =E$70 -> PV discount factor at base date - Water network | F86: 0 | G86: factor | H86: 0 | I86: 0 | J86: 0 | K86: 0 | L86: 0 | M86: 0 | N86: 0 | O86: 0 | P86: 0 | Q86: 0 | R86: 1 | S86: 0 | T86: 0 | U86: 0 | V86: 0
E87: =E$71 -> PV discount factor at base date - Bioresources | F87: =F$71 -> 0 | G87: factor | H87: 0 | I87: 0 | J87: 0 | K87: 0 | L87: 0 | M87: 0 | N87: 0 | O87: 0 | P87: 0 | Q87: 0 | R87: 1 | S87: 0 | T87: 0 | U87: 0 | V87: 0
E88: =E$72 -> PV discount factor at base date - Wastewater network | F88: 0 | G88: factor | H88: 0 | I88: 0 | J88: 0 | K88: 0 | L88: 0 | M88: 0 | N88: 0 | O88: 0 | P88: 0 | Q88: 0 | R88: 1 | S88: 0 | T88: 0 | U88: 0 | V88: 0
E89: =E$73 -> PV discount factor at base date - Dummy control | F89: 0 | G89: factor | H89: 0 | I89: 0 | J89: 0 | K89: 0 | L89: 0 | M89: 0 | N89: 0 | O89: 0 | P89: 0 | Q89: 0 | R89: 1 | S89: 0 | T89: 0 | U89: 0 | V89: 0
E90: =E$74 -> PV discount factor at base date - Residential retail | F90: 0 | G90: factor | H90: 0 | I90: 0 | J90: 0 | K90: 0 | L90: 0 | M90: 0 | N90: 0 | O90: 0 | P90: 0 | Q90: 0 | R90: 1 | S90: 0 | T90: 0 | U90: 0 | V90: 0
E91: =E$75 -> PV discount factor at base date - Business retail | F91: =F$75 -> 0 | G91: factor | H91: 0 | I91: 0 | J91: 0 | K91: 0 | L91: 0 | M91: 0 | N91: 0 | O91: 0 | P91: 0 | Q91: 0 | R91: 1 | S91: 0 | T91: 0 | U91: 0 | V91: 0
E93: Water resources revenue adjustment applied in first year | G93: £m | H93: =SUM(J93:V93) -> 0 | J93: =$F77 * J85 -> 0 | K93: =$F77 * K85 -> 0 | L93: 0 | M93: 0 | N93: 0 | O93: 0 | P93: 0 | Q93: 0 | R93: 0 | S93: 0 | T93: 0 | U93: 0 | V93: 0
E94: Water network revenue adjustment applied in first year | G94: £m | H94: 1.044440911 | J94: =$F78 * J86 -> 0 | K94: =$F78 * K86 -> 0 | L94: 0 | M94: 0 | N94: 0 | O94: 0 | P94: 0 | Q94: 0 | R94: 1.044440911 | S94: 0 | T94: 0 | U94: 0 | V94: 0
E95: Bioresources revenue adjustment applied in first year | G95: £m | H95: 0 | J95: =$F79 * J87 -> 0 | K95: =$F79 * K87 -> 0 | L95: 0 | M95: 0 | N95: 0 | O95: 0 | P95: 0 | Q95: 0 | R95: 0 | S95: 0 | T95: 0 | U95: 0 | V95: 0
E96: Wastewater network revenue adjustment applied in first year | G96: £m | H96: 0 | J96: =$F80 * J88 -> 0 | K96: 0 | L96: 0 | M96: 0 | N96: 0 | O96: 0 | P96: 0 | Q96: 0 | R96: 0 | S96: 0 | T96: 0 | U96: 0 | V96: 0
E97: Dummy control revenue adjustment applied in first year | G97: £m | H97: =SUM(J97:V97) -> 0 | J97: 0 | K97: 0 | L97: 0 | M97: 0 | N97: 0 | O97: 0 | P97: 0 | Q97: 0 | R97: 0 | S97: 0 | T97: 0 | U97: 0 | V97: 0
E98: Residential retail revenue adjustment applied in first year | G98: £m | H98: 3.441046904 | J98: =$F82 * J90 -> 0 | K98: 0 | L98: 0 | M98: 0 | N98: 0 | O98: 0 | P98: 0 | Q98: 0 | R98: 3.441046904 | S98: 0 | T98: 0 | U98: 0 | V98: 0
E99: Business retail revenue adjustment applied in first year | G99: £m | H99: 0 | J99: =$F83 * J91 -> 0 | K99: =$F83 * K91 -> 0 | L99: 0 | M99: 0 | N99: 0 | O99: 0 | P99: 0 | Q99: 0 | R99: 0 | S99: 0 | T99: 0 | U99: 0 | V99: 0
B101: Profile 1 - Constant annuity 2020-25
E102: =Calc!E$181 -> Water resources revenue adjustment | F102: =Calc!F$181 -> 0 | G102: =Calc!G$181 -> £m
E103: =Calc!E$191 -> Water network plus revenue adjustment | F103: =Calc!F$191 -> 1.044440911 | G103: =Calc!G$191 -> £m
E104: =Calc!E$196 -> Bioresources revenue adjustment | F104: =Calc!F$196 -> 0 | G104: =Calc!G$196 -> £m
E105: =Calc!E$204 -> Wastewater network plus revenue adjustment | F105: =Calc!F$204 -> 0 | G105: =Calc!G$204 -> £m
E106: =Calc!E$208 -> Dummy control revenue adjustment | F106: =Calc!F$208 -> 0 | G106: =Calc!G$208 -> £m
E107: =Calc!E$215 -> Residential retail revenue adjustment | F107: =Calc!F$215 -> 3.441046904 | G107: =Calc!G$215 -> £m
E108: =Calc!E$220 -> Business retail revenue adjustment | F108: =Calc!F$220 -> 0 | G108: =Calc!G$220 -> £m
E110: =E$45 -> Equivalent Annual Cost (EAC) factor - Water resources | F110: 4.690426671 | G110: factor
E111: =E$46 -> Equivalent Annual Cost (EAC) factor - Water network | F111: 4.690426671 | G111: factor
E112: =E$47 -> Equivalent Annual Cost (EAC) factor - Bioresources | F112: =F$47 -> 5 | G112: factor
E113: =E$48 -> Equivalent Annual Cost (EAC) factor - Wastewater network | F113: =F$48 -> 5 | G113: =G$48 -> factor
E114: =E$49 -> Equivalent Annual Cost (EAC) factor - Dummy control | F114: =F$49 -> 5 | G114: factor
E115: =E$50 -> Equivalent Annual Cost (EAC) factor - Residential retail | F115: 4.690426671 | G115: factor
E116: =E$51 -> Equivalent Annual Cost (EAC) factor - Business retail | F116: =F$51 -> 5 | G116: factor
E118: =Time!E$49 -> Forecast period flag | F118: =Time!F$49 -> 0 | G118: =Time!G$49 -> flag | H118: =Time!H$49 -> 5 | I118: =Time!I$49 -> 0 | J118: =Time!J$49 -> 0 | K118: =Time!K$49 -> 0 | L118: =Time!L$49 -> 0 | M118: =Time!M$49 -> 0 | N118: =Time!N$49 -> 0 | O118: =Time!O$49 -> 0 | P118: =Time!P$49 -> 0 | Q118: =Time!Q$49 -> 0 | R118: =Time!R$49 -> 1 | S118: =Time!S$49 -> 1 | T118: =Time!T$49 -> 1 | U118: =Time!U$49 -> 1 | V118: =Time!V$49 -> 1
E120: Water resources revenue adjustment - EAC factor adjusted | G120: £m | H120: =SUM(J120:V120) -> 0 | J120: =($F102 / $F110) * J$118 -> 0 | K120: =($F102 / $F110) * K$118 -> 0 | L120: 0 | M120: 0 | N120: 0 | O120: 0 | P120: 0 | Q120: 0 | R120: 0 | S120: 0 | T120: 0 | U120: 0 | V120: 0
E121: Water network revenue adjustment - EAC factor adjusted | G121: £m | H121: 1.113375162 | J121: =($F103 / $F111) * J$118 -> 0 | K121: =($F103 / $F111) * K$118 -> 0 | L121: 0 | M121: 0 | N121: 0 | O121: 0 | P121: 0 | Q121: 0 | R121: 0.2226750323 | S121: 0.2226750323 | T121: 0.2226750323 | U121: 0.2226750323 | V121: 0.2226750323
E122: Bioresources revenue adjustment - EAC factor adjusted | G122: £m | H122: 0 | J122: =($F104 / $F112) * J$118 -> 0 | K122: =($F104 / $F112) * K$118 -> 0 | L122: 0 | M122: 0 | N122: 0 | O122: 0 | P122: 0 | Q122: 0 | R122: 0 | S122: 0 | T122: 0 | U122: 0 | V122: 0
E123: Wastewater network revenue adjustment - EAC factor adjusted | G123: £m | H123: 0 | J123: =($F105 / $F113) * J$118 -> 0 | K123: 0 | L123: 0 | M123: 0 | N123: 0 | O123: 0 | P123: 0 | Q123: 0 | R123: 0 | S123: 0 | T123: 0 | U123: 0 | V123: 0
E124: Dummy control revenue adjustment - EAC factor adjusted | G124: £m | H124: =SUM(J124:V124) -> 0 | J124: 0 | K124: 0 | L124: 0 | M124: 0 | N124: 0 | O124: 0 | P124: 0 | Q124: 0 | R124: 0 | S124: 0 | T124: 0 | U124: 0 | V124: 0
E125: Residential retail revenue adjustment - EAC factor adjusted | G125: £m | H125: 3.668159792 | J125: =($F107 / $F115) * J$118 -> 0 | K125: 0 | L125: 0 | M125: 0 | N125: 0 | O125: 0 | P125: 0 | Q125: 0 | R125: 0.7336319583 | S125: 0.7336319583 | T125: 0.7336319583 | U125: 0.7336319583 | V125: 0.7336319583
E126: Business retail revenue adjustment - EAC factor adjusted | G126: £m | H126: 0 | J126: =($F108 / $F116) * J$118 -> 0 | K126: 0 | L126: 0 | M126: 0 | N126: 0 | O126: 0 | P126: 0 | Q126: 0 | R126: 0 | S126: 0 | T126: 0 | U126: 0 | V126: 0
E128: =E$120 -> Water resources revenue adjustment - EAC factor adjusted | F128: 0 | G128: =G$120 -> £m | H128: =H$120 -> 0 | I128: =I$120 -> 0 | J128: =J$120 -> 0 | K128: =K$120 -> 0 | L128: =L$120 -> 0 | M128: =M$120 -> 0 | N128: =N$120 -> 0 | O128: =O$120 -> 0 | P128: =P$120 -> 0 | Q128: =Q$120 -> 0 | R128: =R$120 -> 0 | S128: =S$120 -> 0 | T128: =T$120 -> 0 | U128: =U$120 -> 0 | V128: =V$120 -> 0
E129: =E$121 -> Water network revenue adjustment - EAC factor adjusted | F129: 0 | G129: =G$121 -> £m | H129: =H$121 -> 1.113375162 | I129: =I$121 -> 0 | J129: =J$121 -> 0 | K129: =K$121 -> 0 | L129: =L$121 -> 0 | M129: =M$121 -> 0 | N129: =N$121 -> 0 | O129: =O$121 -> 0 | P129: =P$121 -> 0 | Q129: =Q$121 -> 0 | R129: =R$121 -> 0.2226750323 | S129: =S$121 -> 0.2226750323 | T129: =T$121 -> 0.2226750323 | U129: =U$121 -> 0.2226750323 | V129: =V$121 -> 0.2226750323
E130: =E$122 -> Bioresources revenue adjustment - EAC factor adjusted | F130: =F$122 -> 0 | G130: £m | H130: 0 | I130: 0 | J130: 0 | K130: 0 | L130: 0 | M130: 0 | N130: 0 | O130: 0 | P130: 0 | Q130: 0 | R130: 0 | S130: 0 | T130: 0 | U130: 0 | V130: 0
E131: =E$123 -> Wastewater network revenue adjustment - EAC factor adjusted | F131: =F$123 -> 0 | G131: =G$123 -> £m | H131: =H$123 -> 0 | I131: =I$123 -> 0 | J131: =J$123 -> 0 | K131: =K$123 -> 0 | L131: =L$123 -> 0 | M131: =M$123 -> 0 | N131: =N$123 -> 0 | O131: =O$123 -> 0 | P131: =P$123 -> 0 | Q131: =Q$123 -> 0 | R131: =R$123 -> 0 | S131: =S$123 -> 0 | T131: =T$123 -> 0 | U131: =U$123 -> 0 | V131: =V$123 -> 0
E132: =E$124 -> Dummy control revenue adjustment - EAC factor adjusted | F132: =F$124 -> 0 | G132: =G$124 -> £m | H132: =H$124 -> 0 | I132: =I$124 -> 0 | J132: =J$124 -> 0 | K132: =K$124 -> 0 | L132: =L$124 -> 0 | M132: =M$124 -> 0 | N132: =N$124 -> 0 | O132: =O$124 -> 0 | P132: =P$124 -> 0 | Q132: =Q$124 -> 0 | R132: =R$124 -> 0 | S132: =S$124 -> 0 | T132: =T$124 -> 0 | U132: =U$124 -> 0 | V132: =V$124 -> 0
E133: =E$125 -> Residential retail revenue adjustment - EAC factor adjusted | F133: 0 | G133: =G$125 -> £m | H133: =H$125 -> 3.668159792 | I133: =I$125 -> 0 | J133: =J$125 -> 0 | K133: =K$125 -> 0 | L133: =L$125 -> 0 | M133: =M$125 -> 0 | N133: =N$125 -> 0 | O133: =O$125 -> 0 | P133: =P$125 -> 0 | Q133: =Q$125 -> 0 | R133: =R$125 -> 0.7336319583 | S133: =S$125 -> 0.7336319583 | T133: =T$125 -> 0.7336319583 | U133: =U$125 -> 0.7336319583 | V133: =V$125 -> 0.7336319583
E134: =E$126 -> Business retail revenue adjustment - EAC factor adjusted | F134: =F$126 -> 0 | G134: £m | H134: 0 | I134: 0 | J134: 0 | K134: 0 | L134: 0 | M134: 0 | N134: 0 | O134: 0 | P134: 0 | Q134: 0 | R134: 0 | S134: 0 | T134: 0 | U134: 0 | V134: 0
E136: =E$28 -> PV discount factor - Water resources | F136: 0 | G136: factor | H136: 4.690426671 | I136: 0 | J136: 0 | K136: 0 | L136: 0 | M136: 0 | N136: 0 | O136: 0 | P136: 0 | Q136: 0 | R136: 1 | S136: 0.968054211 | T136: 0.9371289555 | U136: 0.9071109395 | V136: 0.8781325648
E137: =E$29 -> PV discount factor - Water network | F137: 0 | G137: factor | H137: 4.690426671 | I137: 0 | J137: 0 | K137: 0 | L137: 0 | M137: 0 | N137: 0 | O137: 0 | P137: 0 | Q137: 0 | R137: 1 | S137: 0.968054211 | T137: 0.9371289555 | U137: 0.9071109395 | V137: 0.8781325648
E138: =E$30 -> PV discount factor - Bioresources | F138: =F$30 -> 0 | G138: factor | H138: 5 | I138: 0 | J138: 0 | K138: 0 | L138: 0 | M138: 0 | N138: 0 | O138: 0 | P138: 0 | Q138: 0 | R138: 1 | S138: 1 | T138: 1 | U138: 1 | V138: 1
E139: =E$31 -> PV discount factor - Wastewater network | F139: 0 | G139: factor | H139: 5 | I139: 0 | J139: 0 | K139: 0 | L139: 0 | M139: 0 | N139: 0 | O139: 0 | P139: 0 | Q139: 0 | R139: 1 | S139: 1 | T139: 1 | U139: 1 | V139: 1
E140: =E$32 -> PV discount factor - Dummy control | F140: 0 | G140: factor | H140: 5 | I140: 0 | J140: 0 | K140: 0 | L140: 0 | M140: 0 | N140: 0 | O140: 0 | P140: 0 | Q140: 0 | R140: 1 | S140: 1 | T140: 1 | U140: 1 | V140: 1
E141: =E$33 -> PV discount factor - Residential retail | F141: 0 | G141: factor | H141: 4.690426671 | I141: 0 | J141: 0 | K141: 0 | L141: 0 | M141: 0 | N141: 0 | O141: 0 | P141: 0 | Q141: 0 | R141: 1 | S141: 0.968054211 | T141: 0.9371289555 | U141: 0.9071109395 | V141: 0.8781325648
E142: =E$34 -> PV discount factor - Business retail | F142: =F$34 -> 0 | G142: factor | H142: 5 | I142: 0 | J142: 0 | K142: 0 | L142: 0 | M142: 0 | N142: 0 | O142: 0 | P142: 0 | Q142: 0 | R142: 1 | S142: 1 | T142: 1 | U142: 1 | V142: 1
E144: Water resources revenue adjustment - Constant annuity 2015-20 | G144: £m | H144: =SUM(J144:V144) -> 0 | J144: =J128 * J136 -> 0 | K144: 0 | L144: 0 | M144: 0 | N144: 0 | O144: 0 | P144: 0 | Q144: 0 | R144: 0 | S144: 0 | T144: 0 | U144: 0 | V144: 0
E145: Water network revenue adjustment - Constant annuity 2015-20 | G145: £m | H145: 1.044440911 | J145: =J129 * J137 -> 0 | K145: 0 | L145: 0 | M145: 0 | N145: 0 | O145: 0 | P145: 0 | Q145: 0 | R145: 0.2226750323 | S145: 0.2155615028 | T145: 0.2086752205 | U145: 0.2019909578 | V145: 0.1955381973
E146: Bioresources revenue adjustment - Constant annuity 2015-20 | G146: £m | H146: 0 | J146: =J130 * J138 -> 0 | K146: 0 | L146: 0 | M146: 0 | N146: 0 | O146: 0 | P146: 0 | Q146: 0 | R146: 0 | S146: 0 | T146: 0 | U146: 0 | V146: 0
E147: Wastewater network revenue adjustment - Constant annuity 2015-20 | G147: £m | H147: 0 | J147: =J131 * J139 -> 0 | K147: 0 | L147: 0 | M147: 0 | N147: 0 | O147: 0 | P147: 0 | Q147: 0 | R147: 0 | S147: 0 | T147: 0 | U147: 0 | V147: 0
E148: Dummy control revenue adjustment - Constant annuity 2015-20 | G148: £m | H148: =SUM(J148:V148) -> 0 | J148: 0 | K148: 0 | L148: 0 | M148: 0 | N148: 0 | O148: 0 | P148: 0 | Q148: 0 | R148: 0 | S148: 0 | T148: 0 | U148: 0 | V148: 0
E149: Residential retail revenue adjustment - Constant annuity 2015-20 | G149: £m | H149: 3.441046904 | J149: =J133 * J141 -> 0 | K149: 0 | L149: 0 | M149: 0 | N149: 0 | O149: 0 | P149: 0 | Q149: 0 | R149: 0.7336319583 | S149: 0.7101955066 | T149: 0.6875077508 | U149: 0.6654855749 | V149: 0.6442261132
E150: Business retail revenue adjustment - Constant annuity 2015-20 | G150: £m | H150: 0 | J150: =J134 * J142 -> 0 | K150: 0 | L150: 0 | M150: 0 | N150: 0 | O150: 0 | P150: 0 | Q150: 0 | R150: 0 | S150: 0 | T150: 0 | U150: 0 | V150: 0
B152: Profile 2 - Even allocation - NPV neutral
E153: =Calc!E$181 -> Water resources revenue adjustment | F153: =Calc!F$181 -> 0 | G153: =Calc!G$181 -> £m
E154: =Calc!E$191 -> Water network plus revenue adjustment | F154: =Calc!F$191 -> 1.044440911 | G154: =Calc!G$191 -> £m
E155: =Calc!E$196 -> Bioresources revenue adjustment | F155: =Calc!F$196 -> 0 | G155: =Calc!G$196 -> £m
E156: =Calc!E$204 -> Wastewater network plus revenue adjustment | F156: =Calc!F$204 -> 0 | G156: =Calc!G$204 -> £m
E157: =Calc!E$208 -> Dummy control revenue adjustment | F157: =Calc!F$208 -> 0 | G157: =Calc!G$208 -> £m
E158: =Calc!E$215 -> Residential retail revenue adjustment | F158: =Calc!F$215 -> 3.441046904 | G158: =Calc!G$215 -> £m
E159: =Calc!E$220 -> Business retail revenue adjustment | F159: =Calc!F$220 -> 0 | G159: =Calc!G$220 -> £m
E161: =Inputs!E$135 -> Discount rate - Water resources | F161: =Inputs!F$135 -> 0.033 | G161: =Inputs!G$135 -> %
E162: =Inputs!E$136 -> Discount rate - Water network plus | F162: =Inputs!F$136 -> 0.033 | G162: =Inputs!G$136 -> %
E163: =Inputs!E$137 -> Discount rate - Bioresources | F163: =Inputs!F$137 -> 0 | G163: =Inputs!G$137 -> %
E164: =Inputs!E$138 -> Discount rate - Wastewater network plus | F164: =Inputs!F$138 -> 0 | G164: =Inputs!G$138 -> %
E165: =Inputs!E$139 -> Discount rate - Dummy control | F165: =Inputs!F$139 -> 0 | G165: =Inputs!G$139 -> %
E166: =Inputs!E$140 -> Discount rate - Residential retail | F166: =Inputs!F$140 -> 0.033 | G166: =Inputs!G$140 -> %
E167: =Inputs!E$141 -> Discount rate - Business retail | F167: =Inputs!F$141 -> 0 | G167: =Inputs!G$141 -> %
E169: =Inputs!E$143 -> Number of years to profile over | F169: =Inputs!F$143 -> 5 | G169: =Inputs!G$143 -> #
E171: =E$13 -> Years from valuation date | F171: 0 | G171: =G$13 -> years | H171: 0 | I171: 0 | J171: 0 | K171: 0 | L171: 0 | M171: 0 | N171: 0 | O171: 0 | P171: 0 | Q171: 0 | R171: 0 | S171: 1 | T171: 2 | U171: 3.002739726 | V171: 4.002739726
E172: =Time!E$49 -> Forecast period flag | F172: =Time!F$49 -> 0 | G172: =Time!G$49 -> flag | H172: =Time!H$49 -> 5 | I172: =Time!I$49 -> 0 | J172: =Time!J$49 -> 0 | K172: =Time!K$49 -> 0 | L172: =Time!L$49 -> 0 | M172: =Time!M$49 -> 0 | N172: =Time!N$49 -> 0 | O172: =Time!O$49 -> 0 | P172: =Time!P$49 -> 0 | Q172: =Time!Q$49 -> 0 | R172: =Time!R$49 -> 1 | S172: =Time!S$49 -> 1 | T172: =Time!T$49 -> 1 | U172: =Time!U$49 -> 1 | V172: =Time!V$49 -> 1
E174: Water resources revenue adjustment - NPV adjusted | G174: £m | H174: =SUM(J174:V174) -> 0 | J174: =IF(J$171 + 1 <= $F$169 + 0.005, $F153 / $F$169, 0) * J$172 * (1 + $F161) ^ J$171 -> 0 | K174: =IF(K$171 + 1 <= $F$169 + 0.005, $F153 / $F$169, 0) * K$172 * (1 + $F161) ^ K$171 -> 0 | L174: 0 | M174: 0 | N174: 0 | O174: 0 | P174: 0 | Q174: 0 | R174: 0 | S174: 0 | T174: 0 | U174: 0 | V174: 0
E175: Water network revenue adjustment - NPV adjusted | G175: £m | H175: 1.115728226 | J175: 0 | K175: =IF(K$171 + 1 <= $F$169 + 0.005, $F154 / $F$169, 0) * K$172 * (1 + $F162) ^ K$171 -> 0 | L175: 0 | M175: 0 | N175: 0 | O175: 0 | P175: 0 | Q175: 0 | R175: 0.2088881821 | S175: =IF(S$171 + 1 <= $F$169 + 0.005, $F154 / $F$169, 0) * S$172 * (1 + $F162) ^ S$171 -> 0.2157814921 | T175: 0.2229022814 | U175: 0.2302785393 | V175: 0.2378777311
E176: Bioresources revenue adjustment - NPV adjusted | G176: £m | H176: 0 | J176: 0 | K176: =IF(K$171 + 1 <= $F$169 + 0.005, $F155 / $F$169, 0) * K$172 * (1 + $F163) ^ K$171 -> 0 | L176: 0 | M176: 0 | N176: 0 | O176: 0 | P176: 0 | Q176: 0 | R176: 0 | S176: 0 | T176: 0 | U176: 0 | V176: 0
E177: Wastewater network revenue adjustment - NPV adjusted | G177: £m | H177: 0 | J177: 0 | K177: =IF(K$171 + 1 <= $F$169 + 0.005, $F156 / $F$169, 0) * K$172 * (1 + $F164) ^ K$171 -> 0 | L177: 0 | M177: 0 | N177: 0 | O177: 0 | P177: 0 | Q177: 0 | R177: 0 | S177: 0 | T177: 0 | U177: 0 | V177: 0
E178: Dummy control revenue adjustment - NPV adjusted | G178: £m | H178: =SUM(J178:V178) -> 0 | J178: 0 | K178: =IF(K$171 + 1 <= $F$169 + 0.005, $F157 / $F$169, 0) * K$172 * (1 + $F165) ^ K$171 -> 0 | L178: 0 | M178: 0 | N178: 0 | O178: 0 | P178: 0 | Q178: 0 | R178: 0 | S178: 0 | T178: 0 | U178: 0 | V178: 0
E179: Residential retail revenue adjustment - NPV adjusted | G179: £m | H179: 3.675912269 | J179: 0 | K179: =IF(K$171 + 1 <= $F$169 + 0.005, $F158 / $F$169, 0) * K$172 * (1 + $F166) ^ K$171 -> 0 | L179: 0 | M179: 0 | N179: 0 | O179: 0 | P179: 0 | Q179: 0 | R179: 0.6882093808 | S179: 0.7109202904 | T179: 0.7343806599 | U179: 0.7586827045 | V179: 0.7837192337
E180: Business retail revenue adjustment - NPV adjusted | G180: £m | H180: 0 | J180: 0 | K180: =IF(K$171 + 1 <= $F$169 + 0.005, $F159 / $F$169, 0) * K$172 * (1 + $F167) ^ K$171 -> 0 | L180: 0 | M180: 0 | N180: 0 | O180: 0 | P180: 0 | Q180: 0 | R180: 0 | S180: 0 | T180: 0 | U180: 0 | V180: 0
E182: =E$174 -> Water resources revenue adjustment - NPV adjusted | F182: 0 | G182: =G$174 -> £m | H182: 0 | I182: 0 | J182: 0 | K182: 0 | L182: 0 | M182: 0 | N182: 0 | O182: 0 | P182: 0 | Q182: 0 | R182: 0 | S182: 0 | T182: 0 | U182: 0 | V182: 0
E183: =E$175 -> Water network revenue adjustment - NPV adjusted | F183: 0 | G183: =G$175 -> £m | H183: 1.115728226 | I183: 0 | J183: 0 | K183: 0 | L183: 0 | M183: 0 | N183: 0 | O183: 0 | P183: 0 | Q183: 0 | R183: =R$175 -> 0.2088881821 | S183: =S$175 -> 0.2157814921 | T183: 0.2229022814 | U183: 0.2302785393 | V183: 0.2378777311
E184: =E$176 -> Bioresources revenue adjustment - NPV adjusted | F184: =F$176 -> 0 | G184: £m | H184: 0 | I184: 0 | J184: 0 | K184: 0 | L184: 0 | M184: 0 | N184: 0 | O184: 0 | P184: 0 | Q184: 0 | R184: 0 | S184: 0 | T184: 0 | U184: 0 | V184: 0
E185: =E$177 -> Wastewater network revenue adjustment - NPV adjusted | F185: =F$177 -> 0 | G185: =G$177 -> £m | H185: 0 | I185: 0 | J185: 0 | K185: 0 | L185: 0 | M185: 0 | N185: 0 | O185: 0 | P185: 0 | Q185: 0 | R185: 0 | S185: 0 | T185: 0 | U185: 0 | V185: 0
E186: =E$178 -> Dummy control revenue adjustment - NPV adjusted | F186: 0 | G186: £m | H186: 0 | I186: 0 | J186: 0 | K186: 0 | L186: 0 | M186: 0 | N186: 0 | O186: 0 | P186: 0 | Q186: 0 | R186: 0 | S186: 0 | T186: 0 | U186: 0 | V186: 0
E187: =E$179 -> Residential retail revenue adjustment - NPV adjusted | F187: 0 | G187: =G$179 -> £m | H187: 3.675912269 | I187: 0 | J187: 0 | K187: 0 | L187: 0 | M187: 0 | N187: 0 | O187: 0 | P187: 0 | Q187: 0 | R187: 0.6882093808 | S187: 0.7109202904 | T187: 0.7343806599 | U187: 0.7586827045 | V187: 0.7837192337
E188: =E$180 -> Business retail revenue adjustment - NPV adjusted | F188: =F$180 -> 0 | G188: £m | H188: 0 | I188: 0 | J188: 0 | K188: 0 | L188: 0 | M188: 0 | N188: 0 | O188: 0 | P188: 0 | Q188: 0 | R188: 0 | S188: 0 | T188: 0 | U188: 0 | V188: 0
E190: =E$28 -> PV discount factor - Water resources | F190: 0 | G190: factor | H190: 4.690426671 | I190: 0 | J190: 0 | K190: 0 | L190: 0 | M190: 0 | N190: 0 | O190: 0 | P190: 0 | Q190: 0 | R190: 1 | S190: 0.968054211 | T190: 0.9371289555 | U190: 0.9071109395 | V190: 0.8781325648
E191: =E$29 -> PV discount factor - Water network | F191: 0 | G191: factor | H191: 4.690426671 | I191: 0 | J191: 0 | K191: 0 | L191: 0 | M191: 0 | N191: 0 | O191: 0 | P191: 0 | Q191: 0 | R191: 1 | S191: 0.968054211 | T191: 0.9371289555 | U191: 0.9071109395 | V191: 0.8781325648
E192: =E$30 -> PV discount factor - Bioresources | F192: =F$30 -> 0 | G192: factor | H192: 5 | I192: 0 | J192: 0 | K192: 0 | L192: 0 | M192: 0 | N192: 0 | O192: 0 | P192: 0 | Q192: 0 | R192: 1 | S192: 1 | T192: 1 | U192: 1 | V192: 1
E193: =E$31 -> PV discount factor - Wastewater network | F193: 0 | G193: factor | H193: 5 | I193: 0 | J193: 0 | K193: 0 | L193: 0 | M193: 0 | N193: 0 | O193: 0 | P193: 0 | Q193: 0 | R193: 1 | S193: 1 | T193: 1 | U193: 1 | V193: 1
E194: =E$32 -> PV discount factor - Dummy control | F194: 0 | G194: factor | H194: 5 | I194: 0 | J194: 0 | K194: 0 | L194: 0 | M194: 0 | N194: 0 | O194: 0 | P194: 0 | Q194: 0 | R194: 1 | S194: 1 | T194: 1 | U194: 1 | V194: 1
E195: =E$33 -> PV discount factor - Residential retail | F195: 0 | G195: factor | H195: 4.690426671 | I195: 0 | J195: 0 | K195: 0 | L195: 0 | M195: 0 | N195: 0 | O195: 0 | P195: 0 | Q195: 0 | R195: 1 | S195: 0.968054211 | T195: 0.9371289555 | U195: 0.9071109395 | V195: 0.8781325648
E196: =E$34 -> PV discount factor - Business retail | F196: =F$34 -> 0 | G196: factor | H196: 5 | I196: 0 | J196: 0 | K196: 0 | L196: 0 | M196: 0 | N196: 0 | O196: 0 | P196: 0 | Q196: 0 | R196: 1 | S196: 1 | T196: 1 | U196: 1 | V196: 1
E198: Water resources revenue adjustment - Even allocation - NPV neutral | G198: £m | H198: =SUM(J198:V198) -> 0 | J198: =J182 * J190 -> 0 | K198: 0 | L198: 0 | M198: 0 | N198: 0 | O198: 0 | P198: 0 | Q198: 0 | R198: 0 | S198: 0 | T198: 0 | U198: 0 | V198: 0
E199: Water network revenue adjustment - Even allocation - NPV neutral | G199: £m | H199: 1.044440911 | J199: =J183 * J191 -> 0 | K199: 0 | L199: 0 | M199: 0 | N199: 0 | O199: 0 | P199: 0 | Q199: 0 | R199: 0.2088881821 | S199: 0.2088881821 | T199: 0.2088881821 | U199: 0.2088881821 | V199: 0.2088881821
E200: Bioresources revenue adjustment - Even allocation - NPV neutral | G200: £m | H200: 0 | J200: =J184 * J192 -> 0 | K200: 0 | L200: 0 | M200: 0 | N200: 0 | O200: 0 | P200: 0 | Q200: 0 | R200: 0 | S200: 0 | T200: 0 | U200: 0 | V200: 0
E201: Wastewater network revenue adjustment - Even allocation - NPV neutral | G201: £m | H201: 0 | J201: =J185 * J193 -> 0 | K201: 0 | L201: 0 | M201: 0 | N201: 0 | O201: 0 | P201: 0 | Q201: 0 | R201: 0 | S201: 0 | T201: 0 | U201: 0 | V201: 0
E202: Dummy control revenue adjustment - Even allocation - NPV neutral | G202: £m | H202: =SUM(J202:V202) -> 0 | J202: 0 | K202: 0 | L202: 0 | M202: 0 | N202: 0 | O202: 0 | P202: 0 | Q202: 0 | R202: 0 | S202: 0 | T202: 0 | U202: 0 | V202: 0
E203: Residential retail revenue adjustment - Even allocation - NPV neutral | G203: £m | H203: 3.441046904 | J203: =J187 * J195 -> 0 | K203: 0 | L203: 0 | M203: 0 | N203: 0 | O203: 0 | P203: 0 | Q203: 0 | R203: 0.6882093808 | S203: 0.6882093808 | T203: 0.6882093808 | U203: 0.6882093808 | V203: 0.6882093808
E204: Business retail revenue adjustment - Even allocation - NPV neutral | G204: £m | H204: 0 | J204: =J188 * J196 -> 0 | K204: 0 | L204: 0 | M204: 0 | N204: 0 | O204: 0 | P204: 0 | Q204: 0 | R204: 0 | S204: 0 | T204: 0 | U204: 0 | V204: 0
A207: PROFILES SELECTION
E209: =Inputs!E$147 -> Water resources revenue adjustment selector | F209: =Inputs!F$147 -> 0 | G209: =Inputs!G$147 -> 0 = Apply in first year, 1 = Constant annuity 2020-25, 2 = Even allocation - NPV neutral
E210: =Inputs!E$148 -> Water network plus revenue adjustment selector | F210: =Inputs!F$148 -> 2 | G210: =Inputs!G$148 -> 0 = Apply in first year, 1 = Constant annuity 2020-25, 2 = Even allocation - NPV neutral
E211: =Inputs!E$149 -> Bioesources revenue adjustment selector | F211: =Inputs!F$149 -> 0 | G211: =Inputs!G$149 -> 0 = Apply in first year, 1 = Constant annuity 2020-25, 2 = Even allocation - NPV neutral
E212: =Inputs!E$150 -> Wastewater network plus revenue adjustment selector | F212: =Inputs!F$150 -> 0 | G212: =Inputs!G$150 -> 0 = Apply in first year, 1 = Constant annuity 2020-25, 2 = Even allocation - NPV neutral
E213: =Inputs!E$151 -> Dummy control revenue adjustment selector | F213: =Inputs!F$151 -> 0 | G213: =Inputs!G$151 -> 0 = Apply in first year, 1 = Constant annuity 2020-25, 2 = Even allocation - NPV neutral
E214: =Inputs!E$152 -> Residential retail revenue adjustment selector | F214: =Inputs!F$152 -> 2 | G214: =Inputs!G$152 -> 0 = Apply in first year, 1 = Constant annuity 2020-25, 2 = Even allocation - NPV neutral
E215: =Inputs!E$153 -> Business retail revenue adjustment selector | F215: =Inputs!F$153 -> 0 | G215: =Inputs!G$153 -> 0 = Apply in first year, 1 = Constant annuity 2020-25, 2 = Even allocation - NPV neutral
E217: =E$93 -> Water resources revenue adjustment applied in first year | F217: 0 | G217: =G$93 -> £m | H217: 0 | I217: 0 | J217: 0 | K217: 0 | L217: 0 | M217: 0 | N217: 0 | O217: 0 | P217: 0 | Q217: 0 | R217: 0 | S217: 0 | T217: 0 | U217: 0 | V217: 0
E218: =E$94 -> Water network revenue adjustment applied in first year | F218: 0 | G218: =G$94 -> £m | H218: 1.044440911 | I218: 0 | J218: 0 | K218: 0 | L218: 0 | M218: 0 | N218: 0 | O218: 0 | P218: 0 | Q218: 0 | R218: 1.044440911 | S218: 0 | T218: 0 | U218: 0 | V218: 0
E219: =E$95 -> Bioresources revenue adjustment applied in first year | F219: =F$95 -> 0 | G219: £m | H219: 0 | I219: 0 | J219: 0 | K219: 0 | L219: 0 | M219: 0 | N219: 0 | O219: 0 | P219: 0 | Q219: 0 | R219: 0 | S219: 0 | T219: 0 | U219: 0 | V219: 0
E220: =E$96 -> Wastewater network revenue adjustment applied in first year | F220: 0 | G220: =G$96 -> £m | H220: 0 | I220: 0 | J220: 0 | K220: 0 | L220: 0 | M220: 0 | N220: 0 | O220: 0 | P220: 0 | Q220: 0 | R220: 0 | S220: 0 | T220: 0 | U220: 0 | V220: 0
E221: =E$97 -> Dummy control revenue adjustment applied in first year | F221: 0 | G221: £m | H221: 0 | I221: 0 | J221: 0 | K221: 0 | L221: 0 | M221: 0 | N221: 0 | O221: 0 | P221: 0 | Q221: 0 | R221: 0 | S221: 0 | T221: 0 | U221: 0 | V221: 0
E222: =E$98 -> Residential retail revenue adjustment applied in first year | F222: 0 | G222: =G$98 -> £m | H222: 3.441046904 | I222: 0 | J222: 0 | K222: 0 | L222: 0 | M222: 0 | N222: 0 | O222: 0 | P222: 0 | Q222: 0 | R222: 3.441046904 | S222: 0 | T222: 0 | U222: 0 | V222: 0
E223: =E$99 -> Business retail revenue adjustment applied in first year | F223: =F$99 -> 0 | G223: £m | H223: 0 | I223: 0 | J223: 0 | K223: 0 | L223: 0 | M223: 0 | N223: 0 | O223: 0 | P223: 0 | Q223: 0 | R223: 0 | S223: 0 | T223: 0 | U223: 0 | V223: 0
E225: =E$128 -> Water resources revenue adjustment - EAC factor adjusted | F225: =F$128 -> 0 | G225: £m | H225: 0 | I225: 0 | J225: 0 | K225: 0 | L225: 0 | M225: 0 | N225: 0 | O225: 0 | P225: 0 | Q225: 0 | R225: 0 | S225: 0 | T225: 0 | U225: 0 | V225: 0
E226: =E$129 -> Water network revenue adjustment - EAC factor adjusted | F226: =F$129 -> 0 | G226: £m | H226: 1.113375162 | I226: 0 | J226: 0 | K226: 0 | L226: 0 | M226: 0 | N226: 0 | O226: 0 | P226: 0 | Q226: 0 | R226: 0.2226750323 | S226: 0.2226750323 | T226: 0.2226750323 | U226: 0.2226750323 | V226: 0.2226750323
E227: =E$130 -> Bioresources revenue adjustment - EAC factor adjusted | F227: =F$130 -> 0 | G227: £m | H227: 0 | I227: 0 | J227: 0 | K227: 0 | L227: 0 | M227: 0 | N227: 0 | O227: 0 | P227: 0 | Q227: 0 | R227: 0 | S227: 0 | T227: 0 | U227: 0 | V227: 0
E228: =E$131 -> Wastewater network revenue adjustment - EAC factor adjusted | F228: =F$131 -> 0 | G228: £m | H228: 0 | I228: 0 | J228: 0 | K228: 0 | L228: 0 | M228: 0 | N228: 0 | O228: 0 | P228: 0 | Q228: 0 | R228: 0 | S228: 0 | T228: 0 | U228: 0 | V228: 0
E229: =E$132 -> Dummy control revenue adjustment - EAC factor adjusted | F229: 0 | G229: £m | H229: 0 | I229: 0 | J229: 0 | K229: 0 | L229: 0 | M229: 0 | N229: 0 | O229: 0 | P229: 0 | Q229: 0 | R229: 0 | S229: 0 | T229: 0 | U229: 0 | V229: 0
E230: =E$133 -> Residential retail revenue adjustment - EAC factor adjusted | F230: =F$133 -> 0 | G230: £m | H230: 3.668159792 | I230: 0 | J230: 0 | K230: 0 | L230: 0 | M230: 0 | N230: 0 | O230: 0 | P230: 0 | Q230: 0 | R230: 0.7336319583 | S230: 0.7336319583 | T230: 0.7336319583 | U230: 0.7336319583 | V230: 0.7336319583
E231: =E$134 -> Business retail revenue adjustment - EAC factor adjusted | F231: =F$134 -> 0 | G231: £m | H231: 0 | I231: 0 | J231: 0 | K231: 0 | L231: 0 | M231: 0 | N231: 0 | O231: 0 | P231: 0 | Q231: 0 | R231: 0 | S231: 0 | T231: 0 | U231: 0 | V231: 0
E233: =E$182 -> Water resources revenue adjustment - NPV adjusted | F233: =F$182 -> 0 | G233: £m | H233: 0 | I233: 0 | J233: 0 | K233: 0 | L233: 0 | M233: 0 | N233: 0 | O233: 0 | P233: 0 | Q233: 0 | R233: 0 | S233: 0 | T233: 0 | U233: 0 | V233: 0
E234: =E$183 -> Water network revenue adjustment - NPV adjusted | F234: =F$183 -> 0 | G234: £m | H234: 1.115728226 | I234: 0 | J234: 0 | K234: 0 | L234: 0 | M234: 0 | N234: 0 | O234: 0 | P234: 0 | Q234: 0 | R234: =R$183 -> 0.2088881821 | S234: 0.2157814921 | T234: 0.2229022814 | U234: 0.2302785393 | V234: 0.2378777311
E235: =E$184 -> Bioresources revenue adjustment - NPV adjusted | F235: =F$184 -> 0 | G235: £m | H235: 0 | I235: 0 | J235: 0 | K235: 0 | L235: 0 | M235: 0 | N235: 0 | O235: 0 | P235: 0 | Q235: 0 | R235: 0 | S235: 0 | T235: 0 | U235: 0 | V235: 0
E236: =E$185 -> Wastewater network revenue adjustment - NPV adjusted | F236: =F$185 -> 0 | G236: £m | H236: 0 | I236: 0 | J236: 0 | K236: 0 | L236: 0 | M236: 0 | N236: 0 | O236: 0 | P236: 0 | Q236: 0 | R236: 0 | S236: 0 | T236: 0 | U236: 0 | V236: 0
E237: =E$186 -> Dummy control revenue adjustment - NPV adjusted | F237: 0 | G237: £m | H237: 0 | I237: 0 | J237: 0 | K237: 0 | L237: 0 | M237: 0 | N237: 0 | O237: 0 | P237: 0 | Q237: 0 | R237: 0 | S237: 0 | T237: 0 | U237: 0 | V237: 0
E238: =E$187 -> Residential retail revenue adjustment - NPV adjusted | F238: =F$187 -> 0 | G238: £m | H238: 3.675912269 | I238: 0 | J238: 0 | K238: 0 | L238: 0 | M238: 0 | N238: 0 | O238: 0 | P238: 0 | Q238: 0 | R238: 0.6882093808 | S238: 0.7109202904 | T238: 0.7343806599 | U238: 0.7586827045 | V238: 0.7837192337
E239: =E$188 -> Business retail revenue adjustment - NPV adjusted | F239: =F$188 -> 0 | G239: £m | H239: 0 | I239: 0 | J239: 0 | K239: 0 | L239: 0 | M239: 0 | N239: 0 | O239: 0 | P239: 0 | Q239: 0 | R239: 0 | S239: 0 | T239: 0 | U239: 0 | V239: 0
... 7 more rows

Sheet Summary_Output
A1: =RIGHT(CELL("filename", $A$1), LEN(CELL("filename", $A$1)) - SEARCH("]", CELL("filename", $A$1))) -> Summary_Output
E2: =Time!E$25 -> Model period ending | J2: =Time!J$25 -> 2013-03-31 | K2: =Time!K$25 -> 2014-03-31 | L2: =Time!L$25 -> 2015-03-31 | M2: =Time!M$25 -> 2016-03-31 | N2: =Time!N$25 -> 2017-03-31 | O2: =Time!O$25 -> 2018-03-31 | P2: =Time!P$25 -> 2019-03-31 | Q2: =Time!Q$25 -> 2020-03-31 | R2: =Time!R$25 -> 2021-03-31 | S2: =Time!S$25 -> 2022-03-31 | T2: =Time!T$25 -> 2023-03-31 | U2: =Time!U$25 -> 2024-03-31 | V2: =Time!V$25 -> 2025-03-31
E3: =Time!E$80 -> Timeline label | J3: =Time!J$80 -> Pre-Fcst | K3: =Time!K$80 -> Pre-Fcst | L3: =Time!L$80 -> Pre-Fcst | M3: =Time!M$80 -> Pre-Fcst | N3: =Time!N$80 -> Pre-Fcst | O3: =Time!O$80 -> Pre-Fcst | P3: =Time!P$80 -> Pre-Fcst | Q3: =Time!Q$80 -> Pre-Fcst | R3: =Time!R$80 -> Forecast | S3: =Time!S$80 -> Forecast | T3: =Time!T$80 -> Forecast | U3: =Time!U$80 -> Forecast | V3: =Time!V$80 -> Forecast
E4: =Time!E$103 -> Financial year ending | J4: =Time!J$103 -> 2013 | K4: =Time!K$103 -> 2014 | L4: =Time!L$103 -> 2015 | M4: =Time!M$103 -> 2016 | N4: =Time!N$103 -> 2017 | O4: =Time!O$103 -> 2018 | P4: =Time!P$103 -> 2019 | Q4: =Time!Q$103 -> 2020 | R4: =Time!R$103 -> 2021 | S4: =Time!S$103 -> 2022 | T4: =Time!T$103 -> 2023 | U4: =Time!U$103 -> 2024 | V4: =Time!V$103 -> 2025
E5: =Time!E$10 -> Model column counter | F5: Constant | G5: Unit | J5: =Time!J$10 -> 1 | K5: =Time!K$10 -> 2 | L5: =Time!L$10 -> 3 | M5: =Time!M$10 -> 4 | N5: =Time!N$10 -> 5 | O5: =Time!O$10 -> 6 | P5: =Time!P$10 -> 7 | Q5: =Time!Q$10 -> 8 | R5: =Time!R$10 -> 9 | S5: =Time!S$10 -> 10 | T5: =Time!T$10 -> 11 | U5: =Time!U$10 -> 12 | V5: =Time!V$10 -> 13
A7: PR14 REVENUE RECONCILIATION ADJUSTMENTS EXPRESSED IN 2017/18 FYA CPIH DEFLATED PRICE BASE BY TABLE
B9: Table App25
E10: =Calc!E$151 -> Further 2010-15 reconciliation total adjustment revenue carry forward to PR19 ~ Water network plus at 2017-18 FYA CPIH deflated price base | F10: =Calc!F$151 -> -0.06263685667 | G10: =Calc!G$151 -> £m
E11: =Calc!E$160 -> Further 2010-15 reconciliation total adjustment revenue carry forward to PR19 ~ Wastewater network plus at 2017-18 FYA CPIH deflated price base | F11: =Calc!F$160 -> 0 | G11: =Calc!G$160 -> £m
B13: Table App27
E14: =Calc!E$147 -> ODI in-period revenue adjustment ~ Water resources at 2017-18 FYA CPIH deflated price base | F14: =Calc!F$147 -> 0 | G14: =Calc!G$147 -> £m
E15: =Calc!E$152 -> ODI in-period revenue adjustment ~ Water network plus at 2017-18 FYA CPIH deflated price base | F15: =Calc!F$152 -> 0 | G15: =Calc!G$152 -> £m
E16: =Calc!E$158 -> ODI in-period revenue adjustment ~ Bioresources at 2017-18 FYA CPIH deflated price base | F16: =Calc!F$158 -> 0 | G16: =Calc!G$158 -> £m
E17: =Calc!E$161 -> ODI in-period revenue adjustment ~ Wastewater network plus at 2017-18 FYA CPIH deflated price base | F17: =Calc!F$161 -> 0 | G17: =Calc!G$161 -> £m
E18: =Calc!E$166 -> ODI in-period revenue adjustment ~ Residential retail at 2017-18 FYA CPIH deflated price base | F18: =Calc!F$166 -> 0 | G18: =Calc!G$166 -> £m
E19: =Calc!E$170 -> ODI in-period revenue adjustment ~ Business retail at 2017-18 FYA CPIH deflated price base | F19: =Calc!F$170 -> 0 | G19: =Calc!G$170 -> £m
E21: =Calc!E$148 -> ODI end of period revenue adjustment ~ Water resources at 2017-18 FYA CPIH deflated price base | F21: =Calc!F$148 -> 0 | G21: =Calc!G$148 -> £m
E22: =Calc!E$153 -> ODI end of period revenue adjustment ~ Water network plus at 2017-18 FYA CPIH deflated price base | F22: =Calc!F$153 -> 3.352197591 | G22: =Calc!G$153 -> £m
E23: =Calc!E$159 -> ODI end of period revenue adjustment ~ Bioresources at 2017-18 FYA CPIH deflated price base | F23: =Calc!F$159 -> 0 | G23: =Calc!G$159 -> £m
E24: =Calc!E$162 -> ODI end of period revenue adjustment ~ Wastewater network plus at 2017-18 FYA CPIH deflated price base | F24: =Calc!F$162 -> 0 | G24: =Calc!G$162 -> £m
E25: =Calc!E$167 -> ODI end of period revenue adjustment ~ Residential retail at 2017-18 FYA CPIH deflated price base | F25: =Calc!F$167 -> 0 | G25: =Calc!G$167 -> £m
E26: =Calc!E$171 -> ODI end of period revenue adjustment ~ Business retail at 2017-18 FYA CPIH deflated price base | F26: =Calc!F$171 -> 0 | G26: =Calc!G$171 -> £m
B28: Table WS13
E29: =Calc!E$157 -> WRFIM total reward / (penalty) at the end of AMP6 ~ Water network plus at 2017-18 FYA CPIH deflated price base | F29: =Calc!F$157 -> -1.883412526 | G29: =Calc!G$157 -> £m
B31: Table WS15
E32: =Calc!E$154 -> Water: Totex menu revenue adjustment at 2017-18 FYA CPIH deflated price base | F32: =Calc!F$154 -> -0.3617072976 | G32: =Calc!G$154 -> £m
B34: Table WS17
E35: =Calc!E$149 -> Water trading total value of export incentive ~ Water resources at 2017-18 FYA CPIH deflated price base | F35: =Calc!F$149 -> 0 | G35: =Calc!G$149 -> £m
E36: =Calc!E$155 -> Water trading total value of export incentive ~ Water network plus at 2017-18 FYA CPIH deflated price base | F36: =Calc!F$155 -> 0 | G36: =Calc!G$155 -> £m
E37: =Calc!E$150 -> Water trading total value of import incentive ~ Water resources at 2017-18 FYA CPIH deflated price base | F37: =Calc!F$150 -> 0 | G37: =Calc!G$150 -> £m
E38: =Calc!E$156 -> Water trading total value of import incentive ~ Water network plus at 2017-18 FYA CPIH deflated price base | F38: =Calc!F$156 -> 0 | G38: =Calc!G$156 -> £m
B40: Table WWS13
E41: =Calc!E$164 -> WRFIM total reward / (penalty) at the end of AMP6 ~ Wastewater network plus at 2017-18 FYA CPIH deflated price base | F41: =Calc!F$164 -> 0 | G41: =Calc!G$164 -> £m
B43: Table WWS15
E44: =Calc!E$163 -> Wastewater: Totex menu revenue adjustment at 2017-18 FYA CPIH deflated price base | F44: =Calc!F$163 -> 0 | G44: =Calc!G$163 -> £m
B46: Table Dmmy10
E47: =Calc!E$165 -> Dummy: revenue adjustment from totex menu model at 2017-18 FYA CPIH deflated price base | F47: =Calc!F$165 -> 0 | G47: =Calc!G$165 -> £m
B49: Table R9
E50: =Calc!E$168 -> Residential retail revenue adjustment at 2017-18 FYA CPIH deflated price base | F50: =Calc!F$168 -> 1.001956912 | G50: =Calc!G$168 -> £m
B52: Table R10
E53: =Calc!E$169 -> SIM forecast revenue adjustment at 2017-18 FYA CPIH deflated price base | F53: =Calc!F$169 -> 2.439089992 | G53: =Calc!G$169 -> £m
A56: SUBTOTALS AS PER PRICE CONTROL FOR REVENUE ADJUSTMENTS
E58: =Calc!E$181 -> Water resources revenue adjustment | F58: =Calc!F$181 -> 0 | G58: =Calc!G$181 -> £m
E59: =Calc!E$191 -> Water network plus revenue adjustment | F59: =Calc!F$191 -> 1.044440911 | G59: =Calc!G$191 -> £m
E60: =Calc!E196 -> Bioresources revenue adjustment | F60: =Calc!F196 -> 0 | G60: =Calc!G196 -> £m
E61: =Calc!E$204 -> Wastewater network plus revenue adjustment | F61: =Calc!F$204 -> 0 | G61: =Calc!G$204 -> £m
E62: =Calc!E$208 -> Dummy control revenue adjustment | F62: =Calc!F$208 -> 0 | G62: =Calc!G$208 -> £m
E63: =Calc!E$215 -> Residential retail revenue adjustment | F63: =Calc!F$215 -> 3.441046904 | G63: =Calc!G$215 -> £m
E64: =Calc!E$220 -> Business retail revenue adjustment | F64: =Calc!F$220 -> 0 | G64: =Calc!G$220 -> £m
A67: PROFILES SELECTED
E69: =Profiling!E$241 -> Water resources revenue adjustment active | F69: =Profiling!F$241 -> 0 | G69: =Profiling!G$241 -> £m | H69: =Profiling!H$241 -> 0 | I69: =Profiling!I$241 -> 0 | J69: =Profiling!J$241 -> 0 | K69: =Profiling!K$241 -> 0 | L69: =Profiling!L$241 -> 0 | M69: =Profiling!M$241 -> 0 | N69: =Profiling!N$241 -> 0 | O69: =Profiling!O$241 -> 0 | P69: =Profiling!P$241 -> 0 | Q69: =Profiling!Q$241 -> 0 | R69: =Profiling!R$241 -> 0 | S69: =Profiling!S$241 -> 0 | T69: =Profiling!T$241 -> 0 | U69: =Profiling!U$241 -> 0 | V69: =Profiling!V$241 -> 0
E70: =Profiling!E$242 -> Water network revenue adjustment active | F70: =Profiling!F$242 -> 0 | G70: =Profiling!G$242 -> £m | H70: =Profiling!H$242 -> 1.115728226 | I70: =Profiling!I$242 -> 0 | J70: =Profiling!J$242 -> 0 | K70: =Profiling!K$242 -> 0 | L70: =Profiling!L$242 -> 0 | M70: =Profiling!M$242 -> 0 | N70: =Profiling!N$242 -> 0 | O70: =Profiling!O$242 -> 0 | P70: =Profiling!P$242 -> 0 | Q70: =Profiling!Q$242 -> 0 | R70: =Profiling!R$242 -> 0.2088881821 | S70: =Profiling!S$242 -> 0.2157814921 | T70: =Profiling!T$242 -> 0.2229022814 | U70: =Profiling!U$242 -> 0.2302785393 | V70: =Profiling!V$242 -> 0.2378777311
E71: =Profiling!E$243 -> Bioresources revenue adjustment active | F71: =Profiling!F$243 -> 0 | G71: =Profiling!G$243 -> £m | H71: =Profiling!H$243 -> 0 | I71: =Profiling!I$243 -> 0 | J71: =Profiling!J$243 -> 0 | K71: =Profiling!K$243 -> 0 | L71: =Profiling!L$243 -> 0 | M71: =Profiling!M$243 -> 0 | N71: =Profiling!N$243 -> 0 | O71: =Profiling!O$243 -> 0 | P71: =Profiling!P$243 -> 0 | Q71: =Profiling!Q$243 -> 0 | R71: =Profiling!R$243 -> 0 | S71: =Profiling!S$243 -> 0 | T71: =Profiling!T$243 -> 0 | U71: =Profiling!U$243 -> 0 | V71: =Profiling!V$243 -> 0
E72: =Profiling!E$244 -> Wastewater network revenue adjustment active | F72: =Profiling!F$244 -> 0 | G72: =Profiling!G$244 -> £m | H72: =Profiling!H$244 -> 0 | I72: =Profiling!I$244 -> 0 | J72: =Profiling!J$244 -> 0 | K72: =Profiling!K$244 -> 0 | L72: =Profiling!L$244 -> 0 | M72: =Profiling!M$244 -> 0 | N72: =Profiling!N$244 -> 0 | O72: =Profiling!O$244 -> 0 | P72: =Profiling!P$244 -> 0 | Q72: =Profiling!Q$244 -> 0 | R72: =Profiling!R$244 -> 0 | S72: =Profiling!S$244 -> 0 | T72: =Profiling!T$244 -> 0 | U72: =Profiling!U$244 -> 0 | V72: =Profiling!V$244 -> 0
E73: =Profiling!E$245 -> Dummy control revenue adjustment active | F73: =Profiling!F$245 -> 0 | G73: =Profiling!G$245 -> £m | H73: =Profiling!H$245 -> 0 | I73: =Profiling!I$245 -> 0 | J73: =Profiling!J$245 -> 0 | K73: =Profiling!K$245 -> 0 | L73: =Profiling!L$245 -> 0 | M73: =Profiling!M$245 -> 0 | N73: =Profiling!N$245 -> 0 | O73: =Profiling!O$245 -> 0 | P73: =Profiling!P$245 -> 0 | Q73: =Profiling!Q$245 -> 0 | R73: =Profiling!R$245 -> 0 | S73: =Profiling!S$245 -> 0 | T73: =Profiling!T$245 -> 0 | U73: =Profiling!U$245 -> 0 | V73: =Profiling!V$245 -> 0
E74: =Profiling!E$246 -> Residential retail revenue adjustment active | F74: =Profiling!F$246 -> 0 | G74: =Profiling!G$246 -> £m | H74: =Profiling!H$246 -> 3.675912269 | I74: =Profiling!I$246 -> 0 | J74: =Profiling!J$246 -> 0 | K74: =Profiling!K$246 -> 0 | L74: =Profiling!L$246 -> 0 | M74: =Profiling!M$246 -> 0 | N74: =Profiling!N$246 -> 0 | O74: =Profiling!O$246 -> 0 | P74: =Profiling!P$246 -> 0 | Q74: =Profiling!Q$246 -> 0 | R74: =Profiling!R$246 -> 0.6882093808 | S74: =Profiling!S$246 -> 0.7109202904 | T74: =Profiling!T$246 -> 0.7343806599 | U74: =Profiling!U$246 -> 0.7586827045 | V74: =Profiling!V$246 -> 0.7837192337
E75: =Profiling!E$247 -> Business retail revenue adjustment active | F75: =Profiling!F$247 -> 0 | G75: =Profiling!G$247 -> £m | H75: =Profiling!H$247 -> 0 | I75: =Profiling!I$247 -> 0 | J75: =Profiling!J$247 -> 0 | K75: =Profiling!K$247 -> 0 | L75: =Profiling!L$247 -> 0 | M75: =Profiling!M$247 -> 0 | N75: =Profiling!N$247 -> 0 | O75: =Profiling!O$247 -> 0 | P75: =Profiling!P$247 -> 0 | Q75: =Profiling!Q$247 -> 0 | R75: =Profiling!R$247 -> 0 | S75: =Profiling!S$247 -> 0 | T75: =Profiling!T$247 -> 0 | U75: =Profiling!U$247 -> 0 | V75: =Profiling!V$247 -> 0
